{"text_format":"1","workbook":"xlsx","n_sheets":16,"sheets":["Index","General Info","Financial Results","1 Segment Income","2 Segment Premium Deficiency","3 Segment Underwriting ProfLoss","4 Segment Operating ProfitLoss","5 Segment Technical Liabilities","6 Segment Technical Liabilities","Cash Flow Direct","Cash Flow Indirect","5 Segment Technical Liabili (2","Balance Sheet","Sheet1","TextBlock","Balance Sheet (2)"],"not_rendered":{"charts":0,"images":1,"macros":1,"external_links":1,"defined_names":6,"comments":0,"pivot_tables":0},"unopened":[],"bounds":{"document_bytes":16777216,"sheet_cells":100000,"rows_first":2000,"rows_last":500,"rows_between":2000,"halvings":0,"cell_chars":16384,"cell_head_chars":4096},"cells_cut":0,"cells_raw":0,"read":"whole","date_system":"1900"}

{"sheet":"Index","index":0,"n_rows":61,"n_cols":10,"rows_kept":61,"cut":false,"hidden":false,"merged":[[20,3,20,9],[5,4,5,8],[6,5,6,8],[7,5,7,8],[8,5,8,8],[9,5,9,8],[10,5,10,8],[11,5,11,8],[14,3,14,9],[15,3,15,9],[16,3,16,9],[19,3,19,9],[34,4,34,8],[21,3,21,9],[22,3,22,9],[23,3,23,9],[24,3,24,9],[27,3,27,9],[28,4,28,8],[29,4,29,8],[30,4,30,8],[31,4,31,8],[32,4,32,8],[33,4,33,8],[50,3,50,9],[35,4,35,8],[36,4,36,8],[39,3,39,9],[40,3,40,9],[41,3,41,9],[42,3,42,9],[43,3,43,9],[44,3,44,9],[45,3,45,9],[46,3,46,9],[49,3,49,9],[59,3,59,9],[60,3,60,9],[53,3,53,9],[54,3,54,9],[55,3,55,9],[56,3,56,9],[57,3,57,9],[58,3,58,9]]}
[]
[]
[]
[]
[]
[null,null,null,null,"                                      XBRL Excel Utility"]
[null,null,null,null,"1.","Overview"]
[null,null,null,null,"2.","Before you begin"]
[null,null,null,null,"3.","Index"]
[null,null,null,null,"4.","Steps for Filing General Insurance Format"]
[null,null,null,null,"5.","Import XBRL file"]
[null,null,null,null,"6.","Fill up the General Insurance Format"]
[]
[]
[null,null,null,"1. Overview"]
[null,null,null,"The excel utility can be used for creating the XBRL/XML file for efiling of General Insurance Format"]
[null,null,null,"General Insurance Format XBRL filing consists of two processes. Firstly generation of XBRL/XML file of Genearl Insurance Format, and upload of generated XBRL/XML file to NSE Listing Center Website."]
[]
[]
[null,null,null," 2.  Before you begin"]
[null,null,null,"1. The version of Microsoft Excel in your system should be Microsoft Office Excel 2007 and above."]
[null,null,null,"2. The system should have a file compression software to unzip excel utility file."]
[null,null,null,"3. Make sure that you have downloaded the latest Excel Utility from NSE website to your local system."]
[null,null,null,"4. Make sure that you have downloaded the Chrome Browser to view report generated from Excel utility"]
[null,null,null,"5. Please enable the Macros (if disabled) as per instructions given in manual, so that all the functionalities of  Excel Utility works fine. Please first go through Enable Macro - Manual attached with zip file."]
[]
[]
[null,null,null,"3. Index "]
[null,null,null,1,"Details of general information about company",null,null,null,null,"General Info"]
[null,null,null,2,"Financial Results",null,null,null,null,"Financial Results"]
[null,null,null,3,"Segment Income",null,null,null,null,"1 Segment Income"]
[null,null,null,4,"Segment Premium Deficiency",null,null,null,null,"2 Segment Premium Deficiency"]
[null,null,null,5,"Segment Underwriting ProfLoss",null,null,null,null,"3 Segment Underwriting ProfLoss"]
[null,null,null,6,"Segment Operating ProfitLoss",null,null,null,null,"4 Segment Operating ProfitLoss"]
[null,null,null,7,"Segment Technical Liabilities",null,null,null,null,"5 Segment Technical Liabilities"]
[null,null,null,8,"Segment Technical Liabilities(Unexpired Claims Reserves Including IBNR & IIBNER)",null,null,null,null,"6 Segment Technical Liabilities"]
[null,null,null,9,"Balance Sheet",null,null,null,null,"Balance Sheet"]
[]
[]
[null,null,null,"4. Steps for Filing General Insurance Format"]
[null,null,null,"I.  Fill up the data: Navigate to each field of every section in the sheet to provide applicable data in correct format.  (Formats will get reflected while filling data.)  \n   - Use paste special command to paste data from other sheet.\n   - Use \"Home\" button (cntrl + H) to toggle between the sheets."]
[null,null,null,"II. Validating Sheets:  Click on the ''Validate \"  button to ensure that the sheet has been properly filled and also data has been furnished in proper format. If there are some errors on the sheet, excel utility will prompt you about the same."]
[null,null,null,"III. Validate All Sheets:  Click on the ''Home\"  button. And then click on \"Validate All Sheet\" button to ensure that all sheets has been properly filled and validated successfully. If there are some errors on the sheet, excel utility will prompt you about the same and stop validation at the same time. After correction, once again follow the same procedure to validate all sheets."]
[null,null,null,"Excel Utility will not allow you to generate XBRL/XML until you rectify all errors. "]
[null,null,null,"IV. Generate XML :   Excel Utility will not allow you to generate XBRL/XML unless successful validation of all sheet is completed. Now click on 'Generate XML'' to generate XBRL/XML file. \n    - Save the XBRL/XML file in your desired folder in local system. "]
[null,null,null,"V. Generate Report :   Excel Utility will allow you to generate Report. Now click on 'Generate Report'' to generate html report.   \n     - Save the HTML Report file in your desired folder in local system.     \n     - To view HTML Report open \"Chrome Web Browser\" . \n     - To print report in PDF Format, Click on print button and save as PDF. "]
[null,null,null,"VI. Upload XML file to NSE Listing Center: For uploading the XBRL/XML file generated through  Utility, login to NSE Listing Center and upload generated xml file. On Upload screen provide the required information and browse to select XML file and submit the XML.\n"]
[]
[]
[null,null,null,"5. Import XBRL file"]
[null,null,null,"1. Now you can import and view previously generated XBRL files by clicking Import XBRL button on Genenral information sheet. "]
[]
[]
[null,null,null,"6. Fill up the General Insurance Format"]
[null,null,null,"1. Cells with red fonts indicate mandatory fields. "]
[null,null,null,"2. If mandatory field is left empty, then Utility will not allow you to proceed further for generating XML."]
[null,null,null,"3. You are not allowed to enter data in the Grey Cells."]
[null,null,null,"4. If fields are not applicable to your company then leave it blank. Do not insert Zero unless it is a mandatory field."]
[null,null,null,"5. Data provided must be in correct format, otherwise Utility will not allow you to proceed further for generating XML."]
[null,null,null,"6. Select data from \"Dropdown list\" wherever applicable. "]
[null,null,null,"7. Adding Notes:  Click on \"Add Text Block\" button to add notes "]

{"sheet":"General Info","index":1,"n_rows":71,"n_cols":26,"rows_kept":71,"cut":false,"hidden":false,"merged":[[19,5,22,7],[8,3,8,7],[23,5,23,7],[26,5,28,7]]}
[]
[]
[null,null,null,null,null,null,null,null,"General Insurance Format","Life Insurance Format",null,null,null,null,null,null,"Standalone","Actual","Single segment",null,"Declaration of unmodified opinion",null,null,null,"Fourth quarter","Fourth quarter"]
[null,null,null,null,null,null,null,null,null,null,null,null,null,null,null,null,"Consolidated","Thousands","Multi segment","First quarter","Statement on impact of audit qualification",null,null,null,"Yearly","Fifth quarter"]
[null,null,null,null,null,null,null,null,null,null,null,null,null,null,null,null,null,"Lakhs","Geographical","Half yearly","Not applicable",null,null,null,null,"Yearly"]
[null,null,null,null,null,null,null,null,null,null,null,null,null,null,null,null,"Audited","Millions",null,"Third quarter"]
[null,null,null,null,null,null,null,null,null,null,null,null,null,null,null,null,"Unaudited","Crores",null,"Yearly"]
[null,null,null,null,null,null,null,null,null,null,null,"Linked Policy","Non-Linked Policy","Non-Linked Policy And Linked Policy",null,null,"Yes","Billions",null,null,"Yes","Cash Flow Indirect"]
[null,null,null,"General information about company",null,null,null,null,null,null,null,"GeneralInformationAboutTheCompanyAbstract",null,null,null,null,"No",null,null,null,"No","Cash Flow Direct"]
[null,null,null,"Scrip code",null,null,null,null,null,null,null,"ScripCode"]
[null,null,null,"NSE Symbol",null,null,null,null,null,null,null,"NSESymbol",null,null,null,null,"00","00"]
[null,null,null,"MSEI Symbol",null,null,null,null,null,null,null,"MSEISymbol",null,null,null,null,"01","01","2014"]
[null,null,null,"ISIN",null,null,null,null,null,null,null,"ISIN",null,null,null,null,"02","02","2015"]
[null,null,null,"Name of company",null,null,null,null,null,null,null,"NameOfTheCompany",null,null,null,null,"03","03","2016"]
[null,null,null,"Type Of Insurance",null,null,null,null,null,null,null,"TypeOfInsurance",null,null,null,null,"04","04",2017,null,null,null,null,null,null,12]
[null,null,null,"Date of start of financial year",null,null,null,null,null,null,null,"DateOfStartOfFinancialYear",null,null,null,null,"05","05",2018]
[null,null,null,"Date of end of financial year",null,null,null,null,null,null,null,"DateOfEndOfFinancialYear",null,null,null,null,"06","06",2019]
[null,null,null,"Date of board meeting when results were approved",null,null,null,null,null,null,null,"DateOfBoardMeetingWhenFinancialResultsWereApproved",null,null,null,null,"07","07",2020]
[null,null,null,"Date on which prior intimation of the meeting for considering financial results was informed to the exchange",null,null,null,null,null,null,null,"DateOnWhichPriorIntimationOfTheMeetingForConsideringFinancialResultsWasInformedToTheExchange",null,null,null,null,"08","08",2021]
[null,null,null,"Description of presentation currency","INR",null,null,null,null,null,null,"DescriptionOfPresentationCurrency",null,null,null,null,"09","09",2022]
[null,null,null,"Level of rounding used in financial results",null,null,null,null,null,null,null,"LevelOfRoundingUsedInFinancialStatements",null,null,null,null,"10","10",2023]
[null,null,null,"Reporting Quarter",null,null,null,null,null,null,null,"ReportingQuarter",null,null,null,null,"11","11",2024]
[null,null,null,"Nature of report standalone or consolidated",null,null,null,null,null,null,null,"NatureOfReportStandaloneConsolidated",null,null,null,null,"12","12",2025]
[null,null,null,"Whether results are audited or unaudited",null,"For Current Quarter Only",null,null,null,null,null,"WhetherResultsAreAuditedOrUnaudited",null,null,null,null,"13",null,2026]
[null,null,null,"Start date and time of board meeting",null,null,null,"HH:MM",null,null,null,"StartTimeOfBoardMeeting",null,null,null,null,"14",null,2027,null,null,null,null,null,null,"DateOfStartOfBoardMeeting"]
[null,null,null,"End date and time of board meeting",null,null,null,"HH:MM",null,null,null,"EndTimeOfBoardMeeting",null,null,null,null,"15",null,null,null,null,null,null,null,null,"DateOfEndOfBoardMeeting"]
[null,null,null,"Whether cash flow statement is applicable on company",null,null,null,null,null,null,null,"WhetherCashFlowStatementIsApplicableOnCompany",null,null,null,null,"16"]
[null,null,null,"Type of cash flow statement",null,null,null,null,null,null,null,"TypeOfCashFlowStatement",null,null,null,null,"17"]
[null,null,null,"Declaration of unmodified opinion or statement on impact of audit qualification",null,null,null,null,null,null,null,"DeclarationOfUnmodifiedOpinionOrStatementOnImpactOfAuditQualification",null,null,null,null,"18"]
[null,null,null,null,null,null,null,null,null,null,null,null,null,null,null,null,"19"]
[null,null,null,null,null,null,null,null,null,null,null,null,null,null,null,null,"20"]
[null,null,null,null,null,null,null,null,null,null,null,null,null,null,null,null,"21"]
[null,null,null,null,null,null,null,null,null,null,null,null,null,null,null,null,"22"]
[null,null,null,null,null,null,null,null,null,null,null,null,null,null,null,null,"23"]
[null,null,null,null,null,null,null,null,null,null,null,null,null,null,null,null,"24"]
[null,null,null,null,null,null,null,null,null,null,null,null,null,null,null,null,"25"]
[null,null,null,null,null,null,null,null,null,null,null,null,null,null,null,null,"26"]
[null,null,null,null,null,null,null,null,null,null,null,null,null,null,null,null,"27"]
[null,null,null,null,null,null,null,null,null,null,null,null,null,null,null,null,"28"]
[null,null,null,null,null,null,null,null,null,null,null,null,null,null,null,null,"29"]
[null,null,null,null,null,null,null,null,null,null,null,null,null,null,null,null,"30"]
[null,null,null,null,null,null,null,null,null,null,null,null,null,null,null,null,"31"]
[null,null,null,null,null,null,null,null,null,null,null,null,null,null,null,null,"32"]
[null,null,null,null,null,null,null,null,null,null,null,null,null,null,null,null,"33"]
[null,null,null,null,null,null,null,null,null,null,null,null,null,null,null,null,"34"]
[null,null,null,null,null,null,null,null,null,null,null,null,null,null,null,null,"35"]
[null,null,null,null,null,null,null,null,null,null,null,null,null,null,null,null,"36"]
[null,null,null,null,null,null,null,null,null,null,null,null,null,null,null,null,"37"]
[null,null,null,null,null,null,null,null,null,null,null,null,null,null,null,null,"38"]
[null,null,null,null,null,null,null,null,null,null,null,null,null,null,null,null,"39"]
[null,null,null,null,null,null,null,null,null,null,null,null,null,null,null,null,"40"]
[null,null,null,null,null,null,null,null,null,null,null,null,null,null,null,null,"41"]
[null,null,null,null,null,null,null,null,null,null,null,null,null,null,null,null,"42"]
[null,null,null,null,null,null,null,null,null,null,null,null,null,null,null,null,"43"]
[null,null,null,null,null,null,null,null,null,null,null,null,null,null,null,null,"44"]
[null,null,null,null,null,null,null,null,null,null,null,null,null,null,null,null,"45"]
[null,null,null,null,null,null,null,null,null,null,null,null,null,null,null,null,"46"]
[null,null,null,null,null,null,null,null,null,null,null,null,null,null,null,null,"47"]
[null,null,null,null,null,null,null,null,null,null,null,null,null,null,null,null,"48"]
[null,null,null,null,null,null,null,null,null,null,null,null,null,null,null,null,"49"]
[null,null,null,null,null,null,null,null,null,null,null,null,null,null,null,null,"50"]
[null,null,null,null,null,null,null,null,null,null,null,null,null,null,null,null,"51"]
[null,null,null,null,null,null,null,null,null,null,null,null,null,null,null,null,"52"]
[null,null,null,null,null,null,null,null,null,null,null,null,null,null,null,null,"53"]
[null,null,null,null,null,null,null,null,null,null,null,null,null,null,null,null,"54"]
[null,null,null,null,null,null,null,null,null,null,null,null,null,null,null,null,"55"]
[null,null,null,null,null,null,null,null,null,null,null,null,null,null,null,null,"56"]
[null,null,null,null,null,null,null,null,null,null,null,null,null,null,null,null,"57"]
[null,null,null,null,null,null,null,null,null,null,null,null,null,null,null,null,"58"]
[null,null,null,null,null,null,null,null,null,null,null,null,null,null,null,null,"59"]
[null,null,null,null,null,null,null,null,null,null,null,null,null,null,null,null,"60"]

{"sheet":"Financial Results","index":2,"n_rows":137,"n_cols":19,"rows_kept":137,"cut":false,"hidden":false,"merged":[[127,5,127,6],[127,7,127,8],[7,5,7,8],[8,5,8,6],[11,5,11,6],[120,7,120,8],[9,5,9,6],[10,5,10,6],[112,7,112,8],[115,7,115,8],[63,7,63,8],[64,7,64,8],[67,7,67,8],[106,5,106,8],[50,7,50,8],[59,7,59,8],[135,7,135,8],[129,5,129,6],[129,7,129,8],[63,5,63,6],[12,5,12,6],[12,7,12,8],[80,7,80,8],[13,7,13,8],[18,7,18,8],[31,7,31,8],[34,7,34,8],[36,7,36,8],[123,7,123,8],[90,7,90,8],[98,7,98,8],[99,7,99,8]]}
[]
[]
[]
[null,null,null,null,null,null,null,null,null,null,"Audited","Unaudited"]
[]
[]
[]
[null,null,null,null,null,"Format for financial results by general insurance companies filed with stock exchanges"]
[null,null,null,null,null,"Partiuclars",null,"Current Quarter","Year to Date Figures"]
[null,null,null,null,null,"Date of start of reporting period",null,null,null,null,null,"DateOfStartOfReportingPeriod"]
[null,null,null,null,null,"Date of end of reporting period",null,null,null,null,null,"DateOfEndOfReportingPeriod"]
[null,null,null,null,null,"Whether accounts are audited or unaudited",null,{"$f":"+IF(COUNTA('General Info'!E24),'General Info'!E24,\"\")","v":""},{"$f":"+IF(COUNTA('General Info'!E24),'General Info'!E24,\"\")","v":""},null,null,"WhetherResultsAreAuditedOrUnaudited"]
[null,null,null,null,null,"OPERATING RESULTS"]
[null,null,null,null,null,1,"Operating income",null,null,null,null,"OperatingIncomeAbstract"]
[null,null,null,null,null,"(i)"," Gross Premiums Written",null,{"$f":"IF(COUNTA('Financial Results'!H15),'Financial Results'!H15,\"\")","v":""},null,null,"GrossPremiumsWritten",null,null,null,null,null,null,{"$f":"IF(COUNTA('Financial Results'!H15),'Financial Results'!H15,\"\")","v":""}]
[null,null,null,null,null,"(ii)"," Net Premium written",null,{"$f":"IF(COUNTA('Financial Results'!H16),'Financial Results'!H16,\"\")","v":""},null,null,"NetPremiumWritten",null,null,null,null,null,null,{"$f":"IF(COUNTA('Financial Results'!H16),'Financial Results'!H16,\"\")","v":""}]
[null,null,null,null,null,"(iii)"," Premium Earned (Net)",null,{"$f":"IF(COUNTA('Financial Results'!H17),'Financial Results'!H17,\"\")","v":""},null,null,"PremiumEarned",null,null,null,null,null,null,{"$f":"IF(COUNTA('Financial Results'!H17),'Financial Results'!H17,\"\")","v":""}]
[null,null,null,null,null,"(iv)"," Income from investments (net)",null,{"$f":"IF(COUNTA('Financial Results'!H18),'Financial Results'!H18,\"\")","v":""},null,null,"IncomeFromInvestmentsNet",null,null,null,null,null,null,{"$f":"IF(COUNTA('Financial Results'!H18),'Financial Results'!H18,\"\")","v":""}]
[null,null,null,null,null,"(v)","Other income",null,null,null,null,null,null,null,null,null,null,null,{"$f":"IF(COUNTA('Financial Results'!H19),'Financial Results'!H19,\"\")","v":""}]
[null,null,null,null,null,"i",null,null,{"$f":"IF(COUNTA('Financial Results'!H20),'Financial Results'!H20,\"\")","v":""},null,null,null,null,null,null,null,null,null,{"$f":"IF(COUNTA('Financial Results'!H20),'Financial Results'!H20,\"\")","v":""}]
[null,null,null,null,null,"ii",null,null,{"$f":"IF(COUNTA('Financial Results'!H21),'Financial Results'!H21,\"\")","v":""},null,null,null,null,null,null,null,null,null,{"$f":"IF(COUNTA('Financial Results'!H21),'Financial Results'!H21,\"\")","v":""}]
[null,null,null,null,null,"iii",null,null,{"$f":"IF(COUNTA('Financial Results'!H22),'Financial Results'!H22,\"\")","v":""},null,null,null,null,null,null,null,null,null,{"$f":"IF(COUNTA('Financial Results'!H22),'Financial Results'!H22,\"\")","v":""}]
[null,null,null,null,null,"iv",null,null,{"$f":"IF(COUNTA('Financial Results'!H23),'Financial Results'!H23,\"\")","v":""},null,null,null,null,null,null,null,null,null,{"$f":"IF(COUNTA('Financial Results'!H23),'Financial Results'!H23,\"\")","v":""}]
[null,null,null,null,null,"v",null,null,{"$f":"IF(COUNTA('Financial Results'!H24),'Financial Results'!H24,\"\")","v":""},null,null,null,null,null,null,null,null,null,{"$f":"IF(COUNTA('Financial Results'!H24),'Financial Results'!H24,\"\")","v":""}]
[null,null,null,null,null,"vi",null,null,{"$f":"IF(COUNTA('Financial Results'!H25),'Financial Results'!H25,\"\")","v":""},null,null,null,null,null,null,null,null,null,{"$f":"IF(COUNTA('Financial Results'!H25),'Financial Results'!H25,\"\")","v":""}]
[null,null,null,null,null,"vii",null,null,{"$f":"IF(COUNTA('Financial Results'!H26),'Financial Results'!H26,\"\")","v":""},null,null,null,null,null,null,null,null,null,{"$f":"IF(COUNTA('Financial Results'!H26),'Financial Results'!H26,\"\")","v":""}]
[null,null,null,null,null,"viii",null,null,{"$f":"IF(COUNTA('Financial Results'!H27),'Financial Results'!H27,\"\")","v":""},null,null,null,null,null,null,null,null,null,{"$f":"IF(COUNTA('Financial Results'!H27),'Financial Results'!H27,\"\")","v":""}]
[null,null,null,null,null,"ix",null,null,{"$f":"IF(COUNTA('Financial Results'!H28),'Financial Results'!H28,\"\")","v":""},null,null,null,null,null,null,null,null,null,{"$f":"IF(COUNTA('Financial Results'!H28),'Financial Results'!H28,\"\")","v":""}]
[null,null,null,null,null,"x",null,null,{"$f":"IF(COUNTA('Financial Results'!H29),'Financial Results'!H29,\"\")","v":""},null,null,null,null,null,null,null,null,null,{"$f":"IF(COUNTA('Financial Results'!H29),'Financial Results'!H29,\"\")","v":""}]
[null,null,null,null,null,null,"Total other income",{"$f":"+IF(COUNT(H20:H29),SUM(H20:H29),\"\")","v":""},{"$f":"+IF(COUNT(I20:I29),SUM(I20:I29),\"\")","v":""},null,null,"OtherIncome",null,null,null,null,null,null,{"$f":"IF(COUNTA('Financial Results'!H30),'Financial Results'!H30,\"\")","v":""}]
[null,null,null,null,null,"(vi)","Total income",{"$f":"+IF(COUNT(H30,H17:H18),SUM(H17:H18)+SUM(H30),\"\")","v":""},{"$f":"+IF(COUNT(I30,I17:I18),SUM(I17:I18)+SUM(I30),\"\")","v":""},null,null,"OperatingIncome",null,null,null,null,null,null,{"$f":"IF(COUNTA('Financial Results'!H31),'Financial Results'!H31,\"\")","v":""}]
[null,null,null,null,null,2,"Operating expenses",null,null,null,null,null,null,null,null,null,null,null,{"$f":"IF(COUNTA('Financial Results'!H32),'Financial Results'!H32,\"\")","v":""}]
[null,null,null,null,null,"(i)","Commissions & Brokerage (net) ",null,{"$f":"IF(COUNTA('Financial Results'!H33),'Financial Results'!H33,\"\")","v":""},null,null,"CommissionsAndBrokerageNet",null,null,null,null,null,null,{"$f":"IF(COUNTA('Financial Results'!H33),'Financial Results'!H33,\"\")","v":""}]
[null,null,null,null,null,"(ii)","Net commission ",null,{"$f":"IF(COUNTA('Financial Results'!H34),'Financial Results'!H34,\"\")","v":""},null,null,"NetCommission",null,null,null,null,null,null,{"$f":"IF(COUNTA('Financial Results'!H34),'Financial Results'!H34,\"\")","v":""}]
[null,null,null,null,null,"(iii)","Operating Expenses related to insurance business",null,null,null,null,null,null,null,null,null,null,null,{"$f":"IF(COUNTA('Financial Results'!H35),'Financial Results'!H35,\"\")","v":""}]
[null,null,null,null,null,"(a)","Employees remuneration and welfare expenses ",null,{"$f":"IF(COUNTA('Financial Results'!H36),'Financial Results'!H36,\"\")","v":""},null,null,"EmployeesRemunerationAndWelfareExpenses",null,null,null,null,null,null,{"$f":"IF(COUNTA('Financial Results'!H36),'Financial Results'!H36,\"\")","v":""}]
[null,null,null,null,null,"(b)","Other operating expenses",null,null,null,null,null,null,null,null,null,null,null,{"$f":"IF(COUNTA('Financial Results'!H37),'Financial Results'!H37,\"\")","v":""}]
[null,null,null,null,null,"i",null,null,{"$f":"IF(COUNTA('Financial Results'!H38),'Financial Results'!H38,\"\")","v":""},null,null,null,null,null,null,null,null,null,{"$f":"IF(COUNTA('Financial Results'!H38),'Financial Results'!H38,\"\")","v":""}]
[null,null,null,null,null,"ii",null,null,{"$f":"IF(COUNTA('Financial Results'!H39),'Financial Results'!H39,\"\")","v":""},null,null,null,null,null,null,null,null,null,{"$f":"IF(COUNTA('Financial Results'!H39),'Financial Results'!H39,\"\")","v":""}]
[null,null,null,null,null,"iii",null,null,{"$f":"IF(COUNTA('Financial Results'!H40),'Financial Results'!H40,\"\")","v":""},null,null,null,null,null,null,null,null,null,{"$f":"IF(COUNTA('Financial Results'!H40),'Financial Results'!H40,\"\")","v":""}]
[null,null,null,null,null,"iv",null,null,{"$f":"IF(COUNTA('Financial Results'!H41),'Financial Results'!H41,\"\")","v":""},null,null,null,null,null,null,null,null,null,{"$f":"IF(COUNTA('Financial Results'!H41),'Financial Results'!H41,\"\")","v":""}]
[null,null,null,null,null,"v",null,null,{"$f":"IF(COUNTA('Financial Results'!H42),'Financial Results'!H42,\"\")","v":""},null,null,null,null,null,null,null,null,null,{"$f":"IF(COUNTA('Financial Results'!H42),'Financial Results'!H42,\"\")","v":""}]
[null,null,null,null,null,"vi",null,null,{"$f":"IF(COUNTA('Financial Results'!H43),'Financial Results'!H43,\"\")","v":""},null,null,null,null,null,null,null,null,null,{"$f":"IF(COUNTA('Financial Results'!H43),'Financial Results'!H43,\"\")","v":""}]
[null,null,null,null,null,"vii",null,null,{"$f":"IF(COUNTA('Financial Results'!H44),'Financial Results'!H44,\"\")","v":""},null,null,null,null,null,null,null,null,null,{"$f":"IF(COUNTA('Financial Results'!H44),'Financial Results'!H44,\"\")","v":""}]
[null,null,null,null,null,"viii",null,null,{"$f":"IF(COUNTA('Financial Results'!H45),'Financial Results'!H45,\"\")","v":""},null,null,null,null,null,null,null,null,null,{"$f":"IF(COUNTA('Financial Results'!H45),'Financial Results'!H45,\"\")","v":""}]
[null,null,null,null,null,"ix",null,null,{"$f":"IF(COUNTA('Financial Results'!H46),'Financial Results'!H46,\"\")","v":""},null,null,null,null,null,null,null,null,null,{"$f":"IF(COUNTA('Financial Results'!H46),'Financial Results'!H46,\"\")","v":""}]
[null,null,null,null,null,"x",null,null,{"$f":"IF(COUNTA('Financial Results'!H47),'Financial Results'!H47,\"\")","v":""},null,null,null,null,null,null,null,null,null,{"$f":"IF(COUNTA('Financial Results'!H47),'Financial Results'!H47,\"\")","v":""}]
[null,null,null,null,null,null,"Total other operating expenses",{"$f":"+IF(COUNT(H38:H47),SUM(H38:H47),\"\")","v":""},{"$f":"+IF(COUNT(I38:I47),SUM(I38:I47),\"\")","v":""},null,null,"OtherOperatingExpenses",null,null,null,null,null,null,{"$f":"IF(COUNTA('Financial Results'!H48),'Financial Results'!H48,\"\")","v":""}]
[null,null,null,null,null,"(c)","Total operating expenses related to insurance business",{"$f":"+IF(COUNT(H48,H36),+SUM(H36)+SUM(H48),\"\")","v":""},{"$f":"+IF(COUNT(I48,I36),+SUM(I36)+SUM(I48),\"\")","v":""},null,null,"OperatingExpensesRelatedToInsuranceBusiness",null,null,null,null,null,null,{"$f":"IF(COUNTA('Financial Results'!H49),'Financial Results'!H49,\"\")","v":""}]
[null,null,null,null,null,"(iv)","Premium Deficiency",null,{"$f":"IF(COUNTA('Financial Results'!H50),'Financial Results'!H50,\"\")","v":""},null,null,"PremiumDeficiency",null,null,null,null,null,null,{"$f":"IF(COUNTA('Financial Results'!H50),'Financial Results'!H50,\"\")","v":""}]
[null,null,null,null,null,"(v)","Incurred Claims",null,null,null,null,"IncurredClaimsAbstract",null,null,null,null,null,null,{"$f":"IF(COUNTA('Financial Results'!H51),'Financial Results'!H51,\"\")","v":""}]
[null,null,null,null,null,"(a)","Claims Paid",null,{"$f":"IF(COUNTA('Financial Results'!H52),'Financial Results'!H52,\"\")","v":""},null,null,"ClaimsPaid",null,null,null,null,null,null,{"$f":"IF(COUNTA('Financial Results'!H52),'Financial Results'!H52,\"\")","v":""}]
[null,null,null,null,null,"(b)","Change in Outstanding Claims (incl. IBNR/IBNER)",null,{"$f":"IF(COUNTA('Financial Results'!H53),'Financial Results'!H53,\"\")","v":""},null,null,"ChangeInOutstandingClaims",null,null,null,null,null,null,{"$f":"IF(COUNTA('Financial Results'!H53),'Financial Results'!H53,\"\")","v":""}]
[null,null,null,null,null,null,"Total Incurred claims",{"$f":"+IF(COUNT(H52:H53),SUM(H52:H53),\"\")","v":""},{"$f":"+IF(COUNT(I52:I53),SUM(I52:I53),\"\")","v":""},null,null,"IncurredClaims",null,null,null,null,null,null,{"$f":"IF(COUNTA('Financial Results'!H54),'Financial Results'!H54,\"\")","v":""}]
[null,null,null,null,null,"(vi)","Total Expense",{"$f":"+IF(COUNT(H34,H49,H50,H54),SUM(H34,H49,H50,H54),\"\")","v":""},{"$f":"+IF(COUNT(I34,I49,I50,I54),SUM(I34,I49,I50,I54),\"\")","v":""},null,null,"OperatingExpenses",null,null,null,null,null,null,{"$f":"IF(COUNTA('Financial Results'!H55),'Financial Results'!H55,\"\")","v":""}]
[null,null,null,null,null,"(vii)","Underwriting Profit(Loss)",{"$f":"+IF(COUNT(H55,H17),SUM(H17)-SUM(H55),\"\")","v":""},{"$f":"+IF(COUNT(I55,I17),SUM(I17)-SUM(I55),\"\")","v":""},null,null,"UnderwritingProfitOrLoss",null,null,null,null,null,null,{"$f":"IF(COUNTA('Financial Results'!H56),'Financial Results'!H56,\"\")","v":""}]
[null,null,null,null,null,"(viii)","Provisions for doubtful debts (including bad debts written off)",null,{"$f":"IF(COUNTA('Financial Results'!H57),'Financial Results'!H57,\"\")","v":""},null,null,"ProvisionsForDoubtfulDebtsIncludingBadDebtsWrittenOff",null,null,null,null,null,null,{"$f":"IF(COUNTA('Financial Results'!H57),'Financial Results'!H57,\"\")","v":""}]
[null,null,null,null,null,"(ix)","Provisions for diminution in value of investments",null,{"$f":"IF(COUNTA('Financial Results'!H58),'Financial Results'!H58,\"\")","v":""},null,null,"ProvisionsForDiminutionInValueOfInvestments",null,null,null,null,null,null,{"$f":"IF(COUNTA('Financial Results'!H58),'Financial Results'!H58,\"\")","v":""}]
[null,null,null,null,null,"(x)","Operating Profit/loss: ",{"$f":"+IF(COUNT(H31,H55),SUM(H31)-SUM(H55),\"\")","v":""},{"$f":"+IF(COUNT(I31,I55),SUM(I31)-SUM(I55),\"\")","v":""},null,null,"OperatingProfitOrLoss",null,null,null,null,null,null,{"$f":"IF(COUNTA('Financial Results'!H59),'Financial Results'!H59,\"\")","v":""}]
[null,null,null,null,null,"(xi)","Appropriations",null,null,null,null,null,null,null,null,null,null,null,{"$f":"IF(COUNTA('Financial Results'!H60),'Financial Results'!H60,\"\")","v":""}]
[null,null,null,null,null,"(a)","Transfer to Profit and Loss A/c",null,{"$f":"IF(COUNTA('Financial Results'!H61),'Financial Results'!H61,\"\")","v":""},null,null,"TransferToProfitAndLossAccount",null,null,null,null,null,null,{"$f":"IF(COUNTA('Financial Results'!H61),'Financial Results'!H61,\"\")","v":""}]
[null,null,null,null,null,"(b)","Transfer to reserves",null,{"$f":"IF(COUNTA('Financial Results'!H62),'Financial Results'!H62,\"\")","v":""},null,null,"TransferToReserves",null,null,null,null,null,null,{"$f":"IF(COUNTA('Financial Results'!H62),'Financial Results'!H62,\"\")","v":""}]
[null,null,null,null,null,null,null,null,null,null,null,null,null,null,null,null,null,null,{"$f":"IF(COUNTA('Financial Results'!H63),'Financial Results'!H63,\"\")","v":""}]
[null,null,null,null,null,"NON-OPERATING RESULTS",null,null,null,null,null,null,null,null,null,null,null,null,{"$f":"IF(COUNTA('Financial Results'!H64),'Financial Results'!H64,\"\")","v":""}]
[null,null,null,null,null,1,"Income in shareholders’ account",null,null,null,null,null,null,null,null,null,null,null,{"$f":"IF(COUNTA('Financial Results'!H65),'Financial Results'!H65,\"\")","v":""}]
[null,null,null,null,null,"(a)","Transfer from Policyholders' Fund",null,{"$f":"IF(COUNTA('Financial Results'!H66),'Financial Results'!H66,\"\")","v":""},null,null,"ShareholdersAccountTransferFromPolicyholdersFund",null,null,null,null,null,null,{"$f":"IF(COUNTA('Financial Results'!H66),'Financial Results'!H66,\"\")","v":""}]
[null,null,null,null,null,"(b)","Income from investments ",null,{"$f":"IF(COUNTA('Financial Results'!H67),'Financial Results'!H67,\"\")","v":""},null,null,"ShareholdersAccountIncomeFromInvestments",null,null,null,null,null,null,{"$f":"IF(COUNTA('Financial Results'!H67),'Financial Results'!H67,\"\")","v":""}]
[null,null,null,null,null,"(c)","Other income",null,null,null,null,null,null,null,null,null,null,null,{"$f":"IF(COUNTA('Financial Results'!H68),'Financial Results'!H68,\"\")","v":""}]
[null,null,null,null,null,"i",null,null,{"$f":"IF(COUNTA('Financial Results'!H69),'Financial Results'!H69,\"\")","v":""},null,null,null,null,null,null,null,null,null,{"$f":"IF(COUNTA('Financial Results'!H69),'Financial Results'!H69,\"\")","v":""}]
[null,null,null,null,null,"ii",null,null,{"$f":"IF(COUNTA('Financial Results'!H70),'Financial Results'!H70,\"\")","v":""},null,null,null,null,null,null,null,null,null,{"$f":"IF(COUNTA('Financial Results'!H70),'Financial Results'!H70,\"\")","v":""}]
[null,null,null,null,null,"iii",null,null,{"$f":"IF(COUNTA('Financial Results'!H71),'Financial Results'!H71,\"\")","v":""},null,null,null,null,null,null,null,null,null,{"$f":"IF(COUNTA('Financial Results'!H71),'Financial Results'!H71,\"\")","v":""}]
[null,null,null,null,null,"iv",null,null,{"$f":"IF(COUNTA('Financial Results'!H72),'Financial Results'!H72,\"\")","v":""},null,null,null,null,null,null,null,null,null,{"$f":"IF(COUNTA('Financial Results'!H72),'Financial Results'!H72,\"\")","v":""}]
[null,null,null,null,null,"v",null,null,{"$f":"IF(COUNTA('Financial Results'!H73),'Financial Results'!H73,\"\")","v":""},null,null,null,null,null,null,null,null,null,{"$f":"IF(COUNTA('Financial Results'!H73),'Financial Results'!H73,\"\")","v":""}]
[null,null,null,null,null,"vi",null,null,{"$f":"IF(COUNTA('Financial Results'!H74),'Financial Results'!H74,\"\")","v":""},null,null,null,null,null,null,null,null,null,{"$f":"IF(COUNTA('Financial Results'!H74),'Financial Results'!H74,\"\")","v":""}]
[null,null,null,null,null,"vii",null,null,{"$f":"IF(COUNTA('Financial Results'!H75),'Financial Results'!H75,\"\")","v":""},null,null,null,null,null,null,null,null,null,{"$f":"IF(COUNTA('Financial Results'!H75),'Financial Results'!H75,\"\")","v":""}]
[null,null,null,null,null,"viii",null,null,{"$f":"IF(COUNTA('Financial Results'!H76),'Financial Results'!H76,\"\")","v":""},null,null,null,null,null,null,null,null,null,{"$f":"IF(COUNTA('Financial Results'!H76),'Financial Results'!H76,\"\")","v":""}]
[null,null,null,null,null,"ix",null,null,{"$f":"IF(COUNTA('Financial Results'!H77),'Financial Results'!H77,\"\")","v":""},null,null,null,null,null,null,null,null,null,{"$f":"IF(COUNTA('Financial Results'!H77),'Financial Results'!H77,\"\")","v":""}]
[null,null,null,null,null,"x",null,null,{"$f":"IF(COUNTA('Financial Results'!H78),'Financial Results'!H78,\"\")","v":""},null,null,null,null,null,null,null,null,null,{"$f":"IF(COUNTA('Financial Results'!H78),'Financial Results'!H78,\"\")","v":""}]
[null,null,null,null,null,null,"Total other income",{"$f":"+IF(COUNT(H69:H78),SUM(H69:H78),\"\")","v":""},{"$f":"+IF(COUNT(I69:I78),SUM(I69:I78),\"\")","v":""},null,null,"ShareholdersAccountOtherIncome",null,null,null,null,null,null,{"$f":"IF(COUNTA('Financial Results'!H79),'Financial Results'!H79,\"\")","v":""}]
[null,null,null,null,null,null,"Total income",{"$f":"+IF(COUNT(H79,H67,H66),+SUM(H67)+SUM(H79)+SUM(H66),\"\")","v":""},{"$f":"+IF(COUNT(I66,I79,I67),+SUM(I66)+SUM(I67)+SUM(I79),\"\")","v":""},null,null,"IncomeInShareholdersAccount",null,null,null,null,null,null,{"$f":"IF(COUNTA('Financial Results'!H80),'Financial Results'!H80,\"\")","v":""}]
[null,null,null,null,null,2,"Expenses",null,null,null,null,null,null,null,null,null,null,null,{"$f":"IF(COUNTA('Financial Results'!H81),'Financial Results'!H81,\"\")","v":""}]
[null,null,null,null,null,"(i)","Expenses other than those related to insurance business",null,{"$f":"IF(COUNTA('Financial Results'!H82),'Financial Results'!H82,\"\")","v":""},null,null,"NonOperatingExpensesOtherThanThoseRelatedToInsuranceBusiness",null,null,null,null,null,null,{"$f":"IF(COUNTA('Financial Results'!H82),'Financial Results'!H82,\"\")","v":""}]
[null,null,null,null,null,"(ii)","Provisions for doubtful debts (including bad debts written off)",null,{"$f":"IF(COUNTA('Financial Results'!H83),'Financial Results'!H83,\"\")","v":""},null,null,"NonOperatingProvisionsForDoubtfulDebtsIncludingBadDebtsWrittenOff",null,null,null,null,null,null,{"$f":"IF(COUNTA('Financial Results'!H83),'Financial Results'!H83,\"\")","v":""}]
[null,null,null,null,null,"(iii)","Provisions for diminution in value of investments",null,{"$f":"IF(COUNTA('Financial Results'!H84),'Financial Results'!H84,\"\")","v":""},null,null,"NonOperatingProvisionsForDiminutionInValueOfInvestments",null,null,null,null,null,null,{"$f":"IF(COUNTA('Financial Results'!H84),'Financial Results'!H84,\"\")","v":""}]
[null,null,null,null,null,null,"Total Expense",{"$f":"+IF(COUNT(H82:H84),SUM(H82:H84),\"\")","v":""},{"$f":"+IF(COUNT(I82:I84),SUM(I82:I84),\"\")","v":""},null,null,"NonOperatingExpense",null,null,null,null,null,null,{"$f":"IF(COUNTA('Financial Results'!H85),'Financial Results'!H85,\"\")","v":""}]
[null,null,null,null,null,3,"Profit / Loss before extraordinary items",{"$f":"+IF(COUNT(H80,H85),SUM(H80)-SUM(H85),\"\")","v":""},{"$f":"+IF(COUNT(I80,I85),SUM(I80)-SUM(I85),\"\")","v":""},null,null,"ProfitOrLossBeforeExtraordinaryItems",null,null,null,null,null,null,{"$f":"IF(COUNTA('Financial Results'!H86),'Financial Results'!H86,\"\")","v":""}]
[null,null,null,null,null,4,"Extraordinary Items ",null,{"$f":"IF(COUNTA('Financial Results'!H87),'Financial Results'!H87,\"\")","v":""},null,null,"ExtraordinaryItems",null,null,null,null,null,null,{"$f":"IF(COUNTA('Financial Results'!H87),'Financial Results'!H87,\"\")","v":""}]
[null,null,null,null,null,5,"Profit/ (loss)  before tax",{"$f":"+IF(COUNT(H86,H87),+SUM(H86)+SUM(H87),\"\")","v":""},{"$f":"+IF(COUNT(I86,I87),+SUM(I86)+SUM(I87),\"\")","v":""},null,null,"ProfitOrLossBeforeTax",null,null,null,null,null,null,{"$f":"IF(COUNTA('Financial Results'!H88),'Financial Results'!H88,\"\")","v":""}]
[null,null,null,null,null,6,"Provision for tax",null,{"$f":"IF(COUNTA('Financial Results'!H89),'Financial Results'!H89,\"\")","v":""},null,null,"ProvisionForTax",null,null,null,null,null,null,{"$f":"IF(COUNTA('Financial Results'!H89),'Financial Results'!H89,\"\")","v":""}]
[null,null,null,null,null,7,"Profit / (loss) after tax",{"$f":"+IF(COUNT(H88,H89),+SUM(H88)-SUM(H89),\"\")","v":""},{"$f":"+IF(COUNT(I88,I89),+SUM(I88)-SUM(I89),\"\")","v":""},null,null,"ProfitLossAfterTax",null,null,null,null,null,null,{"$f":"IF(COUNTA('Financial Results'!H90),'Financial Results'!H90,\"\")","v":""}]
[null,null,null,null,null,8,"Divident per share",null,null,null,null,null,null,null,null,null,null,null,{"$f":"IF(COUNTA('Financial Results'!H91),'Financial Results'!H91,\"\")","v":""}]
[null,null,null,null,null,"(a)","Interim Dividend",null,{"$f":"IF(COUNTA('Financial Results'!H92),'Financial Results'!H92,\"\")","v":""},null,null,"InterimDividend",null,null,null,null,null,null,{"$f":"IF(COUNTA('Financial Results'!H92),'Financial Results'!H92,\"\")","v":""}]
[null,null,null,null,null,"(b)","Final dividend",null,{"$f":"IF(COUNTA('Financial Results'!H93),'Financial Results'!H93,\"\")","v":""},null,null,"FinalDividend",null,null,null,null,null,null,{"$f":"IF(COUNTA('Financial Results'!H93),'Financial Results'!H93,\"\")","v":""}]
[null,null,null,null,null,9,"Opening Balance and Approproations from PAT (Net)",null,{"$f":"IF(COUNTA('Financial Results'!H94),'Financial Results'!H94,\"\")","v":""},null,null,"OpeningBalanceAndApproproationsFromPATNet",null,null,null,null,null,null,{"$f":"IF(COUNTA('Financial Results'!H94),'Financial Results'!H94,\"\")","v":""}]
[null,null,null,null,null,10,"Profit (loss) carried to balance sheet",null,{"$f":"IF(COUNTA('Financial Results'!H95),'Financial Results'!H95,\"\")","v":""},null,null,"ProfitLossCarriedToBalanceSheet",null,null,null,null,null,null,{"$f":"IF(COUNTA('Financial Results'!H95),'Financial Results'!H95,\"\")","v":""}]
[null,null,null,null,null,11,"Paid up equity capital",null,{"$f":"IF(COUNTA('Financial Results'!H96),'Financial Results'!H96,\"\")","v":""},null,null,"PaidUpEquityCapital",null,null,null,null,null,null,{"$f":"IF(COUNTA('Financial Results'!H96),'Financial Results'!H96,\"\")","v":""}]
[null,null,null,null,null,12,"Reserve and Surplus (Excluding Revualuation Reserve)",null,{"$f":"IF(COUNTA('Financial Results'!H97),'Financial Results'!H97,\"\")","v":""},null,null,"ReserveAndSurplus",null,null,null,null,null,null,{"$f":"IF(COUNTA('Financial Results'!H97),'Financial Results'!H97,\"\")","v":""}]
[null,null,null,null,null,13,"Fair value change account and revaluation reserve",null,{"$f":"IF(COUNTA('Financial Results'!H98),'Financial Results'!H98,\"\")","v":""},null,null,"FairValueChangeAccountAndRevaluationReserve",null,null,null,null,null,null,{"$f":"IF(COUNTA('Financial Results'!H98),'Financial Results'!H98,\"\")","v":""}]
[null,null,null,null,null,14,"Assets",null,null,null,null,null,null,null,null,null,null,null,{"$f":"IF(COUNTA('Financial Results'!H99),'Financial Results'!H99,\"\")","v":""}]
[null,null,null,null,null,"(a)","Investments",null,null,null,null,null,null,null,null,null,null,null,{"$f":"IF(COUNTA('Financial Results'!H100),'Financial Results'!H100,\"\")","v":""}]
[null,null,null,null,null,"(i)","Shareholders' Fund ",null,{"$f":"IF(COUNTA('Financial Results'!H101),'Financial Results'!H101,\"\")","v":""},null,null,"ShareholderFund",null,null,null,null,null,null,{"$f":"IF(COUNTA('Financial Results'!H101),'Financial Results'!H101,\"\")","v":""}]
[null,null,null,null,null,"(ii)","Policyholders' Fund",null,{"$f":"IF(COUNTA('Financial Results'!H102),'Financial Results'!H102,\"\")","v":""},null,null,"PolicyholdersFund",null,null,null,null,null,null,{"$f":"IF(COUNTA('Financial Results'!H102),'Financial Results'!H102,\"\")","v":""}]
[null,null,null,null,null,null,"Total investments",{"$f":"+IF(COUNT(H101:H102),SUM(H101:H102),\"\")","v":""},{"$f":"+IF(COUNT(I101:I102),SUM(I101:I102),\"\")","v":""},null,null,"Investments",null,null,null,null,null,null,{"$f":"IF(COUNTA('Financial Results'!H103),'Financial Results'!H103,\"\")","v":""}]
[null,null,null,null,null,"(b)"," Other Assets (Net of current liabilites and provisions)",null,{"$f":"IF(COUNTA('Financial Results'!H104),'Financial Results'!H104,\"\")","v":""},null,null,"OtherAssetsNetOfCurrentLiabilitiesAndProvisions",null,null,null,null,null,null,{"$f":"IF(COUNTA('Financial Results'!H104),'Financial Results'!H104,\"\")","v":""}]
[null,null,null,null,null,null,"Total assets",{"$f":"+IF(COUNT(H103,H104),SUM(H103)+SUM(H104),\"\")","v":""},{"$f":"+IF(COUNT(I103,I104),SUM(I103)+SUM(I104),\"\")","v":""},null,null,"Assets",null,null,null,null,null,null,{"$f":"IF(COUNTA('Financial Results'!H105),'Financial Results'!H105,\"\")","v":""}]
[null,null,null,null,null,null,null,null,null,null,null,null,null,null,null,null,null,null,{"$f":"IF(COUNTA('Financial Results'!H106),'Financial Results'!H106,\"\")","v":""}]
[null,null,null,null,null,"Analytical Ratios",null,null,null,null,null,null,null,null,null,null,null,null,{"$f":"IF(COUNTA('Financial Results'!H107),'Financial Results'!H107,\"\")","v":""}]
[null,null,null,null,null,"(i)","Solvency ratio",null,{"$f":"IF(COUNTA('Financial Results'!H108),'Financial Results'!H108,\"\")","v":""},null,null,"SolvencyRatio",null,null,null,null,null,null,{"$f":"IF(COUNTA('Financial Results'!H108),'Financial Results'!H108,\"\")","v":""}]
[null,null,null,null,null,"(ii)","Expenses of management ratio",null,{"$f":"IF(COUNTA('Financial Results'!H109),'Financial Results'!H109,\"\")","v":""},null,null,"ExpensesOfManagementRatio",null,null,null,null,null,null,{"$f":"IF(COUNTA('Financial Results'!H109),'Financial Results'!H109,\"\")","v":""}]
[null,null,null,null,null,"(iii)","Incurred Claim Ratio",null,{"$f":"IF(COUNTA('Financial Results'!H110),'Financial Results'!H110,\"\")","v":""},null,null,"IncurredClaimRatio",null,null,null,null,null,null,{"$f":"IF(COUNTA('Financial Results'!H110),'Financial Results'!H110,\"\")","v":""}]
[null,null,null,null,null,"(iv)","Net retention ratio",null,{"$f":"IF(COUNTA('Financial Results'!H111),'Financial Results'!H111,\"\")","v":""},null,null,"NetRetentionRatio",null,null,null,null,null,null,{"$f":"IF(COUNTA('Financial Results'!H111),'Financial Results'!H111,\"\")","v":""}]
[null,null,null,null,null,"(v)","Combined ratio",null,{"$f":"IF(COUNTA('Financial Results'!H112),'Financial Results'!H112,\"\")","v":""},null,null,"CombinedRatio",null,null,null,null,null,null,{"$f":"IF(COUNTA('Financial Results'!H112),'Financial Results'!H112,\"\")","v":""}]
[null,null,null,null,null,"(vi)","Earning per share",null,null,null,null,null,null,null,null,null,null,null,{"$f":"IF(COUNTA('Financial Results'!H113),'Financial Results'!H113,\"\")","v":""}]
[null,null,null,null,null,"(a) ","Basic and diluated EPS before extraordinary items (net of tax expense) for the period (not to be annualized)",null,{"$f":"IF(COUNTA('Financial Results'!H114),'Financial Results'!H114,\"\")","v":""},null,null,"BasicAndDilutedEPSBeforeExtraordinaryItemsNetOfTaxExpenseForThePeriodNotToBeAnnualized",null,null,null,null,null,null,{"$f":"IF(COUNTA('Financial Results'!H114),'Financial Results'!H114,\"\")","v":""}]
[null,null,null,null,null,"(b)  ","Basic and diluted EPS after extraordinary items (net of tax expense) for the period (not to be annualized)",null,{"$f":"IF(COUNTA('Financial Results'!H115),'Financial Results'!H115,\"\")","v":""},null,null,"BasicAndDilutedEPSAfterExtraordinaryItemsNetOfTaxExpenseForThePeriodNotToBeAnnualized",null,null,null,null,null,null,{"$f":"IF(COUNTA('Financial Results'!H115),'Financial Results'!H115,\"\")","v":""}]
[null,null,null,null,null,"(vii)","NPA ratios",null,null,null,null,null,null,null,null,null,null,null,{"$f":"IF(COUNTA('Financial Results'!H116),'Financial Results'!H116,\"\")","v":""}]
[null,null,null,null,null,"(a) ","Gross NPAs",null,{"$f":"IF(COUNTA('Financial Results'!H117),'Financial Results'!H117,\"\")","v":""},null,null,"GrossNPAsPolicyholdersFund",null,null,null,null,null,null,{"$f":"IF(COUNTA('Financial Results'!H117),'Financial Results'!H117,\"\")","v":""}]
[null,null,null,null,null,"(c) ","Net NPAs",null,{"$f":"IF(COUNTA('Financial Results'!H118),'Financial Results'!H118,\"\")","v":""},null,null,"NetNPAsPolicyholdersFund",null,null,null,null,null,null,{"$f":"IF(COUNTA('Financial Results'!H118),'Financial Results'!H118,\"\")","v":""}]
[null,null,null,null,null,"(b) ","Percentage of Gross NPAs",null,{"$f":"IF(COUNTA('Financial Results'!H119),'Financial Results'!H119,\"\")","v":""},null,null,"PercentageOfGrossNPAsPolicyholdersFund",null,null,null,null,null,null,{"$f":"IF(COUNTA('Financial Results'!H119),'Financial Results'!H119,\"\")","v":""}]
[null,null,null,null,null,"(d) ","Percentage of net NPAs",null,{"$f":"IF(COUNTA('Financial Results'!H120),'Financial Results'!H120,\"\")","v":""},null,null,"PercentageOfNetNPAsPolicyholdersFund",null,null,null,null,null,null,{"$f":"IF(COUNTA('Financial Results'!H120),'Financial Results'!H120,\"\")","v":""}]
[null,null,null,null,null,"(viii)","Yield on Investments",null,null,null,null,null,null,null,null,null,null,null,{"$f":"IF(COUNTA('Financial Results'!H121),'Financial Results'!H121,\"\")","v":""}]
[null,null,null,null,null,"(a) ","Without unrealized gains",null,{"$f":"IF(COUNTA('Financial Results'!H122),'Financial Results'!H122,\"\")","v":""},null,null,"WithoutUnrealizedGains",null,null,null,null,null,null,{"$f":"IF(COUNTA('Financial Results'!H122),'Financial Results'!H122,\"\")","v":""}]
[null,null,null,null,null,"(b)  ","With unrealised gains",null,{"$f":"IF(COUNTA('Financial Results'!H123),'Financial Results'!H123,\"\")","v":""},null,null,"WithUnrealisedGains",null,null,null,null,null,null,{"$f":"IF(COUNTA('Financial Results'!H123),'Financial Results'!H123,\"\")","v":""}]
[null,null,null,null,null,"(ix)","Public shareholding (in case of public sector insurance companies)",null,null,null,null,null,null,null,null,null,null,null,{"$f":"IF(COUNTA('Financial Results'!H124),'Financial Results'!H124,\"\")","v":""}]
[null,null,null,null,null,"(a) ","Number of shares",null,{"$f":"IF(COUNTA('Financial Results'!H125),'Financial Results'!H125,\"\")","v":""},null,null,"NumberOfShares",null,null,null,null,null,null,{"$f":"IF(COUNTA('Financial Results'!H125),'Financial Results'!H125,\"\")","v":""}]
[null,null,null,null,null,"(b)  ","Percentage of shareholding",null,{"$f":"IF(COUNTA('Financial Results'!H126),'Financial Results'!H126,\"\")","v":""},null,null,"PercentageOfShareholding",null,null,null,null,null,null,{"$f":"IF(COUNTA('Financial Results'!H126),'Financial Results'!H126,\"\")","v":""}]
[null,null,null,null,null,"(c)","Percentage of government holding",null,{"$f":"IF(COUNTA('Financial Results'!H127),'Financial Results'!H127,\"\")","v":""},null,null,"PercentageOfGovernmentHolding",null,null,null,null,null,null,{"$f":"IF(COUNTA('Financial Results'!H127),'Financial Results'!H127,\"\")","v":""}]
[null,null,null,null,null,null,null,null,null,null,null,"InvestorComplaintsAbstract",null,null,null,null,null,null,{"$f":"IF(COUNTA('Financial Results'!H128),'Financial Results'!H128,\"\")","v":""}]
[null,null,null,null,null,null,null,null,null,null,null,null,null,null,null,null,null,null,{"$f":"IF(COUNTA('Financial Results'!H129),'Financial Results'!H129,\"\")","v":""}]
[null,null,null,null,null,"Investor Compliants",null,null,null,null,null,null,null,null,null,null,null,null,{"$f":"IF(COUNTA('Financial Results'!H130),'Financial Results'!H130,\"\")","v":""}]
[null,null,null,null,null,"(i)","No of investor complaints pending at the beginning of the period",null,{"$f":"IF(COUNTA('Financial Results'!H131),'Financial Results'!H131,\"\")","v":""},null,null,"NoOfInvestorComplaintsPendingAtTheBeginningOfThePeriod",null,null,null,null,null,null,{"$f":"IF(COUNTA('Financial Results'!H131),'Financial Results'!H131,\"\")","v":""}]
[null,null,null,null,null,"(ii)","No of investor complaints during the period",null,{"$f":"IF(COUNTA('Financial Results'!H132),'Financial Results'!H132,\"\")","v":""},null,null,"NoOfInvestorComplaintsDuringThePeriod",null,null,null,null,null,null,{"$f":"IF(COUNTA('Financial Results'!H132),'Financial Results'!H132,\"\")","v":""}]
[null,null,null,null,null,"(iii)","No of investor complaints disposed off during the period",null,{"$f":"IF(COUNTA('Financial Results'!H133),'Financial Results'!H133,\"\")","v":""},null,null,"NoOfInvestorComplaintsDisposedOffDuringThePeriod",null,null,null,null,null,null,{"$f":"IF(COUNTA('Financial Results'!H133),'Financial Results'!H133,\"\")","v":""}]
[null,null,null,null,null,"(iv)","No of investor complaints remaining unresolved at the end of the period",{"$f":"+IF(COUNT(H131:H133),SUM(H131)+SUM(H132)-SUM(H133),\"\")","v":""},{"$f":"+IF(COUNT(I131:I133),SUM(I131)+SUM(I132)-SUM(I133),\"\")","v":""},null,null,"NoOfInvestorComplaintsRemainingUnresolvedAtTheEndOfThePeriod",null,null,null,null,null,null,{"$f":"IF(COUNTA('Financial Results'!H134),'Financial Results'!H134,\"\")","v":""}]
[null,null,null,null,null,null,null,null,null,null,null,null,null,null,null,null,null,null,{"$f":"IF(COUNTA('Financial Results'!H135),'Financial Results'!H135,\"\")","v":""}]
[null,null,null,null,null,"(c)","Notes Format for financial results by general insurance companies filed with stock exchanges",null,null,null,null,"DisclosureOfNotesOnFinancialResultsExplanatoryTextBlock"]
[null,null,null,null,null,null,null,null,null,null,null,null,null,null,null,null,null,null,{"$f":"IF(COUNTA('Financial Results'!H137),'Financial Results'!H137,\"\")","v":""}]

{"sheet":"1 Segment Income","index":3,"n_rows":110,"n_cols":109,"rows_kept":110,"cut":false,"hidden":false,"merged":[[109,7,109,8],[90,7,90,8],[95,7,95,8],[100,7,100,8],[65,7,65,8],[70,7,70,8],[75,7,75,8],[80,7,80,8],[85,7,85,8],[12,5,12,6],[12,7,12,8],[53,6,53,8],[55,7,55,8],[60,7,60,8],[45,7,45,8],[49,7,49,8],[13,7,13,8],[17,7,17,8],[33,7,33,8],[21,7,21,8],[25,7,25,8],[37,7,37,8],[41,7,41,8],[29,7,29,8],[7,5,7,8],[8,5,8,6],[9,5,9,6],[10,5,10,6],[11,5,11,6]]}
[]
[null,null,null,null,null,null,null,null,null,null,null,null,null,null,"Net premium","Income form investments","Other income",null,"Net premium","Income form investments","Other income",null,"Net premium","Income form investments","Other income",null,"Net premium","Income form investments","Other income",null,"Net premium","Income form investments","Other income",null,"Net premium","Income form investments","Other income",null,"Net premium","Income form investments","Other income",null,"Net premium","Income form investments","Other income",null,"Net premium","Income form investments","Other income",null,"Net premium","Income form investments","Other income",null,null,"Description of other reportable segments","Net premium","Income form investments","Other income",null,"Description of other reportable segments","Net premium","Income form investments","Other income",null,"Description of other reportable segments","Net premium","Income form investments","Other income",null,"Description of other reportable segments","Net premium","Income form investments","Other income",null,"Description of other reportable segments","Net premium","Income form investments","Other income",null,"Description of other reportable segments","Net premium","Income form investments","Other income",null,"Description of other reportable segments","Net premium","Income form investments","Other income",null,"Description of other reportable segments","Net premium","Income form investments","Other income",null,"Description of other reportable segments","Net premium","Income form investments","Other income",null,"Description of other reportable segments","Net premium","Income form investments","Other income",null,null,"Net premium","Income form investments","Other income"]
[]
[null,null,null,null,null,null,null,null,null,null,"Audited","Unaudited"]
[]
[]
[]
[null,null,null,null,null,"Format for financial results by general insurance companies filed with stock exchanges"]
[null,null,null,null,null,"Partiuclars",null,"Current Quarter","Year to Date Figures"]
[null,null,null,null,null,"Date of start of reporting period"]
[null,null,null,null,null,"Date of end of reporting period"]
[null,null,null,null,null,"Whether accounts are audited or unaudited",null,{"$f":"+IF(COUNTA('General Info'!E24),'General Info'!E24,\"\")","v":""},{"$f":"+IF(COUNTA('General Info'!E24),'General Info'!E24,\"\")","v":""}]
[null,null,null,null,null,"Segment Income"]
[null,null,null,null,null,1,"Fire",null,null,null,null,"FireMember"]
[null,null,null,null,null,"(i)","Net premium",null,{"$f":"+IF(COUNTA('1 Segment Income'!H15),'1 Segment Income'!H15,\"\")","v":""},null,null,"NetPremium",null,null,null,null,null,null,{"$f":"+IF(COUNTA('1 Segment Income'!H15),'1 Segment Income'!H15,\"\")","v":""}]
[null,null,null,null,null,"(ii)","Income form investments",null,{"$f":"+IF(COUNTA('1 Segment Income'!H16),'1 Segment Income'!H16,\"\")","v":""},null,null,"IncomeFormInvestments",null,null,null,null,null,null,{"$f":"+IF(COUNTA('1 Segment Income'!H16),'1 Segment Income'!H16,\"\")","v":""}]
[null,null,null,null,null,"(iii)","Other income",null,{"$f":"+IF(COUNTA('1 Segment Income'!H17),'1 Segment Income'!H17,\"\")","v":""},null,null,"OtherIncome",null,null,null,null,null,null,{"$f":"+IF(COUNTA('1 Segment Income'!H17),'1 Segment Income'!H17,\"\")","v":""}]
[null,null,null,null,null,2,"Marine",null,null,null,null,"MarineMember",null,null,null,null,null,null,{"$f":"+IF(COUNTA('1 Segment Income'!H18),'1 Segment Income'!H18,\"\")","v":""}]
[null,null,null,null,null,"(i)","Net premium",null,{"$f":"+IF(COUNTA('1 Segment Income'!H19),'1 Segment Income'!H19,\"\")","v":""},null,null,"NetPremium",null,null,null,null,null,null,{"$f":"+IF(COUNTA('1 Segment Income'!H19),'1 Segment Income'!H19,\"\")","v":""}]
[null,null,null,null,null,"(ii)","Income form investments",null,{"$f":"+IF(COUNTA('1 Segment Income'!H20),'1 Segment Income'!H20,\"\")","v":""},null,null,"IncomeFormInvestments",null,null,null,null,null,null,{"$f":"+IF(COUNTA('1 Segment Income'!H20),'1 Segment Income'!H20,\"\")","v":""}]
[null,null,null,null,null,"(iii)","Other income",null,{"$f":"+IF(COUNTA('1 Segment Income'!H21),'1 Segment Income'!H21,\"\")","v":""},null,null,"OtherIncome",null,null,null,null,null,null,{"$f":"+IF(COUNTA('1 Segment Income'!H21),'1 Segment Income'!H21,\"\")","v":""}]
[null,null,null,null,null,3,"Health including personal accident",null,null,null,null,"HealthIncludingPersonalAccidentMember",null,null,null,null,null,null,{"$f":"+IF(COUNTA('1 Segment Income'!H22),'1 Segment Income'!H22,\"\")","v":""}]
[null,null,null,null,null,"(i)","Net premium",null,{"$f":"+IF(COUNTA('1 Segment Income'!H23),'1 Segment Income'!H23,\"\")","v":""},null,null,"NetPremium",null,null,null,null,null,null,{"$f":"+IF(COUNTA('1 Segment Income'!H23),'1 Segment Income'!H23,\"\")","v":""}]
[null,null,null,null,null,"(ii)","Income form investments",null,{"$f":"+IF(COUNTA('1 Segment Income'!H24),'1 Segment Income'!H24,\"\")","v":""},null,null,"IncomeFormInvestments",null,null,null,null,null,null,{"$f":"+IF(COUNTA('1 Segment Income'!H24),'1 Segment Income'!H24,\"\")","v":""}]
[null,null,null,null,null,"(iii)","Other income",null,{"$f":"+IF(COUNTA('1 Segment Income'!H25),'1 Segment Income'!H25,\"\")","v":""},null,null,"OtherIncome",null,null,null,null,null,null,{"$f":"+IF(COUNTA('1 Segment Income'!H25),'1 Segment Income'!H25,\"\")","v":""}]
[null,null,null,null,null,4,"Health retail",null,null,null,null,"HealthRetailMember",null,null,null,null,null,null,{"$f":"+IF(COUNTA('1 Segment Income'!H26),'1 Segment Income'!H26,\"\")","v":""}]
[null,null,null,null,null,"(i)","Net premium",null,{"$f":"+IF(COUNTA('1 Segment Income'!H27),'1 Segment Income'!H27,\"\")","v":""},null,null,"NetPremium",null,null,null,null,null,null,{"$f":"+IF(COUNTA('1 Segment Income'!H27),'1 Segment Income'!H27,\"\")","v":""}]
[null,null,null,null,null,"(ii)","Income form investments",null,{"$f":"+IF(COUNTA('1 Segment Income'!H28),'1 Segment Income'!H28,\"\")","v":""},null,null,"IncomeFormInvestments",null,null,null,null,null,null,{"$f":"+IF(COUNTA('1 Segment Income'!H28),'1 Segment Income'!H28,\"\")","v":""}]
[null,null,null,null,null,"(iii)","Other income",null,{"$f":"+IF(COUNTA('1 Segment Income'!H29),'1 Segment Income'!H29,\"\")","v":""},null,null,"OtherIncome",null,null,null,null,null,null,{"$f":"+IF(COUNTA('1 Segment Income'!H29),'1 Segment Income'!H29,\"\")","v":""}]
[null,null,null,null,null,5,"Health group",null,null,null,null,"HealthGroupMember",null,null,null,null,null,null,{"$f":"+IF(COUNTA('1 Segment Income'!H30),'1 Segment Income'!H30,\"\")","v":""}]
[null,null,null,null,null,"(i)","Net premium",null,{"$f":"+IF(COUNTA('1 Segment Income'!H31),'1 Segment Income'!H31,\"\")","v":""},null,null,"NetPremium",null,null,null,null,null,null,{"$f":"+IF(COUNTA('1 Segment Income'!H31),'1 Segment Income'!H31,\"\")","v":""}]
[null,null,null,null,null,"(ii)","Income form investments",null,{"$f":"+IF(COUNTA('1 Segment Income'!H32),'1 Segment Income'!H32,\"\")","v":""},null,null,"IncomeFormInvestments",null,null,null,null,null,null,{"$f":"+IF(COUNTA('1 Segment Income'!H32),'1 Segment Income'!H32,\"\")","v":""}]
[null,null,null,null,null,"(iii)","Other income",null,{"$f":"+IF(COUNTA('1 Segment Income'!H33),'1 Segment Income'!H33,\"\")","v":""},null,null,"OtherIncome",null,null,null,null,null,null,{"$f":"+IF(COUNTA('1 Segment Income'!H33),'1 Segment Income'!H33,\"\")","v":""}]
[null,null,null,null,null,6,"Health government schemes",null,null,null,null,"HealthGovernmentSchemesMember",null,null,null,null,null,null,{"$f":"+IF(COUNTA('1 Segment Income'!H34),'1 Segment Income'!H34,\"\")","v":""}]
[null,null,null,null,null,"(i)","Net premium",null,{"$f":"+IF(COUNTA('1 Segment Income'!H35),'1 Segment Income'!H35,\"\")","v":""},null,null,"NetPremium",null,null,null,null,null,null,{"$f":"+IF(COUNTA('1 Segment Income'!H35),'1 Segment Income'!H35,\"\")","v":""}]
[null,null,null,null,null,"(ii)","Income form investments",null,{"$f":"+IF(COUNTA('1 Segment Income'!H36),'1 Segment Income'!H36,\"\")","v":""},null,null,"IncomeFormInvestments",null,null,null,null,null,null,{"$f":"+IF(COUNTA('1 Segment Income'!H36),'1 Segment Income'!H36,\"\")","v":""}]
[null,null,null,null,null,"(iii)","Other income",null,{"$f":"+IF(COUNTA('1 Segment Income'!H37),'1 Segment Income'!H37,\"\")","v":""},null,null,"OtherIncome",null,null,null,null,null,null,{"$f":"+IF(COUNTA('1 Segment Income'!H37),'1 Segment Income'!H37,\"\")","v":""}]
[null,null,null,null,null,7,"Motor",null,null,null,null,"MotorMember",null,null,null,null,null,null,{"$f":"+IF(COUNTA('1 Segment Income'!H38),'1 Segment Income'!H38,\"\")","v":""}]
[null,null,null,null,null,"(i)","Net premium",null,{"$f":"+IF(COUNTA('1 Segment Income'!H39),'1 Segment Income'!H39,\"\")","v":""},null,null,"NetPremium",null,null,null,null,null,null,{"$f":"+IF(COUNTA('1 Segment Income'!H39),'1 Segment Income'!H39,\"\")","v":""}]
[null,null,null,null,null,"(ii)","Income form investments",null,{"$f":"+IF(COUNTA('1 Segment Income'!H40),'1 Segment Income'!H40,\"\")","v":""},null,null,"IncomeFormInvestments",null,null,null,null,null,null,{"$f":"+IF(COUNTA('1 Segment Income'!H40),'1 Segment Income'!H40,\"\")","v":""}]
[null,null,null,null,null,"(iii)","Other income",null,{"$f":"+IF(COUNTA('1 Segment Income'!H41),'1 Segment Income'!H41,\"\")","v":""},null,null,"OtherIncome",null,null,null,null,null,null,{"$f":"+IF(COUNTA('1 Segment Income'!H41),'1 Segment Income'!H41,\"\")","v":""}]
[null,null,null,null,null,8,"Miscellaneous",null,null,null,null,"MiscellaneousMember",null,null,null,null,null,null,{"$f":"+IF(COUNTA('1 Segment Income'!H42),'1 Segment Income'!H42,\"\")","v":""}]
[null,null,null,null,null,"(i)","Net premium",null,{"$f":"+IF(COUNTA('1 Segment Income'!H43),'1 Segment Income'!H43,\"\")","v":""},null,null,"NetPremium",null,null,null,null,null,null,{"$f":"+IF(COUNTA('1 Segment Income'!H43),'1 Segment Income'!H43,\"\")","v":""}]
[null,null,null,null,null,"(ii)","Income form investments",null,{"$f":"+IF(COUNTA('1 Segment Income'!H44),'1 Segment Income'!H44,\"\")","v":""},null,null,"IncomeFormInvestments",null,null,null,null,null,null,{"$f":"+IF(COUNTA('1 Segment Income'!H44),'1 Segment Income'!H44,\"\")","v":""}]
[null,null,null,null,null,"(iii)","Other income",null,{"$f":"+IF(COUNTA('1 Segment Income'!H45),'1 Segment Income'!H45,\"\")","v":""},null,null,"OtherIncome",null,null,null,null,null,null,{"$f":"+IF(COUNTA('1 Segment Income'!H45),'1 Segment Income'!H45,\"\")","v":""}]
[null,null,null,null,null,8,"Retail",null,null,null,null,"RetailMember",null,null,null,null,null,null,{"$f":"+IF(COUNTA('1 Segment Income'!H46),'1 Segment Income'!H46,\"\")","v":""}]
[null,null,null,null,null,"(i)","Net premium",null,{"$f":"+IF(COUNTA('1 Segment Income'!H47),'1 Segment Income'!H47,\"\")","v":""},null,null,"NetPremium",null,null,null,null,null,null,{"$f":"+IF(COUNTA('1 Segment Income'!H47),'1 Segment Income'!H47,\"\")","v":""}]
[null,null,null,null,null,"(ii)","Income form investments",null,{"$f":"+IF(COUNTA('1 Segment Income'!H48),'1 Segment Income'!H48,\"\")","v":""},null,null,"IncomeFormInvestments",null,null,null,null,null,null,{"$f":"+IF(COUNTA('1 Segment Income'!H48),'1 Segment Income'!H48,\"\")","v":""}]
[null,null,null,null,null,"(iii)","Other income",null,{"$f":"+IF(COUNTA('1 Segment Income'!H49),'1 Segment Income'!H49,\"\")","v":""},null,null,"OtherIncome",null,null,null,null,null,null,{"$f":"+IF(COUNTA('1 Segment Income'!H49),'1 Segment Income'!H49,\"\")","v":""}]
[null,null,null,null,null,9,"Group and corporate",null,null,null,null,"GroupAndCorporateMember",null,null,null,null,null,null,{"$f":"+IF(COUNTA('1 Segment Income'!H50),'1 Segment Income'!H50,\"\")","v":""}]
[null,null,null,null,null,"(i)","Net premium",null,{"$f":"+IF(COUNTA('1 Segment Income'!H51),'1 Segment Income'!H51,\"\")","v":""},null,null,"NetPremium",null,null,null,null,null,null,{"$f":"+IF(COUNTA('1 Segment Income'!H51),'1 Segment Income'!H51,\"\")","v":""}]
[null,null,null,null,null,"(ii)","Income form investments",null,{"$f":"+IF(COUNTA('1 Segment Income'!H52),'1 Segment Income'!H52,\"\")","v":""},null,null,"IncomeFormInvestments",null,null,null,null,null,null,{"$f":"+IF(COUNTA('1 Segment Income'!H52),'1 Segment Income'!H52,\"\")","v":""}]
[null,null,null,null,null,"(iii)","Other income",null,{"$f":"+IF(COUNTA('1 Segment Income'!H53),'1 Segment Income'!H53,\"\")","v":""},null,null,"OtherIncome",null,null,null,null,null,null,{"$f":"+IF(COUNTA('1 Segment Income'!H53),'1 Segment Income'!H53,\"\")","v":""}]
[null,null,null,null,null,10,"Any other class as may be specified by the Authority. - Enter the name below",null,null,null,null,null,null,null,null,null,null,null,{"$f":"+IF(COUNTA('1 Segment Income'!H54),'1 Segment Income'!H54,\"\")","v":""}]
[null,null,null,null,null,"(1)","Other segment 1",null,null,null,null,"OtherReportableSegments1Member",null,null,null,null,null,null,{"$f":"+IF(COUNTA('1 Segment Income'!H55),'1 Segment Income'!H55,\"\")","v":""}]
[null,null,null,null,null,1,"Name of other segment",null,null,null,null,"DescriptionOfReportableSegments",null,null,null,null,null,null,{"$f":"+IF(COUNTA('1 Segment Income'!H56),'1 Segment Income'!H56,\"\")","v":""}]
[null,null,null,null,null,"(i)","Net premium",null,{"$f":"+IF(COUNTA('1 Segment Income'!H57),'1 Segment Income'!H57,\"\")","v":""},null,null,"NetPremium",null,null,null,null,null,null,{"$f":"+IF(COUNTA('1 Segment Income'!H57),'1 Segment Income'!H57,\"\")","v":""}]
[null,null,null,null,null,"(ii)","Income form investments",null,{"$f":"+IF(COUNTA('1 Segment Income'!H58),'1 Segment Income'!H58,\"\")","v":""},null,null,"IncomeFormInvestments",null,null,null,null,null,null,{"$f":"+IF(COUNTA('1 Segment Income'!H58),'1 Segment Income'!H58,\"\")","v":""}]
[null,null,null,null,null,"(iii)","Other income",null,{"$f":"+IF(COUNTA('1 Segment Income'!H59),'1 Segment Income'!H59,\"\")","v":""},null,null,"OtherIncome",null,null,null,null,null,null,{"$f":"+IF(COUNTA('1 Segment Income'!H59),'1 Segment Income'!H59,\"\")","v":""}]
[null,null,null,null,null,"(2)","Other segment 2",null,null,null,null,"OtherReportableSegments2Member",null,null,null,null,null,null,{"$f":"+IF(COUNTA('1 Segment Income'!H60),'1 Segment Income'!H60,\"\")","v":""}]
[null,null,null,null,null,null,"Name of other segment",null,null,null,null,"DescriptionOfReportableSegments",null,null,null,null,null,null,{"$f":"+IF(COUNTA('1 Segment Income'!H61),'1 Segment Income'!H61,\"\")","v":""}]
[null,null,null,null,null,"(i)","Net premium",null,{"$f":"+IF(COUNTA('1 Segment Income'!H62),'1 Segment Income'!H62,\"\")","v":""},null,null,"NetPremium",null,null,null,null,null,null,{"$f":"+IF(COUNTA('1 Segment Income'!H62),'1 Segment Income'!H62,\"\")","v":""}]
[null,null,null,null,null,"(ii)","Income form investments",null,{"$f":"+IF(COUNTA('1 Segment Income'!H63),'1 Segment Income'!H63,\"\")","v":""},null,null,"IncomeFormInvestments",null,null,null,null,null,null,{"$f":"+IF(COUNTA('1 Segment Income'!H63),'1 Segment Income'!H63,\"\")","v":""}]
[null,null,null,null,null,"(iii)","Other income",null,{"$f":"+IF(COUNTA('1 Segment Income'!H64),'1 Segment Income'!H64,\"\")","v":""},null,null,"OtherIncome",null,null,null,null,null,null,{"$f":"+IF(COUNTA('1 Segment Income'!H64),'1 Segment Income'!H64,\"\")","v":""}]
[null,null,null,null,null,"(3)","Other segment 3",null,null,null,null,"OtherReportableSegments3Member",null,null,null,null,null,null,{"$f":"+IF(COUNTA('1 Segment Income'!H65),'1 Segment Income'!H65,\"\")","v":""}]
[null,null,null,null,null,null,"Name of other segment",null,null,null,null,"DescriptionOfReportableSegments",null,null,null,null,null,null,{"$f":"+IF(COUNTA('1 Segment Income'!H66),'1 Segment Income'!H66,\"\")","v":""}]
[null,null,null,null,null,"(i)","Net premium",null,{"$f":"+IF(COUNTA('1 Segment Income'!H67),'1 Segment Income'!H67,\"\")","v":""},null,null,"NetPremium",null,null,null,null,null,null,{"$f":"+IF(COUNTA('1 Segment Income'!H67),'1 Segment Income'!H67,\"\")","v":""}]
[null,null,null,null,null,"(ii)","Income form investments",null,{"$f":"+IF(COUNTA('1 Segment Income'!H68),'1 Segment Income'!H68,\"\")","v":""},null,null,"IncomeFormInvestments",null,null,null,null,null,null,{"$f":"+IF(COUNTA('1 Segment Income'!H68),'1 Segment Income'!H68,\"\")","v":""}]
[null,null,null,null,null,"(iii)","Other income",null,{"$f":"+IF(COUNTA('1 Segment Income'!H69),'1 Segment Income'!H69,\"\")","v":""},null,null,"OtherIncome",null,null,null,null,null,null,{"$f":"+IF(COUNTA('1 Segment Income'!H69),'1 Segment Income'!H69,\"\")","v":""}]
[null,null,null,null,null,"(4)","Other segment 4",null,null,null,null,"OtherReportableSegments4Member",null,null,null,null,null,null,{"$f":"+IF(COUNTA('1 Segment Income'!H70),'1 Segment Income'!H70,\"\")","v":""}]
[null,null,null,null,null,null,"Name of other segment",null,null,null,null,"DescriptionOfReportableSegments",null,null,null,null,null,null,{"$f":"+IF(COUNTA('1 Segment Income'!H71),'1 Segment Income'!H71,\"\")","v":""}]
[null,null,null,null,null,"(i)","Net premium",null,{"$f":"+IF(COUNTA('1 Segment Income'!H72),'1 Segment Income'!H72,\"\")","v":""},null,null,"NetPremium",null,null,null,null,null,null,{"$f":"+IF(COUNTA('1 Segment Income'!H72),'1 Segment Income'!H72,\"\")","v":""}]
[null,null,null,null,null,"(ii)","Income form investments",null,{"$f":"+IF(COUNTA('1 Segment Income'!H73),'1 Segment Income'!H73,\"\")","v":""},null,null,"IncomeFormInvestments",null,null,null,null,null,null,{"$f":"+IF(COUNTA('1 Segment Income'!H73),'1 Segment Income'!H73,\"\")","v":""}]
[null,null,null,null,null,"(iii)","Other income",null,{"$f":"+IF(COUNTA('1 Segment Income'!H74),'1 Segment Income'!H74,\"\")","v":""},null,null,"OtherIncome",null,null,null,null,null,null,{"$f":"+IF(COUNTA('1 Segment Income'!H74),'1 Segment Income'!H74,\"\")","v":""}]
[null,null,null,null,null,"(5)","Other segment 5",null,null,null,null,"OtherReportableSegments5Member",null,null,null,null,null,null,{"$f":"+IF(COUNTA('1 Segment Income'!H75),'1 Segment Income'!H75,\"\")","v":""}]
[null,null,null,null,null,null,"Name of other segment",null,null,null,null,"DescriptionOfReportableSegments",null,null,null,null,null,null,{"$f":"+IF(COUNTA('1 Segment Income'!H76),'1 Segment Income'!H76,\"\")","v":""}]
[null,null,null,null,null,"(i)","Net premium",null,{"$f":"+IF(COUNTA('1 Segment Income'!H77),'1 Segment Income'!H77,\"\")","v":""},null,null,"NetPremium",null,null,null,null,null,null,{"$f":"+IF(COUNTA('1 Segment Income'!H77),'1 Segment Income'!H77,\"\")","v":""}]
[null,null,null,null,null,"(ii)","Income form investments",null,{"$f":"+IF(COUNTA('1 Segment Income'!H78),'1 Segment Income'!H78,\"\")","v":""},null,null,"IncomeFormInvestments",null,null,null,null,null,null,{"$f":"+IF(COUNTA('1 Segment Income'!H78),'1 Segment Income'!H78,\"\")","v":""}]
[null,null,null,null,null,"(iii)","Other income",null,{"$f":"+IF(COUNTA('1 Segment Income'!H79),'1 Segment Income'!H79,\"\")","v":""},null,null,"OtherIncome",null,null,null,null,null,null,{"$f":"+IF(COUNTA('1 Segment Income'!H79),'1 Segment Income'!H79,\"\")","v":""}]
[null,null,null,null,null,"(6)","Other segment 6",null,null,null,null,"OtherReportableSegments6Member",null,null,null,null,null,null,{"$f":"+IF(COUNTA('1 Segment Income'!H80),'1 Segment Income'!H80,\"\")","v":""}]
[null,null,null,null,null,null,"Name of other segment",null,null,null,null,"DescriptionOfReportableSegments",null,null,null,null,null,null,{"$f":"+IF(COUNTA('1 Segment Income'!H81),'1 Segment Income'!H81,\"\")","v":""}]
[null,null,null,null,null,"(i)","Net premium",null,{"$f":"+IF(COUNTA('1 Segment Income'!H82),'1 Segment Income'!H82,\"\")","v":""},null,null,"NetPremium",null,null,null,null,null,null,{"$f":"+IF(COUNTA('1 Segment Income'!H82),'1 Segment Income'!H82,\"\")","v":""}]
[null,null,null,null,null,"(ii)","Income form investments",null,{"$f":"+IF(COUNTA('1 Segment Income'!H83),'1 Segment Income'!H83,\"\")","v":""},null,null,"IncomeFormInvestments",null,null,null,null,null,null,{"$f":"+IF(COUNTA('1 Segment Income'!H83),'1 Segment Income'!H83,\"\")","v":""}]
[null,null,null,null,null,"(iii)","Other income",null,{"$f":"+IF(COUNTA('1 Segment Income'!H84),'1 Segment Income'!H84,\"\")","v":""},null,null,"OtherIncome",null,null,null,null,null,null,{"$f":"+IF(COUNTA('1 Segment Income'!H84),'1 Segment Income'!H84,\"\")","v":""}]
[null,null,null,null,null,"(7)","Other segment 7",null,null,null,null,"OtherReportableSegments7Member",null,null,null,null,null,null,{"$f":"+IF(COUNTA('1 Segment Income'!H85),'1 Segment Income'!H85,\"\")","v":""}]
[null,null,null,null,null,null,"Name of other segment",null,null,null,null,"DescriptionOfReportableSegments",null,null,null,null,null,null,{"$f":"+IF(COUNTA('1 Segment Income'!H86),'1 Segment Income'!H86,\"\")","v":""}]
[null,null,null,null,null,"(i)","Net premium",null,{"$f":"+IF(COUNTA('1 Segment Income'!H87),'1 Segment Income'!H87,\"\")","v":""},null,null,"NetPremium",null,null,null,null,null,null,{"$f":"+IF(COUNTA('1 Segment Income'!H87),'1 Segment Income'!H87,\"\")","v":""}]
[null,null,null,null,null,"(ii)","Income form investments",null,{"$f":"+IF(COUNTA('1 Segment Income'!H88),'1 Segment Income'!H88,\"\")","v":""},null,null,"IncomeFormInvestments",null,null,null,null,null,null,{"$f":"+IF(COUNTA('1 Segment Income'!H88),'1 Segment Income'!H88,\"\")","v":""}]
[null,null,null,null,null,"(iii)","Other income",null,{"$f":"+IF(COUNTA('1 Segment Income'!H89),'1 Segment Income'!H89,\"\")","v":""},null,null,"OtherIncome",null,null,null,null,null,null,{"$f":"+IF(COUNTA('1 Segment Income'!H89),'1 Segment Income'!H89,\"\")","v":""}]
[null,null,null,null,null,"(8)","Other segment 8",null,null,null,null,"OtherReportableSegments8Member",null,null,null,null,null,null,{"$f":"+IF(COUNTA('1 Segment Income'!H90),'1 Segment Income'!H90,\"\")","v":""}]
[null,null,null,null,null,null,"Name of other segment",null,null,null,null,"DescriptionOfReportableSegments",null,null,null,null,null,null,{"$f":"+IF(COUNTA('1 Segment Income'!H91),'1 Segment Income'!H91,\"\")","v":""}]
[null,null,null,null,null,"(i)","Net premium",null,{"$f":"+IF(COUNTA('1 Segment Income'!H92),'1 Segment Income'!H92,\"\")","v":""},null,null,"NetPremium",null,null,null,null,null,null,{"$f":"+IF(COUNTA('1 Segment Income'!H92),'1 Segment Income'!H92,\"\")","v":""}]
[null,null,null,null,null,"(ii)","Income form investments",null,{"$f":"+IF(COUNTA('1 Segment Income'!H93),'1 Segment Income'!H93,\"\")","v":""},null,null,"IncomeFormInvestments",null,null,null,null,null,null,{"$f":"+IF(COUNTA('1 Segment Income'!H93),'1 Segment Income'!H93,\"\")","v":""}]
[null,null,null,null,null,"(iii)","Other income",null,{"$f":"+IF(COUNTA('1 Segment Income'!H94),'1 Segment Income'!H94,\"\")","v":""},null,null,"OtherIncome",null,null,null,null,null,null,{"$f":"+IF(COUNTA('1 Segment Income'!H94),'1 Segment Income'!H94,\"\")","v":""}]
[null,null,null,null,null,"(9)","Other segment 9",null,null,null,null,"OtherReportableSegments9Member",null,null,null,null,null,null,{"$f":"+IF(COUNTA('1 Segment Income'!H95),'1 Segment Income'!H95,\"\")","v":""}]
[null,null,null,null,null,null,"Name of other segment",null,null,null,null,"DescriptionOfReportableSegments",null,null,null,null,null,null,{"$f":"+IF(COUNTA('1 Segment Income'!H96),'1 Segment Income'!H96,\"\")","v":""}]
[null,null,null,null,null,"(i)","Net premium",null,{"$f":"+IF(COUNTA('1 Segment Income'!H97),'1 Segment Income'!H97,\"\")","v":""},null,null,"NetPremium",null,null,null,null,null,null,{"$f":"+IF(COUNTA('1 Segment Income'!H97),'1 Segment Income'!H97,\"\")","v":""}]
[null,null,null,null,null,"(ii)","Income form investments",null,{"$f":"+IF(COUNTA('1 Segment Income'!H98),'1 Segment Income'!H98,\"\")","v":""},null,null,"IncomeFormInvestments",null,null,null,null,null,null,{"$f":"+IF(COUNTA('1 Segment Income'!H98),'1 Segment Income'!H98,\"\")","v":""}]
[null,null,null,null,null,"(iii)","Other income",null,{"$f":"+IF(COUNTA('1 Segment Income'!H99),'1 Segment Income'!H99,\"\")","v":""},null,null,"OtherIncome",null,null,null,null,null,null,{"$f":"+IF(COUNTA('1 Segment Income'!H99),'1 Segment Income'!H99,\"\")","v":""}]
[null,null,null,null,null,"(10)","Other segment 10",null,null,null,null,"OtherReportableSegments10Member",null,null,null,null,null,null,{"$f":"+IF(COUNTA('1 Segment Income'!H100),'1 Segment Income'!H100,\"\")","v":""}]
[null,null,null,null,null,null,"Name of other segment",null,null,null,null,"DescriptionOfReportableSegments",null,null,null,null,null,null,{"$f":"+IF(COUNTA('1 Segment Income'!H101),'1 Segment Income'!H101,\"\")","v":""}]
[null,null,null,null,null,"(i)","Net premium",null,{"$f":"+IF(COUNTA('1 Segment Income'!H102),'1 Segment Income'!H102,\"\")","v":""},null,null,"NetPremium",null,null,null,null,null,null,{"$f":"+IF(COUNTA('1 Segment Income'!H102),'1 Segment Income'!H102,\"\")","v":""}]
[null,null,null,null,null,"(ii)","Income form investments",null,{"$f":"+IF(COUNTA('1 Segment Income'!H103),'1 Segment Income'!H103,\"\")","v":""},null,null,"IncomeFormInvestments",null,null,null,null,null,null,{"$f":"+IF(COUNTA('1 Segment Income'!H103),'1 Segment Income'!H103,\"\")","v":""}]
[null,null,null,null,null,"(iii)","Other income",null,{"$f":"+IF(COUNTA('1 Segment Income'!H104),'1 Segment Income'!H104,\"\")","v":""},null,null,"OtherIncome",null,null,null,null,null,null,{"$f":"+IF(COUNTA('1 Segment Income'!H104),'1 Segment Income'!H104,\"\")","v":""}]
[null,null,null,null,null,null,null,null,null,null,null,null,null,null,null,null,null,null,{"$f":"+IF(COUNTA('1 Segment Income'!H105),'1 Segment Income'!H105,\"\")","v":""}]
[null,null,null,null,null,11,"Unallocated",null,null,null,null,"UnallocatedMember",null,null,null,null,null,null,{"$f":"+IF(COUNTA('1 Segment Income'!H106),'1 Segment Income'!H106,\"\")","v":""}]
[null,null,null,null,null,"(i)","Net premium",null,{"$f":"+IF(COUNTA('1 Segment Income'!H107),'1 Segment Income'!H107,\"\")","v":""},null,null,"NetPremium",null,null,null,null,null,null,{"$f":"+IF(COUNTA('1 Segment Income'!H107),'1 Segment Income'!H107,\"\")","v":""}]
[null,null,null,null,null,"(ii)","Income form investments",null,{"$f":"+IF(COUNTA('1 Segment Income'!H108),'1 Segment Income'!H108,\"\")","v":""},null,null,"IncomeFormInvestments",null,null,null,null,null,null,{"$f":"+IF(COUNTA('1 Segment Income'!H108),'1 Segment Income'!H108,\"\")","v":""}]
[null,null,null,null,null,"(iii)","Other income",null,{"$f":"+IF(COUNTA('1 Segment Income'!H109),'1 Segment Income'!H109,\"\")","v":""},null,null,"OtherIncome",null,null,null,null,null,null,{"$f":"+IF(COUNTA('1 Segment Income'!H109),'1 Segment Income'!H109,\"\")","v":""}]
[null,null,null,null,null,12,"Notes to the Income",null,null,null,null,"DisclosureOfNotesOnSegmentIncomeExplanatoryTextBlock"]

{"sheet":"2 Segment Premium Deficiency","index":4,"n_rows":38,"n_cols":19,"rows_kept":38,"cut":false,"hidden":false,"merged":[[37,7,37,8],[35,5,35,8],[12,5,12,6],[12,7,12,8],[7,5,7,8],[8,5,8,6],[9,5,9,6],[10,5,10,6],[11,5,11,6]]}
[]
[]
[]
[null,null,null,null,null,null,null,null,null,null,"Audited","Unaudited"]
[]
[]
[]
[null,null,null,null,null,"Format for financial results by general insurance companies filed with stock exchanges"]
[null,null,null,null,null,"Partiuclars",null,"Current Quarter","Year to Date Figures"]
[null,null,null,null,null,"Date of start of reporting period"]
[null,null,null,null,null,"Date of end of reporting period"]
[null,null,null,null,null,"Whether accounts are audited or unaudited",null,{"$f":"+IF(COUNTA('General Info'!E24),'General Info'!E24,\"\")","v":""},{"$f":"+IF(COUNTA('General Info'!E24),'General Info'!E24,\"\")","v":""}]
[null,null,null,null,null,"Segment Premium Deficiency"]
[null,null,null,null,null,1,"Fire",null,{"$f":"IF(COUNTA('2 Segment Premium Deficiency'!H14),'2 Segment Premium Deficiency'!H14,\"\")","v":""},null,"FireMember",null,"PremiumDeficiency",null,null,null,null,null,{"$f":"IF(COUNTA('2 Segment Premium Deficiency'!H14),'2 Segment Premium Deficiency'!H14,\"\")","v":""}]
[null,null,null,null,null,2,"Marine",null,{"$f":"IF(COUNTA('2 Segment Premium Deficiency'!H15),'2 Segment Premium Deficiency'!H15,\"\")","v":""},null,"MarineMember",null,"PremiumDeficiency",null,null,null,null,null,{"$f":"IF(COUNTA('2 Segment Premium Deficiency'!H15),'2 Segment Premium Deficiency'!H15,\"\")","v":""}]
[null,null,null,null,null,3,"Health including personal accident",null,{"$f":"IF(COUNTA('2 Segment Premium Deficiency'!H16),'2 Segment Premium Deficiency'!H16,\"\")","v":""},null,"HealthIncludingPersonalAccidentMember",null,"PremiumDeficiency",null,null,null,null,null,{"$f":"IF(COUNTA('2 Segment Premium Deficiency'!H16),'2 Segment Premium Deficiency'!H16,\"\")","v":""}]
[null,null,null,null,null,4,"Health retail",null,{"$f":"IF(COUNTA('2 Segment Premium Deficiency'!H17),'2 Segment Premium Deficiency'!H17,\"\")","v":""},null,"HealthRetailMember",null,"PremiumDeficiency",null,null,null,null,null,{"$f":"IF(COUNTA('2 Segment Premium Deficiency'!H17),'2 Segment Premium Deficiency'!H17,\"\")","v":""}]
[null,null,null,null,null,5,"Health group",null,{"$f":"IF(COUNTA('2 Segment Premium Deficiency'!H18),'2 Segment Premium Deficiency'!H18,\"\")","v":""},null,"HealthGroupMember",null,"PremiumDeficiency",null,null,null,null,null,{"$f":"IF(COUNTA('2 Segment Premium Deficiency'!H18),'2 Segment Premium Deficiency'!H18,\"\")","v":""}]
[null,null,null,null,null,6,"Health government schemes",null,{"$f":"IF(COUNTA('2 Segment Premium Deficiency'!H19),'2 Segment Premium Deficiency'!H19,\"\")","v":""},null,"HealthGovernmentSchemesMember",null,"PremiumDeficiency",null,null,null,null,null,{"$f":"IF(COUNTA('2 Segment Premium Deficiency'!H19),'2 Segment Premium Deficiency'!H19,\"\")","v":""}]
[null,null,null,null,null,7,"Motor",null,{"$f":"IF(COUNTA('2 Segment Premium Deficiency'!H20),'2 Segment Premium Deficiency'!H20,\"\")","v":""},null,"MotorMember",null,"PremiumDeficiency",null,null,null,null,null,{"$f":"IF(COUNTA('2 Segment Premium Deficiency'!H20),'2 Segment Premium Deficiency'!H20,\"\")","v":""}]
[null,null,null,null,null,8,"Miscellaneous",null,{"$f":"IF(COUNTA('2 Segment Premium Deficiency'!H21),'2 Segment Premium Deficiency'!H21,\"\")","v":""},null,"MiscellaneousMember",null,"PremiumDeficiency",null,null,null,null,null,{"$f":"IF(COUNTA('2 Segment Premium Deficiency'!H21),'2 Segment Premium Deficiency'!H21,\"\")","v":""}]
[null,null,null,null,null,8,"Retail",null,{"$f":"IF(COUNTA('2 Segment Premium Deficiency'!H22),'2 Segment Premium Deficiency'!H22,\"\")","v":""},null,"RetailMember",null,"PremiumDeficiency",null,null,null,null,null,{"$f":"IF(COUNTA('2 Segment Premium Deficiency'!H22),'2 Segment Premium Deficiency'!H22,\"\")","v":""}]
[null,null,null,null,null,9,"Group and corporate",null,{"$f":"IF(COUNTA('2 Segment Premium Deficiency'!H23),'2 Segment Premium Deficiency'!H23,\"\")","v":""},null,"GroupAndCorporateMember",null,"PremiumDeficiency",null,null,null,null,null,{"$f":"IF(COUNTA('2 Segment Premium Deficiency'!H23),'2 Segment Premium Deficiency'!H23,\"\")","v":""}]
[null,null,null,null,null,10,"Any other class as may be specified by the Authority. - Enter the name below",null,null,null,null,null,null,null,null,null,null,null,{"$f":"IF(COUNTA('2 Segment Premium Deficiency'!H24),'2 Segment Premium Deficiency'!H24,\"\")","v":""}]
[null,null,null,null,null,null,"Name of Other Segment",null,null,null,null,null,null,null,null,null,null,null,{"$f":"IF(COUNTA('2 Segment Premium Deficiency'!H25),'2 Segment Premium Deficiency'!H25,\"\")","v":""}]
[null,null,null,null,null,1,{"$f":"+IF(COUNTA('1 Segment Income'!H56:I56),('1 Segment Income'!H56),\"\")","v":""},null,{"$f":"IF(COUNTA('2 Segment Premium Deficiency'!H26),'2 Segment Premium Deficiency'!H26,\"\")","v":""},null,"OtherReportableSegments1Member","DescriptionOfReportableSegments","PremiumDeficiency",null,null,null,null,null,{"$f":"IF(COUNTA('2 Segment Premium Deficiency'!H26),'2 Segment Premium Deficiency'!H26,\"\")","v":""}]
[null,null,null,null,null,2,{"$f":"+IF(COUNTA('1 Segment Income'!H61:I61),('1 Segment Income'!H61),\"\")","v":""},null,{"$f":"IF(COUNTA('2 Segment Premium Deficiency'!H27),'2 Segment Premium Deficiency'!H27,\"\")","v":""},null,"OtherReportableSegments2Member","DescriptionOfReportableSegments","PremiumDeficiency",null,null,null,null,null,{"$f":"IF(COUNTA('2 Segment Premium Deficiency'!H27),'2 Segment Premium Deficiency'!H27,\"\")","v":""}]
[null,null,null,null,null,3,{"$f":"+IF(COUNTA('1 Segment Income'!H66:I66),('1 Segment Income'!H66),\"\")","v":""},null,{"$f":"IF(COUNTA('2 Segment Premium Deficiency'!H28),'2 Segment Premium Deficiency'!H28,\"\")","v":""},null,"OtherReportableSegments3Member","DescriptionOfReportableSegments","PremiumDeficiency",null,null,null,null,null,{"$f":"IF(COUNTA('2 Segment Premium Deficiency'!H28),'2 Segment Premium Deficiency'!H28,\"\")","v":""}]
[null,null,null,null,null,4,{"$f":"+IF(COUNTA('1 Segment Income'!H71:I71),('1 Segment Income'!H71),\"\")","v":""},null,{"$f":"IF(COUNTA('2 Segment Premium Deficiency'!H29),'2 Segment Premium Deficiency'!H29,\"\")","v":""},null,"OtherReportableSegments4Member","DescriptionOfReportableSegments","PremiumDeficiency",null,null,null,null,null,{"$f":"IF(COUNTA('2 Segment Premium Deficiency'!H29),'2 Segment Premium Deficiency'!H29,\"\")","v":""}]
[null,null,null,null,null,5,{"$f":"+IF(COUNTA('1 Segment Income'!H76:I76),('1 Segment Income'!H76),\"\")","v":""},null,{"$f":"IF(COUNTA('2 Segment Premium Deficiency'!H30),'2 Segment Premium Deficiency'!H30,\"\")","v":""},null,"OtherReportableSegments5Member","DescriptionOfReportableSegments","PremiumDeficiency",null,null,null,null,null,{"$f":"IF(COUNTA('2 Segment Premium Deficiency'!H30),'2 Segment Premium Deficiency'!H30,\"\")","v":""}]
[null,null,null,null,null,6,{"$f":"+IF(COUNTA('1 Segment Income'!H81:I81),('1 Segment Income'!H81),\"\")","v":""},null,{"$f":"IF(COUNTA('2 Segment Premium Deficiency'!H31),'2 Segment Premium Deficiency'!H31,\"\")","v":""},null,"OtherReportableSegments6Member","DescriptionOfReportableSegments","PremiumDeficiency",null,null,null,null,null,{"$f":"IF(COUNTA('2 Segment Premium Deficiency'!H31),'2 Segment Premium Deficiency'!H31,\"\")","v":""}]
[null,null,null,null,null,7,{"$f":"+IF(COUNTA('1 Segment Income'!H86:I86),('1 Segment Income'!H86),\"\")","v":""},null,{"$f":"IF(COUNTA('2 Segment Premium Deficiency'!H32),'2 Segment Premium Deficiency'!H32,\"\")","v":""},null,"OtherReportableSegments7Member","DescriptionOfReportableSegments","PremiumDeficiency",null,null,null,null,null,{"$f":"IF(COUNTA('2 Segment Premium Deficiency'!H32),'2 Segment Premium Deficiency'!H32,\"\")","v":""}]
[null,null,null,null,null,8,{"$f":"+IF(COUNTA('1 Segment Income'!H91:I91),('1 Segment Income'!H91),\"\")","v":""},null,{"$f":"IF(COUNTA('2 Segment Premium Deficiency'!H33),'2 Segment Premium Deficiency'!H33,\"\")","v":""},null,"OtherReportableSegments8Member","DescriptionOfReportableSegments","PremiumDeficiency",null,null,null,null,null,{"$f":"IF(COUNTA('2 Segment Premium Deficiency'!H33),'2 Segment Premium Deficiency'!H33,\"\")","v":""}]
[null,null,null,null,null,9,{"$f":"+IF(COUNTA('1 Segment Income'!H96:I96),('1 Segment Income'!H96),\"\")","v":""},null,{"$f":"IF(COUNTA('2 Segment Premium Deficiency'!H34),'2 Segment Premium Deficiency'!H34,\"\")","v":""},null,"OtherReportableSegments9Member","DescriptionOfReportableSegments","PremiumDeficiency",null,null,null,null,null,{"$f":"IF(COUNTA('2 Segment Premium Deficiency'!H34),'2 Segment Premium Deficiency'!H34,\"\")","v":""}]
[null,null,null,null,null,10,{"$f":"+IF(COUNTA('1 Segment Income'!H101:I101),('1 Segment Income'!H101),\"\")","v":""},null,{"$f":"IF(COUNTA('2 Segment Premium Deficiency'!H35),'2 Segment Premium Deficiency'!H35,\"\")","v":""},null,"OtherReportableSegments10Member","DescriptionOfReportableSegments","PremiumDeficiency",null,null,null,null,null,{"$f":"IF(COUNTA('2 Segment Premium Deficiency'!H35),'2 Segment Premium Deficiency'!H35,\"\")","v":""}]
[null,null,null,null,null,null,null,null,null,null,null,null,null,null,null,null,null,null,{"$f":"IF(COUNTA('2 Segment Premium Deficiency'!H36),'2 Segment Premium Deficiency'!H36,\"\")","v":""}]
[null,null,null,null,null,11,"Unallocated",null,{"$f":"IF(COUNTA('2 Segment Premium Deficiency'!H37),'2 Segment Premium Deficiency'!H37,\"\")","v":""},null,"UnallocatedMember","DescriptionOfReportableSegments","PremiumDeficiency",null,null,null,null,null,{"$f":"IF(COUNTA('2 Segment Premium Deficiency'!H37),'2 Segment Premium Deficiency'!H37,\"\")","v":""}]
[null,null,null,null,null,12,"Notes to the Premium Deficiency",null,null,null,"DisclosureOfNotesOnSegmentPremiumDeficiencyExplanatoryTextBlock"]

{"sheet":"3 Segment Underwriting ProfLoss","index":5,"n_rows":38,"n_cols":19,"rows_kept":38,"cut":false,"hidden":false,"merged":[[37,7,37,8],[35,5,35,8],[12,5,12,6],[12,7,12,8],[7,5,7,8],[8,5,8,6],[9,5,9,6],[10,5,10,6],[11,5,11,6]]}
[]
[]
[]
[null,null,null,null,null,null,null,null,null,null,"Audited","Unaudited"]
[]
[]
[]
[null,null,null,null,null,"Format for financial results by general insurance companies filed with stock exchanges"]
[null,null,null,null,null,"Partiuclars",null,"Current Quarter","Year to Date Figures"]
[null,null,null,null,null,"Date of start of reporting period"]
[null,null,null,null,null,"Date of end of reporting period"]
[null,null,null,null,null,"Whether accounts are audited or unaudited",null,{"$f":"+IF(COUNTA('General Info'!E24),'General Info'!E24,\"\")","v":""},{"$f":"+IF(COUNTA('General Info'!E24),'General Info'!E24,\"\")","v":""}]
[null,null,null,null,null,"Segment Underwriting Profit/Loss"]
[null,null,null,null,null,1,"Fire",null,{"$f":"IF(COUNTA('3 Segment Underwriting ProfLoss'!H14),'3 Segment Underwriting ProfLoss'!H14,\"\")","v":""},null,"FireMember",null,"UnderwritingProfitOrLoss",null,null,null,null,null,{"$f":"IF(COUNTA('3 Segment Underwriting ProfLoss'!H14),'3 Segment Underwriting ProfLoss'!H14,\"\")","v":""}]
[null,null,null,null,null,2,"Marine",null,{"$f":"IF(COUNTA('3 Segment Underwriting ProfLoss'!H15),'3 Segment Underwriting ProfLoss'!H15,\"\")","v":""},null,"MarineMember",null,"UnderwritingProfitOrLoss",null,null,null,null,null,{"$f":"IF(COUNTA('3 Segment Underwriting ProfLoss'!H15),'3 Segment Underwriting ProfLoss'!H15,\"\")","v":""}]
[null,null,null,null,null,3,"Health including personal accident",null,{"$f":"IF(COUNTA('3 Segment Underwriting ProfLoss'!H16),'3 Segment Underwriting ProfLoss'!H16,\"\")","v":""},null,"HealthIncludingPersonalAccidentMember",null,"UnderwritingProfitOrLoss",null,null,null,null,null,{"$f":"IF(COUNTA('3 Segment Underwriting ProfLoss'!H16),'3 Segment Underwriting ProfLoss'!H16,\"\")","v":""}]
[null,null,null,null,null,4,"Health retail",null,{"$f":"IF(COUNTA('3 Segment Underwriting ProfLoss'!H17),'3 Segment Underwriting ProfLoss'!H17,\"\")","v":""},null,"HealthRetailMember",null,"UnderwritingProfitOrLoss",null,null,null,null,null,{"$f":"IF(COUNTA('3 Segment Underwriting ProfLoss'!H17),'3 Segment Underwriting ProfLoss'!H17,\"\")","v":""}]
[null,null,null,null,null,5,"Health group",null,{"$f":"IF(COUNTA('3 Segment Underwriting ProfLoss'!H18),'3 Segment Underwriting ProfLoss'!H18,\"\")","v":""},null,"HealthGroupMember",null,"UnderwritingProfitOrLoss",null,null,null,null,null,{"$f":"IF(COUNTA('3 Segment Underwriting ProfLoss'!H18),'3 Segment Underwriting ProfLoss'!H18,\"\")","v":""}]
[null,null,null,null,null,6,"Health government schemes",null,{"$f":"IF(COUNTA('3 Segment Underwriting ProfLoss'!H19),'3 Segment Underwriting ProfLoss'!H19,\"\")","v":""},null,"HealthGovernmentSchemesMember",null,"UnderwritingProfitOrLoss",null,null,null,null,null,{"$f":"IF(COUNTA('3 Segment Underwriting ProfLoss'!H19),'3 Segment Underwriting ProfLoss'!H19,\"\")","v":""}]
[null,null,null,null,null,7,"Motor",null,{"$f":"IF(COUNTA('3 Segment Underwriting ProfLoss'!H20),'3 Segment Underwriting ProfLoss'!H20,\"\")","v":""},null,"MotorMember",null,"UnderwritingProfitOrLoss",null,null,null,null,null,{"$f":"IF(COUNTA('3 Segment Underwriting ProfLoss'!H20),'3 Segment Underwriting ProfLoss'!H20,\"\")","v":""}]
[null,null,null,null,null,8,"Miscellaneous",null,{"$f":"IF(COUNTA('3 Segment Underwriting ProfLoss'!H21),'3 Segment Underwriting ProfLoss'!H21,\"\")","v":""},null,"MiscellaneousMember",null,"UnderwritingProfitOrLoss",null,null,null,null,null,{"$f":"IF(COUNTA('3 Segment Underwriting ProfLoss'!H21),'3 Segment Underwriting ProfLoss'!H21,\"\")","v":""}]
[null,null,null,null,null,8,"Retail",null,{"$f":"IF(COUNTA('3 Segment Underwriting ProfLoss'!H22),'3 Segment Underwriting ProfLoss'!H22,\"\")","v":""},null,"RetailMember",null,"UnderwritingProfitOrLoss",null,null,null,null,null,{"$f":"IF(COUNTA('3 Segment Underwriting ProfLoss'!H22),'3 Segment Underwriting ProfLoss'!H22,\"\")","v":""}]
[null,null,null,null,null,9,"Group and corporate",null,{"$f":"IF(COUNTA('3 Segment Underwriting ProfLoss'!H23),'3 Segment Underwriting ProfLoss'!H23,\"\")","v":""},null,"GroupAndCorporateMember",null,"UnderwritingProfitOrLoss",null,null,null,null,null,{"$f":"IF(COUNTA('3 Segment Underwriting ProfLoss'!H23),'3 Segment Underwriting ProfLoss'!H23,\"\")","v":""}]
[null,null,null,null,null,10,"Any other class as may be specified by the Authority. - Enter the name below",null,null,null,null,null,null,null,null,null,null,null,{"$f":"IF(COUNTA('3 Segment Underwriting ProfLoss'!H24),'3 Segment Underwriting ProfLoss'!H24,\"\")","v":""}]
[null,null,null,null,null,null,"Name of Other Segment",null,null,null,null,null,null,null,null,null,null,null,{"$f":"IF(COUNTA('3 Segment Underwriting ProfLoss'!H25),'3 Segment Underwriting ProfLoss'!H25,\"\")","v":""}]
[null,null,null,null,null,1,{"$f":"+IF(COUNTA('1 Segment Income'!H56:I56),('1 Segment Income'!H56),\"\")","v":""},null,{"$f":"IF(COUNTA('3 Segment Underwriting ProfLoss'!H26),'3 Segment Underwriting ProfLoss'!H26,\"\")","v":""},null,"OtherReportableSegments1Member","DescriptionOfReportableSegments","UnderwritingProfitOrLoss",null,null,null,null,null,{"$f":"IF(COUNTA('3 Segment Underwriting ProfLoss'!H26),'3 Segment Underwriting ProfLoss'!H26,\"\")","v":""}]
[null,null,null,null,null,2,{"$f":"+IF(COUNTA('1 Segment Income'!H61:I61),('1 Segment Income'!H61),\"\")","v":""},null,{"$f":"IF(COUNTA('3 Segment Underwriting ProfLoss'!H27),'3 Segment Underwriting ProfLoss'!H27,\"\")","v":""},null,"OtherReportableSegments2Member","DescriptionOfReportableSegments","UnderwritingProfitOrLoss",null,null,null,null,null,{"$f":"IF(COUNTA('3 Segment Underwriting ProfLoss'!H27),'3 Segment Underwriting ProfLoss'!H27,\"\")","v":""}]
[null,null,null,null,null,3,{"$f":"+IF(COUNTA('1 Segment Income'!H66:I66),('1 Segment Income'!H66),\"\")","v":""},null,{"$f":"IF(COUNTA('3 Segment Underwriting ProfLoss'!H28),'3 Segment Underwriting ProfLoss'!H28,\"\")","v":""},null,"OtherReportableSegments3Member","DescriptionOfReportableSegments","UnderwritingProfitOrLoss",null,null,null,null,null,{"$f":"IF(COUNTA('3 Segment Underwriting ProfLoss'!H28),'3 Segment Underwriting ProfLoss'!H28,\"\")","v":""}]
[null,null,null,null,null,4,{"$f":"+IF(COUNTA('1 Segment Income'!H71:I71),('1 Segment Income'!H71),\"\")","v":""},null,{"$f":"IF(COUNTA('3 Segment Underwriting ProfLoss'!H29),'3 Segment Underwriting ProfLoss'!H29,\"\")","v":""},null,"OtherReportableSegments4Member","DescriptionOfReportableSegments","UnderwritingProfitOrLoss",null,null,null,null,null,{"$f":"IF(COUNTA('3 Segment Underwriting ProfLoss'!H29),'3 Segment Underwriting ProfLoss'!H29,\"\")","v":""}]
[null,null,null,null,null,5,{"$f":"+IF(COUNTA('1 Segment Income'!H76:I76),('1 Segment Income'!H76),\"\")","v":""},null,{"$f":"IF(COUNTA('3 Segment Underwriting ProfLoss'!H30),'3 Segment Underwriting ProfLoss'!H30,\"\")","v":""},null,"OtherReportableSegments5Member","DescriptionOfReportableSegments","UnderwritingProfitOrLoss",null,null,null,null,null,{"$f":"IF(COUNTA('3 Segment Underwriting ProfLoss'!H30),'3 Segment Underwriting ProfLoss'!H30,\"\")","v":""}]
[null,null,null,null,null,6,{"$f":"+IF(COUNTA('1 Segment Income'!H81:I81),('1 Segment Income'!H81),\"\")","v":""},null,{"$f":"IF(COUNTA('3 Segment Underwriting ProfLoss'!H31),'3 Segment Underwriting ProfLoss'!H31,\"\")","v":""},null,"OtherReportableSegments6Member","DescriptionOfReportableSegments","UnderwritingProfitOrLoss",null,null,null,null,null,{"$f":"IF(COUNTA('3 Segment Underwriting ProfLoss'!H31),'3 Segment Underwriting ProfLoss'!H31,\"\")","v":""}]
[null,null,null,null,null,7,{"$f":"+IF(COUNTA('1 Segment Income'!H86:I86),('1 Segment Income'!H86),\"\")","v":""},null,{"$f":"IF(COUNTA('3 Segment Underwriting ProfLoss'!H32),'3 Segment Underwriting ProfLoss'!H32,\"\")","v":""},null,"OtherReportableSegments7Member","DescriptionOfReportableSegments","UnderwritingProfitOrLoss",null,null,null,null,null,{"$f":"IF(COUNTA('3 Segment Underwriting ProfLoss'!H32),'3 Segment Underwriting ProfLoss'!H32,\"\")","v":""}]
[null,null,null,null,null,8,{"$f":"+IF(COUNTA('1 Segment Income'!H91:I91),('1 Segment Income'!H91),\"\")","v":""},null,{"$f":"IF(COUNTA('3 Segment Underwriting ProfLoss'!H33),'3 Segment Underwriting ProfLoss'!H33,\"\")","v":""},null,"OtherReportableSegments8Member","DescriptionOfReportableSegments","UnderwritingProfitOrLoss",null,null,null,null,null,{"$f":"IF(COUNTA('3 Segment Underwriting ProfLoss'!H33),'3 Segment Underwriting ProfLoss'!H33,\"\")","v":""}]
[null,null,null,null,null,9,{"$f":"+IF(COUNTA('1 Segment Income'!H96:I96),('1 Segment Income'!H96),\"\")","v":""},null,{"$f":"IF(COUNTA('3 Segment Underwriting ProfLoss'!H34),'3 Segment Underwriting ProfLoss'!H34,\"\")","v":""},null,"OtherReportableSegments9Member","DescriptionOfReportableSegments","UnderwritingProfitOrLoss",null,null,null,null,null,{"$f":"IF(COUNTA('3 Segment Underwriting ProfLoss'!H34),'3 Segment Underwriting ProfLoss'!H34,\"\")","v":""}]
[null,null,null,null,null,10,{"$f":"+IF(COUNTA('1 Segment Income'!H101:I101),('1 Segment Income'!H101),\"\")","v":""},null,{"$f":"IF(COUNTA('3 Segment Underwriting ProfLoss'!H35),'3 Segment Underwriting ProfLoss'!H35,\"\")","v":""},null,"OtherReportableSegments10Member","DescriptionOfReportableSegments","UnderwritingProfitOrLoss",null,null,null,null,null,{"$f":"IF(COUNTA('3 Segment Underwriting ProfLoss'!H35),'3 Segment Underwriting ProfLoss'!H35,\"\")","v":""}]
[null,null,null,null,null,null,null,null,null,null,null,null,null,null,null,null,null,null,{"$f":"IF(COUNTA('3 Segment Underwriting ProfLoss'!H36),'3 Segment Underwriting ProfLoss'!H36,\"\")","v":""}]
[null,null,null,null,null,11,"Unallocated",null,{"$f":"IF(COUNTA('3 Segment Underwriting ProfLoss'!H37),'3 Segment Underwriting ProfLoss'!H37,\"\")","v":""},null,"UnallocatedMember","DescriptionOfReportableSegments","UnderwritingProfitOrLoss",null,null,null,null,null,{"$f":"IF(COUNTA('3 Segment Underwriting ProfLoss'!H37),'3 Segment Underwriting ProfLoss'!H37,\"\")","v":""}]
[null,null,null,null,null,12,"Notes to the Underwriting ProfitLoss",null,null,null,"DisclosureOfNotesOnSegmentUnderwritingProfitOrLossExplanatoryTextBlock"]

{"sheet":"4 Segment Operating ProfitLoss","index":6,"n_rows":38,"n_cols":19,"rows_kept":38,"cut":false,"hidden":false,"merged":[[37,7,37,8],[35,5,35,8],[12,5,12,6],[12,7,12,8],[7,5,7,8],[8,5,8,6],[9,5,9,6],[10,5,10,6],[11,5,11,6]]}
[]
[]
[]
[null,null,null,null,null,null,null,null,null,null,"Audited","Unaudited"]
[]
[]
[]
[null,null,null,null,null,"Format for financial results by general insurance companies filed with stock exchanges"]
[null,null,null,null,null,"Partiuclars",null,"Current Quarter","Year to Date Figures"]
[null,null,null,null,null,"Date of start of reporting period"]
[null,null,null,null,null,"Date of end of reporting period"]
[null,null,null,null,null,"Whether accounts are audited or unaudited",null,{"$f":"+IF(COUNTA('General Info'!E24),'General Info'!E24,\"\")","v":""},{"$f":"+IF(COUNTA('General Info'!E24),'General Info'!E24,\"\")","v":""}]
[null,null,null,null,null,"Segment Operating Profit/Loss"]
[null,null,null,null,null,1,"Fire",null,{"$f":"IF(COUNTA('4 Segment Operating ProfitLoss'!H14),'4 Segment Operating ProfitLoss'!H14,\"\")","v":""},null,"FireMember",null,"OperatingProfitOrLoss",null,null,null,null,null,{"$f":"IF(COUNTA('4 Segment Operating ProfitLoss'!H14),'4 Segment Operating ProfitLoss'!H14,\"\")","v":""}]
[null,null,null,null,null,2,"Marine",null,{"$f":"IF(COUNTA('4 Segment Operating ProfitLoss'!H15),'4 Segment Operating ProfitLoss'!H15,\"\")","v":""},null,"MarineMember",null,"OperatingProfitOrLoss",null,null,null,null,null,{"$f":"IF(COUNTA('4 Segment Operating ProfitLoss'!H15),'4 Segment Operating ProfitLoss'!H15,\"\")","v":""}]
[null,null,null,null,null,3,"Health including personal accident",null,{"$f":"IF(COUNTA('4 Segment Operating ProfitLoss'!H16),'4 Segment Operating ProfitLoss'!H16,\"\")","v":""},null,"HealthIncludingPersonalAccidentMember",null,"OperatingProfitOrLoss",null,null,null,null,null,{"$f":"IF(COUNTA('4 Segment Operating ProfitLoss'!H16),'4 Segment Operating ProfitLoss'!H16,\"\")","v":""}]
[null,null,null,null,null,4,"Health retail",null,{"$f":"IF(COUNTA('4 Segment Operating ProfitLoss'!H17),'4 Segment Operating ProfitLoss'!H17,\"\")","v":""},null,"HealthRetailMember",null,"OperatingProfitOrLoss",null,null,null,null,null,{"$f":"IF(COUNTA('4 Segment Operating ProfitLoss'!H17),'4 Segment Operating ProfitLoss'!H17,\"\")","v":""}]
[null,null,null,null,null,5,"Health group",null,{"$f":"IF(COUNTA('4 Segment Operating ProfitLoss'!H18),'4 Segment Operating ProfitLoss'!H18,\"\")","v":""},null,"HealthGroupMember",null,"OperatingProfitOrLoss",null,null,null,null,null,{"$f":"IF(COUNTA('4 Segment Operating ProfitLoss'!H18),'4 Segment Operating ProfitLoss'!H18,\"\")","v":""}]
[null,null,null,null,null,6,"Health government schemes",null,{"$f":"IF(COUNTA('4 Segment Operating ProfitLoss'!H19),'4 Segment Operating ProfitLoss'!H19,\"\")","v":""},null,"HealthGovernmentSchemesMember",null,"OperatingProfitOrLoss",null,null,null,null,null,{"$f":"IF(COUNTA('4 Segment Operating ProfitLoss'!H19),'4 Segment Operating ProfitLoss'!H19,\"\")","v":""}]
[null,null,null,null,null,7,"Motor",null,{"$f":"IF(COUNTA('4 Segment Operating ProfitLoss'!H20),'4 Segment Operating ProfitLoss'!H20,\"\")","v":""},null,"MotorMember",null,"OperatingProfitOrLoss",null,null,null,null,null,{"$f":"IF(COUNTA('4 Segment Operating ProfitLoss'!H20),'4 Segment Operating ProfitLoss'!H20,\"\")","v":""}]
[null,null,null,null,null,8,"Miscellaneous",null,{"$f":"IF(COUNTA('4 Segment Operating ProfitLoss'!H21),'4 Segment Operating ProfitLoss'!H21,\"\")","v":""},null,"MiscellaneousMember",null,"OperatingProfitOrLoss",null,null,null,null,null,{"$f":"IF(COUNTA('4 Segment Operating ProfitLoss'!H21),'4 Segment Operating ProfitLoss'!H21,\"\")","v":""}]
[null,null,null,null,null,8,"Retail",null,{"$f":"IF(COUNTA('4 Segment Operating ProfitLoss'!H22),'4 Segment Operating ProfitLoss'!H22,\"\")","v":""},null,"RetailMember",null,"OperatingProfitOrLoss",null,null,null,null,null,{"$f":"IF(COUNTA('4 Segment Operating ProfitLoss'!H22),'4 Segment Operating ProfitLoss'!H22,\"\")","v":""}]
[null,null,null,null,null,9,"Group and corporate",null,{"$f":"IF(COUNTA('4 Segment Operating ProfitLoss'!H23),'4 Segment Operating ProfitLoss'!H23,\"\")","v":""},null,"GroupAndCorporateMember",null,"OperatingProfitOrLoss",null,null,null,null,null,{"$f":"IF(COUNTA('4 Segment Operating ProfitLoss'!H23),'4 Segment Operating ProfitLoss'!H23,\"\")","v":""}]
[null,null,null,null,null,10,"Any other class as may be specified by the Authority. - Enter the name below",null,null,null,null,null,null,null,null,null,null,null,{"$f":"IF(COUNTA('4 Segment Operating ProfitLoss'!H24),'4 Segment Operating ProfitLoss'!H24,\"\")","v":""}]
[null,null,null,null,null,null,"Name of Other Segment",null,null,null,null,null,null,null,null,null,null,null,{"$f":"IF(COUNTA('4 Segment Operating ProfitLoss'!H25),'4 Segment Operating ProfitLoss'!H25,\"\")","v":""}]
[null,null,null,null,null,1,{"$f":"+IF(COUNTA('1 Segment Income'!H56:I56),('1 Segment Income'!H56),\"\")","v":""},null,{"$f":"IF(COUNTA('4 Segment Operating ProfitLoss'!H26),'4 Segment Operating ProfitLoss'!H26,\"\")","v":""},null,"OtherReportableSegments1Member","DescriptionOfReportableSegments","OperatingProfitOrLoss",null,null,null,null,null,{"$f":"IF(COUNTA('4 Segment Operating ProfitLoss'!H26),'4 Segment Operating ProfitLoss'!H26,\"\")","v":""}]
[null,null,null,null,null,2,{"$f":"+IF(COUNTA('1 Segment Income'!H61:I61),('1 Segment Income'!H61),\"\")","v":""},null,{"$f":"IF(COUNTA('4 Segment Operating ProfitLoss'!H27),'4 Segment Operating ProfitLoss'!H27,\"\")","v":""},null,"OtherReportableSegments2Member","DescriptionOfReportableSegments","OperatingProfitOrLoss",null,null,null,null,null,{"$f":"IF(COUNTA('4 Segment Operating ProfitLoss'!H27),'4 Segment Operating ProfitLoss'!H27,\"\")","v":""}]
[null,null,null,null,null,3,{"$f":"+IF(COUNTA('1 Segment Income'!H66:I66),('1 Segment Income'!H66),\"\")","v":""},null,{"$f":"IF(COUNTA('4 Segment Operating ProfitLoss'!H28),'4 Segment Operating ProfitLoss'!H28,\"\")","v":""},null,"OtherReportableSegments3Member","DescriptionOfReportableSegments","OperatingProfitOrLoss",null,null,null,null,null,{"$f":"IF(COUNTA('4 Segment Operating ProfitLoss'!H28),'4 Segment Operating ProfitLoss'!H28,\"\")","v":""}]
[null,null,null,null,null,4,{"$f":"+IF(COUNTA('1 Segment Income'!H71:I71),('1 Segment Income'!H71),\"\")","v":""},null,{"$f":"IF(COUNTA('4 Segment Operating ProfitLoss'!H29),'4 Segment Operating ProfitLoss'!H29,\"\")","v":""},null,"OtherReportableSegments4Member","DescriptionOfReportableSegments","OperatingProfitOrLoss",null,null,null,null,null,{"$f":"IF(COUNTA('4 Segment Operating ProfitLoss'!H29),'4 Segment Operating ProfitLoss'!H29,\"\")","v":""}]
[null,null,null,null,null,5,{"$f":"+IF(COUNTA('1 Segment Income'!H76:I76),('1 Segment Income'!H76),\"\")","v":""},null,{"$f":"IF(COUNTA('4 Segment Operating ProfitLoss'!H30),'4 Segment Operating ProfitLoss'!H30,\"\")","v":""},null,"OtherReportableSegments5Member","DescriptionOfReportableSegments","OperatingProfitOrLoss",null,null,null,null,null,{"$f":"IF(COUNTA('4 Segment Operating ProfitLoss'!H30),'4 Segment Operating ProfitLoss'!H30,\"\")","v":""}]
[null,null,null,null,null,6,{"$f":"+IF(COUNTA('1 Segment Income'!H81:I81),('1 Segment Income'!H81),\"\")","v":""},null,{"$f":"IF(COUNTA('4 Segment Operating ProfitLoss'!H31),'4 Segment Operating ProfitLoss'!H31,\"\")","v":""},null,"OtherReportableSegments6Member","DescriptionOfReportableSegments","OperatingProfitOrLoss",null,null,null,null,null,{"$f":"IF(COUNTA('4 Segment Operating ProfitLoss'!H31),'4 Segment Operating ProfitLoss'!H31,\"\")","v":""}]
[null,null,null,null,null,7,{"$f":"+IF(COUNTA('1 Segment Income'!H86:I86),('1 Segment Income'!H86),\"\")","v":""},null,{"$f":"IF(COUNTA('4 Segment Operating ProfitLoss'!H32),'4 Segment Operating ProfitLoss'!H32,\"\")","v":""},null,"OtherReportableSegments7Member","DescriptionOfReportableSegments","OperatingProfitOrLoss",null,null,null,null,null,{"$f":"IF(COUNTA('4 Segment Operating ProfitLoss'!H32),'4 Segment Operating ProfitLoss'!H32,\"\")","v":""}]
[null,null,null,null,null,8,{"$f":"+IF(COUNTA('1 Segment Income'!H91:I91),('1 Segment Income'!H91),\"\")","v":""},null,{"$f":"IF(COUNTA('4 Segment Operating ProfitLoss'!H33),'4 Segment Operating ProfitLoss'!H33,\"\")","v":""},null,"OtherReportableSegments8Member","DescriptionOfReportableSegments","OperatingProfitOrLoss",null,null,null,null,null,{"$f":"IF(COUNTA('4 Segment Operating ProfitLoss'!H33),'4 Segment Operating ProfitLoss'!H33,\"\")","v":""}]
[null,null,null,null,null,9,{"$f":"+IF(COUNTA('1 Segment Income'!H96:I96),('1 Segment Income'!H96),\"\")","v":""},null,{"$f":"IF(COUNTA('4 Segment Operating ProfitLoss'!H34),'4 Segment Operating ProfitLoss'!H34,\"\")","v":""},null,"OtherReportableSegments9Member","DescriptionOfReportableSegments","OperatingProfitOrLoss",null,null,null,null,null,{"$f":"IF(COUNTA('4 Segment Operating ProfitLoss'!H34),'4 Segment Operating ProfitLoss'!H34,\"\")","v":""}]
[null,null,null,null,null,10,{"$f":"+IF(COUNTA('1 Segment Income'!H101:I101),('1 Segment Income'!H101),\"\")","v":""},null,{"$f":"IF(COUNTA('4 Segment Operating ProfitLoss'!H35),'4 Segment Operating ProfitLoss'!H35,\"\")","v":""},null,"OtherReportableSegments10Member","DescriptionOfReportableSegments","OperatingProfitOrLoss",null,null,null,null,null,{"$f":"IF(COUNTA('4 Segment Operating ProfitLoss'!H35),'4 Segment Operating ProfitLoss'!H35,\"\")","v":""}]
[null,null,null,null,null,null,null,null,null,null,null,null,null,null,null,null,null,null,{"$f":"IF(COUNTA('4 Segment Operating ProfitLoss'!H36),'4 Segment Operating ProfitLoss'!H36,\"\")","v":""}]
[null,null,null,null,null,11,"Unallocated",null,{"$f":"IF(COUNTA('4 Segment Operating ProfitLoss'!H37),'4 Segment Operating ProfitLoss'!H37,\"\")","v":""},null,"UnallocatedMember","DescriptionOfReportableSegments","OperatingProfitOrLoss",null,null,null,null,null,{"$f":"IF(COUNTA('4 Segment Operating ProfitLoss'!H37),'4 Segment Operating ProfitLoss'!H37,\"\")","v":""}]
[null,null,null,null,null,12,"Notes to the Operating ProfitLoss",null,null,null,"DisclosureOfNotesOnSegmentOperatingProfitOrLossExplanatoryTextBlock"]

{"sheet":"5 Segment Technical Liabilities","index":7,"n_rows":38,"n_cols":18,"rows_kept":38,"cut":false,"hidden":false,"merged":[[35,5,35,7],[7,5,7,7],[8,5,8,6],[9,5,9,6],[10,5,10,6],[11,5,11,6],[12,5,12,6]]}
[]
[]
[]
[null,null,null,null,null,null,null,null,null,"Audited","Unaudited"]
[]
[]
[]
[null,null,null,null,null,"Format for financial results by general insurance companies filed with stock exchanges"]
[null,null,null,null,null,"Partiuclars",null,"Current Quarter"]
[null,null,null,null,null,"Date of start of reporting period"]
[null,null,null,null,null,"Date of end of reporting period"]
[null,null,null,null,null,"Whether accounts are audited or unaudited",null,{"$f":"+IF(COUNTA('General Info'!E24),'General Info'!E24,\"\")","v":""}]
[null,null,null,null,null,"Segment Technical Liabilities \n(Unexpired Risk Reserve-Net)"]
[null,null,null,null,null,1,"Fire",null,null,"FireMember",null,"SegmentTechnicalLiabilitiesUnexpiredRiskReserveNet",null,null,null,null,null,{"$f":"IF(COUNTA('5 Segment Technical Liabilities'!H14),'5 Segment Technical Liabilities'!H14,\"\")","v":""}]
[null,null,null,null,null,2,"Marine",null,null,"MarineMember",null,"SegmentTechnicalLiabilitiesUnexpiredRiskReserveNet",null,null,null,null,null,{"$f":"IF(COUNTA('5 Segment Technical Liabilities'!H15),'5 Segment Technical Liabilities'!H15,\"\")","v":""}]
[null,null,null,null,null,3,"Health including personal accident",null,null,"HealthIncludingPersonalAccidentMember",null,"SegmentTechnicalLiabilitiesUnexpiredRiskReserveNet",null,null,null,null,null,{"$f":"IF(COUNTA('5 Segment Technical Liabilities'!H16),'5 Segment Technical Liabilities'!H16,\"\")","v":""}]
[null,null,null,null,null,4,"Health retail",null,null,"HealthRetailMember",null,"SegmentTechnicalLiabilitiesUnexpiredRiskReserveNet",null,null,null,null,null,{"$f":"IF(COUNTA('5 Segment Technical Liabilities'!H17),'5 Segment Technical Liabilities'!H17,\"\")","v":""}]
[null,null,null,null,null,5,"Health group",null,null,"HealthGroupMember",null,"SegmentTechnicalLiabilitiesUnexpiredRiskReserveNet",null,null,null,null,null,{"$f":"IF(COUNTA('5 Segment Technical Liabilities'!H18),'5 Segment Technical Liabilities'!H18,\"\")","v":""}]
[null,null,null,null,null,6,"Health government schemes",null,null,"HealthGovernmentSchemesMember",null,"SegmentTechnicalLiabilitiesUnexpiredRiskReserveNet",null,null,null,null,null,{"$f":"IF(COUNTA('5 Segment Technical Liabilities'!H19),'5 Segment Technical Liabilities'!H19,\"\")","v":""}]
[null,null,null,null,null,7,"Motor",null,null,"MotorMember",null,"SegmentTechnicalLiabilitiesUnexpiredRiskReserveNet",null,null,null,null,null,{"$f":"IF(COUNTA('5 Segment Technical Liabilities'!H20),'5 Segment Technical Liabilities'!H20,\"\")","v":""}]
[null,null,null,null,null,8,"Miscellaneous",null,null,"MiscellaneousMember",null,"SegmentTechnicalLiabilitiesUnexpiredRiskReserveNet",null,null,null,null,null,{"$f":"IF(COUNTA('5 Segment Technical Liabilities'!H21),'5 Segment Technical Liabilities'!H21,\"\")","v":""}]
[null,null,null,null,null,8,"Retail",null,null,"RetailMember",null,"SegmentTechnicalLiabilitiesUnexpiredRiskReserveNet",null,null,null,null,null,{"$f":"IF(COUNTA('5 Segment Technical Liabilities'!H22),'5 Segment Technical Liabilities'!H22,\"\")","v":""}]
[null,null,null,null,null,9,"Group and corporate",null,null,"GroupAndCorporateMember",null,"SegmentTechnicalLiabilitiesUnexpiredRiskReserveNet",null,null,null,null,null,{"$f":"IF(COUNTA('5 Segment Technical Liabilities'!H23),'5 Segment Technical Liabilities'!H23,\"\")","v":""}]
[null,null,null,null,null,10,"Any other class as may be specified by the Authority. - Enter the name below",null,null,null,null,null,null,null,null,null,null,{"$f":"IF(COUNTA('5 Segment Technical Liabilities'!H24),'5 Segment Technical Liabilities'!H24,\"\")","v":""}]
[null,null,null,null,null,null,"Name of Other Segment",null,null,null,null,null,null,null,null,null,null,{"$f":"IF(COUNTA('5 Segment Technical Liabilities'!H25),'5 Segment Technical Liabilities'!H25,\"\")","v":""}]
[null,null,null,null,null,1,{"$f":"+IF(COUNTA('1 Segment Income'!H56:I56),('1 Segment Income'!H56),\"\")","v":""},null,null,"OtherReportableSegments1Member","DescriptionOfReportableSegments","SegmentTechnicalLiabilitiesUnexpiredRiskReserveNet",null,null,null,null,null,{"$f":"IF(COUNTA('5 Segment Technical Liabilities'!H26),'5 Segment Technical Liabilities'!H26,\"\")","v":""}]
[null,null,null,null,null,2,{"$f":"+IF(COUNTA('1 Segment Income'!H61:I61),('1 Segment Income'!H61),\"\")","v":""},null,null,"OtherReportableSegments2Member","DescriptionOfReportableSegments","SegmentTechnicalLiabilitiesUnexpiredRiskReserveNet",null,null,null,null,null,{"$f":"IF(COUNTA('5 Segment Technical Liabilities'!H27),'5 Segment Technical Liabilities'!H27,\"\")","v":""}]
[null,null,null,null,null,3,{"$f":"+IF(COUNTA('1 Segment Income'!H66:I66),('1 Segment Income'!H66),\"\")","v":""},null,null,"OtherReportableSegments3Member","DescriptionOfReportableSegments","SegmentTechnicalLiabilitiesUnexpiredRiskReserveNet",null,null,null,null,null,{"$f":"IF(COUNTA('5 Segment Technical Liabilities'!H28),'5 Segment Technical Liabilities'!H28,\"\")","v":""}]
[null,null,null,null,null,4,{"$f":"+IF(COUNTA('1 Segment Income'!H71:I71),('1 Segment Income'!H71),\"\")","v":""},null,null,"OtherReportableSegments4Member","DescriptionOfReportableSegments","SegmentTechnicalLiabilitiesUnexpiredRiskReserveNet",null,null,null,null,null,{"$f":"IF(COUNTA('5 Segment Technical Liabilities'!H29),'5 Segment Technical Liabilities'!H29,\"\")","v":""}]
[null,null,null,null,null,5,{"$f":"+IF(COUNTA('1 Segment Income'!H76:I76),('1 Segment Income'!H76),\"\")","v":""},null,null,"OtherReportableSegments5Member","DescriptionOfReportableSegments","SegmentTechnicalLiabilitiesUnexpiredRiskReserveNet",null,null,null,null,null,{"$f":"IF(COUNTA('5 Segment Technical Liabilities'!H30),'5 Segment Technical Liabilities'!H30,\"\")","v":""}]
[null,null,null,null,null,6,{"$f":"+IF(COUNTA('1 Segment Income'!H81:I81),('1 Segment Income'!H81),\"\")","v":""},null,null,"OtherReportableSegments6Member","DescriptionOfReportableSegments","SegmentTechnicalLiabilitiesUnexpiredRiskReserveNet",null,null,null,null,null,{"$f":"IF(COUNTA('5 Segment Technical Liabilities'!H31),'5 Segment Technical Liabilities'!H31,\"\")","v":""}]
[null,null,null,null,null,7,{"$f":"+IF(COUNTA('1 Segment Income'!H86:I86),('1 Segment Income'!H86),\"\")","v":""},null,null,"OtherReportableSegments7Member","DescriptionOfReportableSegments","SegmentTechnicalLiabilitiesUnexpiredRiskReserveNet",null,null,null,null,null,{"$f":"IF(COUNTA('5 Segment Technical Liabilities'!H32),'5 Segment Technical Liabilities'!H32,\"\")","v":""}]
[null,null,null,null,null,8,{"$f":"+IF(COUNTA('1 Segment Income'!H91:I91),('1 Segment Income'!H91),\"\")","v":""},null,null,"OtherReportableSegments8Member","DescriptionOfReportableSegments","SegmentTechnicalLiabilitiesUnexpiredRiskReserveNet",null,null,null,null,null,{"$f":"IF(COUNTA('5 Segment Technical Liabilities'!H33),'5 Segment Technical Liabilities'!H33,\"\")","v":""}]
[null,null,null,null,null,9,{"$f":"+IF(COUNTA('1 Segment Income'!H96:I96),('1 Segment Income'!H96),\"\")","v":""},null,null,"OtherReportableSegments9Member","DescriptionOfReportableSegments","SegmentTechnicalLiabilitiesUnexpiredRiskReserveNet",null,null,null,null,null,{"$f":"IF(COUNTA('5 Segment Technical Liabilities'!H34),'5 Segment Technical Liabilities'!H34,\"\")","v":""}]
[null,null,null,null,null,10,{"$f":"+IF(COUNTA('1 Segment Income'!H101:I101),('1 Segment Income'!H101),\"\")","v":""},null,null,"OtherReportableSegments10Member","DescriptionOfReportableSegments","SegmentTechnicalLiabilitiesUnexpiredRiskReserveNet",null,null,null,null,null,{"$f":"IF(COUNTA('5 Segment Technical Liabilities'!H35),'5 Segment Technical Liabilities'!H35,\"\")","v":""}]
[null,null,null,null,null,null,null,null,null,null,null,null,null,null,null,null,null,{"$f":"IF(COUNTA('5 Segment Technical Liabilities'!H36),'5 Segment Technical Liabilities'!H36,\"\")","v":""}]
[null,null,null,null,null,11,"Unallocated",null,null,"UnallocatedMember","DescriptionOfReportableSegments","SegmentTechnicalLiabilitiesUnexpiredRiskReserveNet",null,null,null,null,null,{"$f":"IF(COUNTA('5 Segment Technical Liabilities'!H37),'5 Segment Technical Liabilities'!H37,\"\")","v":""}]
[null,null,null,null,null,12,"Notes to the Technical Liabilities",null,null,"DisclosureOfNotesOnSegmentTechnicalLiabilitiesUnexpiredRiskReserveNetExplanatoryTextBlock"]

{"sheet":"6 Segment Technical Liabilities","index":8,"n_rows":38,"n_cols":18,"rows_kept":38,"cut":false,"hidden":false,"merged":[[35,5,35,7],[7,5,7,7],[8,5,8,6],[9,5,9,6],[10,5,10,6],[11,5,11,6],[12,5,12,6]]}
[]
[]
[]
[null,null,null,null,null,null,null,null,null,"Audited","Unaudited"]
[]
[]
[]
[null,null,null,null,null,"Format for financial results by general insurance companies filed with stock exchanges"]
[null,null,null,null,null,"Partiuclars",null,"Current Quarter"]
[null,null,null,null,null,"Date of start of reporting period"]
[null,null,null,null,null,"Date of end of reporting period"]
[null,null,null,null,null,"Whether accounts are audited or unaudited",null,{"$f":"+IF(COUNTA('General Info'!E24),'General Info'!E24,\"\")","v":""}]
[null,null,null,null,null,"Segment Technical Liabilities \n(Unexpired Claims Reserves Including IBNR & IIBNER)"]
[null,null,null,null,null,1,"Fire",null,null,"FireMember",null,"SegmentTechnicalLiabilitiesUnexpiredClaimsReservesIncludingIBNRAndIBNER",null,null,null,null,null,{"$f":"IF(COUNTA('6 Segment Technical Liabilities'!H14),'6 Segment Technical Liabilities'!H14,\"\")","v":""}]
[null,null,null,null,null,2,"Marine",null,null,"MarineMember",null,"SegmentTechnicalLiabilitiesUnexpiredClaimsReservesIncludingIBNRAndIBNER",null,null,null,null,null,{"$f":"IF(COUNTA('6 Segment Technical Liabilities'!H15),'6 Segment Technical Liabilities'!H15,\"\")","v":""}]
[null,null,null,null,null,3,"Health including personal accident",null,null,"HealthIncludingPersonalAccidentMember",null,"SegmentTechnicalLiabilitiesUnexpiredClaimsReservesIncludingIBNRAndIBNER",null,null,null,null,null,{"$f":"IF(COUNTA('6 Segment Technical Liabilities'!H16),'6 Segment Technical Liabilities'!H16,\"\")","v":""}]
[null,null,null,null,null,4,"Health retail",null,null,"HealthRetailMember",null,"SegmentTechnicalLiabilitiesUnexpiredClaimsReservesIncludingIBNRAndIBNER",null,null,null,null,null,{"$f":"IF(COUNTA('6 Segment Technical Liabilities'!H17),'6 Segment Technical Liabilities'!H17,\"\")","v":""}]
[null,null,null,null,null,5,"Health group",null,null,"HealthGroupMember",null,"SegmentTechnicalLiabilitiesUnexpiredClaimsReservesIncludingIBNRAndIBNER",null,null,null,null,null,{"$f":"IF(COUNTA('6 Segment Technical Liabilities'!H18),'6 Segment Technical Liabilities'!H18,\"\")","v":""}]
[null,null,null,null,null,6,"Health government schemes",null,null,"HealthGovernmentSchemesMember",null,"SegmentTechnicalLiabilitiesUnexpiredClaimsReservesIncludingIBNRAndIBNER",null,null,null,null,null,{"$f":"IF(COUNTA('6 Segment Technical Liabilities'!H19),'6 Segment Technical Liabilities'!H19,\"\")","v":""}]
[null,null,null,null,null,7,"Motor",null,null,"MotorMember",null,"SegmentTechnicalLiabilitiesUnexpiredClaimsReservesIncludingIBNRAndIBNER",null,null,null,null,null,{"$f":"IF(COUNTA('6 Segment Technical Liabilities'!H20),'6 Segment Technical Liabilities'!H20,\"\")","v":""}]
[null,null,null,null,null,8,"Miscellaneous",null,null,"MiscellaneousMember",null,"SegmentTechnicalLiabilitiesUnexpiredClaimsReservesIncludingIBNRAndIBNER",null,null,null,null,null,{"$f":"IF(COUNTA('6 Segment Technical Liabilities'!H21),'6 Segment Technical Liabilities'!H21,\"\")","v":""}]
[null,null,null,null,null,8,"Retail",null,null,"RetailMember",null,"SegmentTechnicalLiabilitiesUnexpiredClaimsReservesIncludingIBNRAndIBNER",null,null,null,null,null,{"$f":"IF(COUNTA('6 Segment Technical Liabilities'!H22),'6 Segment Technical Liabilities'!H22,\"\")","v":""}]
[null,null,null,null,null,9,"Group and corporate",null,null,"GroupAndCorporateMember",null,"SegmentTechnicalLiabilitiesUnexpiredClaimsReservesIncludingIBNRAndIBNER",null,null,null,null,null,{"$f":"IF(COUNTA('6 Segment Technical Liabilities'!H23),'6 Segment Technical Liabilities'!H23,\"\")","v":""}]
[null,null,null,null,null,10,"Any other class as may be specified by the Authority. - Enter the name below",null,null,null,null,null,null,null,null,null,null,{"$f":"IF(COUNTA('6 Segment Technical Liabilities'!H24),'6 Segment Technical Liabilities'!H24,\"\")","v":""}]
[null,null,null,null,null,null,"Name of Other Segment",null,null,null,null,null,null,null,null,null,null,{"$f":"IF(COUNTA('6 Segment Technical Liabilities'!H25),'6 Segment Technical Liabilities'!H25,\"\")","v":""}]
[null,null,null,null,null,1,{"$f":"+IF(COUNTA('1 Segment Income'!H56:I56),('1 Segment Income'!H56),\"\")","v":""},null,null,"OtherReportableSegments1Member","DescriptionOfOtherReportableSegments","SegmentTechnicalLiabilitiesUnexpiredClaimsReservesIncludingIBNRAndIBNER",null,null,null,null,null,{"$f":"IF(COUNTA('6 Segment Technical Liabilities'!H26),'6 Segment Technical Liabilities'!H26,\"\")","v":""}]
[null,null,null,null,null,2,{"$f":"+IF(COUNTA('1 Segment Income'!H61:I61),('1 Segment Income'!H61),\"\")","v":""},null,null,"OtherReportableSegments2Member","DescriptionOfOtherReportableSegments","SegmentTechnicalLiabilitiesUnexpiredClaimsReservesIncludingIBNRAndIBNER",null,null,null,null,null,{"$f":"IF(COUNTA('6 Segment Technical Liabilities'!H27),'6 Segment Technical Liabilities'!H27,\"\")","v":""}]
[null,null,null,null,null,3,{"$f":"+IF(COUNTA('1 Segment Income'!H66:I66),('1 Segment Income'!H66),\"\")","v":""},null,null,"OtherReportableSegments3Member","DescriptionOfOtherReportableSegments","SegmentTechnicalLiabilitiesUnexpiredClaimsReservesIncludingIBNRAndIBNER",null,null,null,null,null,{"$f":"IF(COUNTA('6 Segment Technical Liabilities'!H28),'6 Segment Technical Liabilities'!H28,\"\")","v":""}]
[null,null,null,null,null,4,{"$f":"+IF(COUNTA('1 Segment Income'!H71:I71),('1 Segment Income'!H71),\"\")","v":""},null,null,"OtherReportableSegments4Member","DescriptionOfOtherReportableSegments","SegmentTechnicalLiabilitiesUnexpiredClaimsReservesIncludingIBNRAndIBNER",null,null,null,null,null,{"$f":"IF(COUNTA('6 Segment Technical Liabilities'!H29),'6 Segment Technical Liabilities'!H29,\"\")","v":""}]
[null,null,null,null,null,5,{"$f":"+IF(COUNTA('1 Segment Income'!H76:I76),('1 Segment Income'!H76),\"\")","v":""},null,null,"OtherReportableSegments5Member","DescriptionOfOtherReportableSegments","SegmentTechnicalLiabilitiesUnexpiredClaimsReservesIncludingIBNRAndIBNER",null,null,null,null,null,{"$f":"IF(COUNTA('6 Segment Technical Liabilities'!H30),'6 Segment Technical Liabilities'!H30,\"\")","v":""}]
[null,null,null,null,null,6,{"$f":"+IF(COUNTA('1 Segment Income'!H81:I81),('1 Segment Income'!H81),\"\")","v":""},null,null,"OtherReportableSegments6Member","DescriptionOfOtherReportableSegments","SegmentTechnicalLiabilitiesUnexpiredClaimsReservesIncludingIBNRAndIBNER",null,null,null,null,null,{"$f":"IF(COUNTA('6 Segment Technical Liabilities'!H31),'6 Segment Technical Liabilities'!H31,\"\")","v":""}]
[null,null,null,null,null,7,{"$f":"+IF(COUNTA('1 Segment Income'!H86:I86),('1 Segment Income'!H86),\"\")","v":""},null,null,"OtherReportableSegments7Member","DescriptionOfOtherReportableSegments","SegmentTechnicalLiabilitiesUnexpiredClaimsReservesIncludingIBNRAndIBNER",null,null,null,null,null,{"$f":"IF(COUNTA('6 Segment Technical Liabilities'!H32),'6 Segment Technical Liabilities'!H32,\"\")","v":""}]
[null,null,null,null,null,8,{"$f":"+IF(COUNTA('1 Segment Income'!H91:I91),('1 Segment Income'!H91),\"\")","v":""},null,null,"OtherReportableSegments8Member","DescriptionOfOtherReportableSegments","SegmentTechnicalLiabilitiesUnexpiredClaimsReservesIncludingIBNRAndIBNER",null,null,null,null,null,{"$f":"IF(COUNTA('6 Segment Technical Liabilities'!H33),'6 Segment Technical Liabilities'!H33,\"\")","v":""}]
[null,null,null,null,null,9,{"$f":"+IF(COUNTA('1 Segment Income'!H96:I96),('1 Segment Income'!H96),\"\")","v":""},null,null,"OtherReportableSegments9Member","DescriptionOfOtherReportableSegments","SegmentTechnicalLiabilitiesUnexpiredClaimsReservesIncludingIBNRAndIBNER",null,null,null,null,null,{"$f":"IF(COUNTA('6 Segment Technical Liabilities'!H34),'6 Segment Technical Liabilities'!H34,\"\")","v":""}]
[null,null,null,null,null,10,{"$f":"+IF(COUNTA('1 Segment Income'!H101:I101),('1 Segment Income'!H101),\"\")","v":""},null,null,"OtherReportableSegments10Member","DescriptionOfOtherReportableSegments","SegmentTechnicalLiabilitiesUnexpiredClaimsReservesIncludingIBNRAndIBNER",null,null,null,null,null,{"$f":"IF(COUNTA('6 Segment Technical Liabilities'!H35),'6 Segment Technical Liabilities'!H35,\"\")","v":""}]
[null,null,null,null,null,null,null,null,null,null,null,null,null,null,null,null,null,{"$f":"IF(COUNTA('6 Segment Technical Liabilities'!H36),'6 Segment Technical Liabilities'!H36,\"\")","v":""}]
[null,null,null,null,null,11,"Unallocated",null,null,"UnallocatedMember","DescriptionOfOtherReportableSegments","SegmentTechnicalLiabilitiesUnexpiredClaimsReservesIncludingIBNRAndIBNER",null,null,null,null,null,{"$f":"IF(COUNTA('6 Segment Technical Liabilities'!H37),'6 Segment Technical Liabilities'!H37,\"\")","v":""}]
[null,null,null,null,null,12,"Notes to the Technical Liabilities",null,null,"DisclosureOfNotesOnSegmentTechnicalLiabilitiesUnexpiredClaimsReservesIncludingIBNRAndIBNERExplanatoryTextBlock"]

{"sheet":"Cash Flow Direct","index":9,"n_rows":91,"n_cols":10,"rows_kept":91,"cut":false,"hidden":true,"merged":[[7,3,7,5],[8,3,8,4],[13,4,13,5]]}
[]
[]
[]
[]
[]
[]
[]
[null,null,null,"Cash flow statement,direct"]
[null,null,null,"Particulars",null,{"$f":"IF('General Info'!E22=\"Half yearly\",\"6 months ended (dd-mm-yyyy)\",\"Year ended (dd-mm-yyyy)\")","v":"Year ended (dd-mm-yyyy)"}]
[null,null,null,"A","Date of start of reporting period"]
[null,null,null,"B","Date of end of reporting period"]
[null,null,null,"C","Whether results are audited or unaudited",{"$f":"+IF(COUNTA('General Info'!E24),'General Info'!E24,\"\")","v":""}]
[null,null,null,"D","Nature of report standalone or consolidated",{"$f":"+IF(COUNTA('General Info'!E23),'General Info'!E23,\"\")","v":""}]
[null,null,null,"Part I","Blue color marked fields are non-mandatory.                   "]
[null,null,null,null,"Statement of cash flows",null,null,null,null,"Statement of cash flows [Abstract]"]
[null,null,null,null,"Whether cash flow statement is applicable on company","Yes",null,null,null,"Cash flows from used in operating activities [Abstract]"]
[null,null,null,null,"Cash flows from used in operating activities",null,null,null,null,"Cash flows from used in operating activities [Abstract]"]
[null,null,null,null,"Classes of cash receipts from operating activities",null,null,null,null,"Classes of cash receipts from operating activities [Abstract]"]
[null,null,null,null,"Receipts from sales of goods and rendering of services",null,null,null,null,"Receipts from sales of goods and rendering of services"]
[null,null,null,null,"Receipts from royalties fees, commissions and other revenue",null,null,null,null,"Receipts from royalties fees, commissions and other revenue"]
[null,null,null,null,"Receipts from contracts held for dealing or trading purpose",null,null,null,null,"Receipts from contracts held for dealing or trading purpose"]
[null,null,null,null,"Receipts from premiums and claims annuities and other policy benefits",null,null,null,null,"Receipts from premiums and claims annuities and other policy benefits"]
[null,null,null,null,"Receipts from rents and subsequent sales of assets held for rental to others and subsequently held for sale",null,null,null,null,"Receipts from rents and subsequent sales of assets held for rental to others and subsequently held for sale"]
[null,null,null,null,"Other cash receipts from operating activities",null,null,null,null,"Other cash receipts from operating activities"]
[null,null,null,null,"Classes of cash payments from operating activities",null,null,null,null,"Classes of cash payments from operating activities [Abstract]"]
[null,null,null,null,"Payments to suppliers for goods and services",null,null,null,null,"Payments to suppliers for goods and services"]
[null,null,null,null,"Payments from contracts held for dealing or trading purpose",null,null,null,null,"Payments from contracts held for dealing or trading purpose"]
[null,null,null,null,"Payments to and on behalf of employees",null,null,null,null,"Payments to and on behalf of employees"]
[null,null,null,null,"Payments for premiums and claims, annuities and other policy benefits",null,null,null,null,"Payments for premiums and claims, annuities and other policy benefits"]
[null,null,null,null,"Payments to manufacture or acquire assets held for rental to others and subsequently held for sale",null,null,null,null,"Payments to manufacture or acquire assets held for rental to others and subsequently held for sale"]
[null,null,null,null,"Other cash payments from operating activities",null,null,null,null,"Other cash payments from operating activities"]
[null,null,null,null,"Net cash flows from (used in) operations",{"$f":"IF(COUNT(F19:F31),ROUND(SUM(F19:F24)-SUM(F26:F31),3),\"\")","v":""},null,null,null,"Net cash flows from (used in) operations operating activities"]
[null,null,null,null,"Dividends received",null,null,null,null,"Dividends received operating activities"]
[null,null,null,null,"Interest paid",null,null,null,null,"Interest paid operating activities"]
[null,null,null,null,"Interest received",null,null,null,null,"Interest received operating activities"]
[null,null,null,null,"Income taxes paid (refund)",null,null,null,null,"Income taxes paid (refund) operating activities"]
[null,null,null,null,"Other inflows (outflows) of cash",null,null,null,null,"Other inflows (outflows) of cash operating activities"]
[null,null,null,null,"Net cash flows from (used in) operating activities",{"$f":"IF(COUNT(F32:F37),ROUND(SUM(F32)+SUM(F33)-SUM(F34)+SUM(F35)-SUM(F36)+SUM(F37),3),\"\")","v":""},null,null,null,"Net cash flows from (used in) operating activities"]
[null,null,null,null,"Cash flows from used in investing activities",null,null,null,null,"Cash flows from used in investing activities [Abstract]"]
[null,null,null,null,"Cash flows from losing control of subsidiaries or other businesses",null,null,null,null,"Cash flows from losing control of subsidiaries or other businesses investing activities"]
[null,null,null,null,"Cash flows used in obtaining control of subsidiaries or other businesses",null,null,null,null,"Cash flows used in obtaining control of subsidiaries or other businesses investing activities"]
[null,null,null,null,"Other cash receipts from sales of equity or debt instruments of other entities",null,null,null,null,"Other cash receipts from sales of equity or debt instruments of other entities investing activities"]
[null,null,null,null,"Other cash payments to acquire equity or debt instruments of other entities",null,null,null,null,"Other cash payments to acquire equity or debt instruments of other entities investing activities"]
[null,null,null,null,"Other cash receipts from sales of interests in joint ventures",null,null,null,null,"Other cash receipts from sales of interests in joint ventures investing activities"]
[null,null,null,null,"Other cash payments to acquire interests in joint ventures",null,null,null,null,"Other cash payments to acquire interests in joint ventures investing activities"]
[null,null,null,null,"Proceeds from sales of property, plant and equipment",null,null,null,null,"Proceeds from sales of property, plant and equipment investing activities"]
[null,null,null,null,"Purchase of property, plant and equipment",null,null,null,null,"Purchase of property, plant and equipment investing activities"]
[null,null,null,null,"Proceeds from sales of investment property",null,null,null,null,"Proceeds from sales of investment property investing activities"]
[null,null,null,null,"Purchase of investment property",null,null,null,null,"Purchase of investment property investing activities"]
[null,null,null,null,"Proceeds from sales of goodwill",null,null,null,null,"Proceeds from sales of goodwill investing activities"]
[null,null,null,null,"Purchase of goodwill",null,null,null,null,"Purchase of goodwill investing activities"]
[null,null,null,null,"Proceeds from sales of intangible assets",null,null,null,null,"Proceeds from sales of intangible assets investing activities"]
[null,null,null,null,"Purchase of intangible assets",null,null,null,null,"Purchase of intangible assets investing activities"]
[null,null,null,null,"Proceeds from biological assets other than bearer plants",null,null,null,null,"Proceeds from biological assets other than bearer plants investing activities"]
[null,null,null,null,"Purchase of biological assets other than bearer plants",null,null,null,null,"Purchase of biological assets other than bearer plants investing activities"]
[null,null,null,null,"Proceeds from sales of other long-term assets",null,null,null,null,"Proceeds from sales of other long-term assets investing activities"]
[null,null,null,null,"Purchase of other long-term assets",null,null,null,null,"Purchase of other long-term assets investing activities"]
[null,null,null,null,"Cash advances and loans made to other parties",null,null,null,null,"Cash advances and loans made to other parties investing activities"]
[null,null,null,null,"Cash receipts from repayment of advances and loans made to other parties",null,null,null,null,"Cash receipts from repayment of advances and loans made to other parties investing activities"]
[null,null,null,null,"Cash payments for future contracts, forward contracts, option contracts and swap contracts",null,null,null,null,"Cash payments for future contracts, forward contracts, option contracts and swap contracts investing activities"]
[null,null,null,null,"Cash receipts from future contracts, forward contracts, option contracts and swap contracts",null,null,null,null,"Cash receipts from future contracts, forward contracts, option contracts and swap contracts investing activities"]
[null,null,null,null,"Dividends received",null,null,null,null,"Dividends received investing activities"]
[null,null,null,null,"Interest received",null,null,null,null,"Interest received investing activities"]
[null,null,null,null,"Income taxes paid (refund)",null,null,null,null,"Income taxes paid (refund) investing activities"]
[null,null,null,null,"Other inflows (outflows) of cash",null,null,null,null,"Other inflows (outflows) of cash investing activities"]
[null,null,null,null,"Proceeds from government grants",null,null,null,null,"Proceeds from government grants investing activities"]
[null,null,null,null,"Net cash flows from (used in) investing activities",{"$f":"IF(COUNT(F40:F66),ROUND(SUM(F40)-SUM(F41)+SUM(F42)-SUM(F43)+SUM(F44)-SUM(F45)+SUM(F46)-SUM(F47)+SUM(F48)-SUM(F49)+SUM(F50)-SUM(F51)+SUM(F52)-SUM(F53)+SUM(F54)-SUM(F55)+SUM(F56)-SUM(F57)-SUM(F58)+SUM(F59)-SUM(F60)+SUM(F61)+SUM(F62)+SUM(F63)-SUM(F64)+SUM(F65)+SUM(F66),3),\"\")","v":""},null,null,null,"Net cash flows from (used in) investing activities"]
[null,null,null,null,"Cash flows from used in financing activities",null,null,null,null,"Cash flows from used in financing activities [Abstract]"]
[null,null,null,null,"Proceeds from changes in ownership interests in subsidiaries that do not result in loss of control",null,null,null,null,"Proceeds from changes in ownership interests in subsidiaries that do not result in loss of control"]
[null,null,null,null,"Payments from changes in ownership interests in subsidiaries that do not result in loss of control",null,null,null,null,"Payments from changes in ownership interests in subsidiaries that do not result in loss of control"]
[null,null,null,null,"Proceeds from issuing shares",null,null,null,null,"Proceeds from issuing shares financing activities"]
[null,null,null,null,"Proceeds from issuing other equity instruments",null,null,null,null,"Proceeds from issuing other equity instruments financing activities"]
[null,null,null,null,"Payments to acquire or redeem entity's shares",null,null,null,null,"Payments to acquire or redeem entity's shares financing activities"]
[null,null,null,null,"Payments of other equity instruments",null,null,null,null,"Payments of other equity instruments financing activities"]
[null,null,null,null,"Proceeds from exercise of stock options",null,null,null,null,"Proceeds from exercise of stock options financing activities"]
[null,null,null,null,"Proceeds from issuing debentures notes bonds etc",null,null,null,null,"Proceeds from issuing debentures notes bonds etc financing activities"]
[null,null,null,null,"Proceeds from borrowings",null,null,null,null,"Proceeds from borrowings financing activities"]
[null,null,null,null,"Repayments of borrowings",null,null,null,null,"Repayments of borrowings financing activities"]
[null,null,null,null,"Payments of finance lease liabilities",null,null,null,null,"Payments of finance lease liabilities financing activities"]
[null,null,null,null,"Payments of lease liabilities",null,null,null,null,"Payments of lease liabilities financing activities"]
[null,null,null,null,"Dividends paid",null,null,null,null,"Dividends paid financing activities"]
[null,null,null,null,"Interest paid",null,null,null,null,"Interest paid financing activities"]
[null,null,null,null,"Income taxes paid (refund)",null,null,null,null,"Income taxes paid (refund) financing activities"]
[null,null,null,null,"Other inflows (outflows) of cash",null,null,null,null,"Other inflows (outflows) of cash financing activities"]
[null,null,null,null,"Net cash flows from (used in) financing activities",{"$f":"IF(COUNT(F69:F84),ROUND(SUM(F69)-SUM(F70)+SUM(F71)+SUM(F72)-SUM(F73)-SUM(F74)+SUM(F75)+SUM(F76)+SUM(F77)-SUM(F78)-SUM(F79)-SUM(F80)-SUM(F81)-SUM(F82)-SUM(F83)+SUM(F84),3),\"\")","v":""},null,null,null,"Net cash flows from (used in) financing activities"]
[null,null,null,null,"Net increase (decrease) in cash and cash equivalents before effect of exchange rate changes",{"$f":"IF(COUNT(F38:F85),ROUND(SUM(F38)+SUM(F67)+SUM(F85),3),\"\")","v":""},null,null,null,"Net increase (decrease) in cash and cash equivalents before effect of exchange rate changes"]
[null,null,null,null,"Effect of exchange rate changes on cash and cash equivalents",null,null,null,null,"Effect of exchange rate changes on cash and cash equivalents [Abstract]"]
[null,null,null,null,"Effect of exchange rate changes on cash and cash equivalents",null,null,null,null,"Effect of exchange rate changes on cash and cash equivalents"]
[null,null,null,null,"Net increase (decrease) in cash and cash equivalents",{"$f":"IF(COUNT(F86,F88),ROUND(SUM(F86)+SUM(F88),3),\"\")","v":""},null,null,null,"Net increase (decrease) in cash and cash equivalents"]
[null,null,null,null,"Cash and cash equivalents cash flow statement at beginning of period",null,null,null,null,"Cash and cash equivalents cash flow statement at beginning of period"]
[null,null,null,null,"Cash and cash equivalents cash flow statement at end of period",{"$f":"+IF(COUNT(F89:F90),ROUND(SUM(F89)+SUM(F90),3),\"\")","v":""},null,null,null,"Cash and cash equivalents cash flow statement at end of period"]

{"sheet":"Cash Flow Indirect","index":10,"n_rows":113,"n_cols":10,"rows_kept":113,"cut":false,"hidden":true,"merged":[[7,3,7,5],[8,3,8,4],[13,4,13,5]]}
[]
[]
[]
[]
[]
[]
[]
[null,null,null,"Cash flow statement, indirect"]
[null,null,null,"Particulars",null,{"$f":"IF('General Info'!E22=\"Half yearly\",\"6 months ended (dd-mm-yyyy)\",\"Year ended (dd-mm-yyyy)\")","v":"Year ended (dd-mm-yyyy)"}]
[null,null,null,"A","Date of start of reporting period"]
[null,null,null,"B","Date of end of reporting period"]
[null,null,null,"C","Whether results are audited or unaudited",{"$f":"+IF(COUNTA('General Info'!E24),'General Info'!E24,\"\")","v":""}]
[null,null,null,"D","Nature of report standalone or consolidated",{"$f":"+IF(COUNTA('General Info'!E23),'General Info'!E23,\"\")","v":""}]
[null,null,null,"Part I","Blue color marked fields are non-mandatory.                   "]
[null,null,null,null,"Statement of cash flows"]
[null,null,null,null,"Whether cash flow statement is applicable on company"]
[null,null,null,null,"Cash flows from used in operating activities"]
[null,null,null,null,"Profit before tax",{"$f":"+IF(COUNTA('Financial Results'!$I$88),'Financial Results'!$I$88,\"\")","v":""},null,null,null,"Profit before tax indirect"]
[null,null,null,null,"Adjustments for reconcile profit (loss)",null,null,null,null,"Adjustments for reconcile profit (loss) [Abstract]"]
[null,null,null,null,"Adjustments for finance costs",null,null,null,null,"Adjustments for finance costs"]
[null,null,null,null,"Adjustments for decrease (increase) in inventories",null,null,null,null,"Adjustments for decrease (increase) in inventories"]
[null,null,null,null,"Adjustments for decrease (increase) in trade receivables, current",null,null,null,null,"Adjustments for decrease (increase) in trade receivables, current"]
[null,null,null,null,"Adjustments for decrease (increase) in trade receivables, non-current",null,null,null,null,"Adjustments for decrease (increase) in trade receivables, non-current"]
[null,null,null,null,"Adjustments for decrease (increase) in other current assets",null,null,null,null,"Adjustments for decrease (increase) in other current assets"]
[null,null,null,null,"Adjustments for decrease (increase) in other non-current assets",null,null,null,null,"Adjustments for decrease (increase) in other non-current assets"]
[null,null,null,null,"Adjustments for other financial assets, non-current",null,null,null,null,"Adjustments for other financial assets, non-current"]
[null,null,null,null,"Adjustments for other financial assets, current",null,null,null,null,"Adjustments for other financial assets, current"]
[null,null,null,null,"Adjustments for other bank balances",null,null,null,null,"Adjustments for other bank balances"]
[null,null,null,null,"Adjustments for increase (decrease) in trade payables, current",null,null,null,null,"Adjustments for increase (decrease) in trade payables, current"]
[null,null,null,null,"Adjustments for increase (decrease) in trade payables, non-current",null,null,null,null,"Adjustments for increase (decrease) in trade payables, non-current"]
[null,null,null,null,"Adjustments for increase (decrease) in other current liabilities",null,null,null,null,"Adjustments for increase (decrease) in other current liabilities"]
[null,null,null,null,"Adjustments for increase (decrease) in other non-current liabilities",null,null,null,null,"Adjustments for increase (decrease) in other non-current liabilities"]
[null,null,null,null,"Adjustments for depreciation and amortisation expense",null,null,null,null,"Adjustments for depreciation and amortisation expense"]
[null,null,null,null,"Adjustments for impairment loss reversal of impairment loss recognised in profit or loss",null,null,null,null,"Adjustments for impairment loss reversal of impairment loss recognised in profit or loss"]
[null,null,null,null,"Adjustments for provisions, current",null,null,null,null,"Adjustments for provisions, current"]
[null,null,null,null,"Adjustments for provisions, non-current",null,null,null,null,"Adjustments for provisions, non-current"]
[null,null,null,null,"Adjustments for other financial liabilities, current",null,null,null,null,"Adjustments for other financial liabilities, current"]
[null,null,null,null,"Adjustments for other financial liabilities, non-current",null,null,null,null,"Adjustments for other financial liabilities, non-current"]
[null,null,null,null,"Adjustments for unrealised foreign exchange losses gains",null,null,null,null,"Adjustments for unrealised foreign exchange losses gains"]
[null,null,null,null,"Adjustments for dividend income",null,null,null,null,"Adjustments for dividend income"]
[null,null,null,null,"Adjustments for interest income",null,null,null,null,"Adjustments for interest income"]
[null,null,null,null,"Adjustments for share-based payments",null,null,null,null,"Adjustments for share-based payments"]
[null,null,null,null,"Adjustments for fair value losses (gains)",null,null,null,null,"Adjustments for fair value losses (gains)"]
[null,null,null,null,"Adjustments for undistributed profits of associates",null,null,null,null,"Adjustments for undistributed profits of associates"]
[null,null,null,null,"Other adjustments for which cash effects are investing or financing cash flow",null,null,null,null,"Other adjustments for which cash effects are investing or financing cash flow"]
[null,null,null,null,"Other adjustments to reconcile profit (loss)",null,null,null,null,"Other adjustments to reconcile profit (loss)"]
[null,null,null,null,"Other adjustments for non-cash items",null,null,null,null,"Other adjustments for non-cash items"]
[null,null,null,null,"Share of profit and loss from partnership firm or association of persons or limited liability partnerships",null,null,null,null,"Share of profit and loss from partnership firm or association of persons or limited liability partnerships"]
[null,null,null,null,"Total adjustments for reconcile profit (loss)",{"$f":"IF(COUNT(F20:F48),ROUND(SUM(F20:F39)-SUM(F40:F41)+SUM(F42:F43)-SUM(F44)+SUM(F45:F48),3),\"\")","v":""},null,null,null,"Total adjustments for reconcile profit (loss)"]
[null,null,null,null,"Net cash flows from (used in) operations",{"$f":"IF(COUNT(F18,F49),ROUND(SUM(F18)+SUM(F49),3),\"\")","v":""},null,null,null,"Net cash flows from (used in) operations operating activities"]
[null,null,null,null,"Dividends received",null,null,null,null,"Dividends received operating activities"]
[null,null,null,null,"Interest paid",null,null,null,null,"Interest paid operating activities"]
[null,null,null,null,"Interest received",null,null,null,null,"Interest received operating activities"]
[null,null,null,null,"Income taxes paid (refund)",null,null,null,null,"Income taxes paid (refund) operating activities"]
[null,null,null,null,"Other inflows (outflows) of cash",null,null,null,null,"Other inflows (outflows) of cash operating activities"]
[null,null,null,null,"Net cash flows from (used in) operating activities",{"$f":"IF(COUNT(F50:F55),ROUND(SUM(F50)+SUM(F51)-SUM(F52)+SUM(F53)-SUM(F54)+SUM(F55),3),\"\")","v":""},null,null,null,"Net cash flows from (used in) operating activities"]
[null,null,null,null,"Cash flows from used in investing activities",null,null,null,null,"Cash flows from used in investing activities [Abstract]"]
[null,null,null,null,"Cash flows from losing control of subsidiaries or other businesses",null,null,null,null,"Cash flows from losing control of subsidiaries or other businesses investing activities"]
[null,null,null,null,"Cash flows used in obtaining control of subsidiaries or other businesses",null,null,null,null,"Cash flows used in obtaining control of subsidiaries or other businesses investing activities"]
[null,null,null,null,"Other cash receipts from sales of equity or debt instruments of other entities",null,null,null,null,"Other cash receipts from sales of equity or debt instruments of other entities investing activities"]
[null,null,null,null,"Other cash payments to acquire equity or debt instruments of other entities",null,null,null,null,"Other cash payments to acquire equity or debt instruments of other entities investing activities"]
[null,null,null,null,"Other cash receipts from sales of interests in joint ventures",null,null,null,null,"Other cash receipts from sales of interests in joint ventures investing activities"]
[null,null,null,null,"Other cash payments to acquire interests in joint ventures",null,null,null,null,"Other cash payments to acquire interests in joint ventures investing activities"]
[null,null,null,null,"Cash receipts from share of profits of partnership firm or association of persons or limited liability partnerships",null,null,null,null,"Cash receipts from share of profits of partnership firm or association of persons or limited liability partnerships"]
[null,null,null,null,"Cash payment for investment in partnership firm or association of persons or limited liability partnerships",null,null,null,null,"Cash payment for investment in partnership firm or association of persons or limited liability partnerships"]
[null,null,null,null,"Proceeds from sales of property, plant and equipment",null,null,null,null,"Proceeds from sales of property, plant and equipment investing activities"]
[null,null,null,null,"Purchase of property, plant and equipment",null,null,null,null,"Purchase of property, plant and equipment investing activities"]
[null,null,null,null,"Proceeds from sales of investment property",null,null,null,null,"Proceeds from sales of investment property investing activities"]
[null,null,null,null,"Purchase of investment property",null,null,null,null,"Purchase of investment property investing activities"]
[null,null,null,null,"Proceeds from sales of intangible assets",null,null,null,null,"Proceeds from sales of intangible assets investing activities"]
[null,null,null,null,"Purchase of intangible assets",null,null,null,null,"Purchase of intangible assets investing activities"]
[null,null,null,null,"Proceeds from sales of intangible assets under development",null,null,null,null,"Proceeds from sales of intangible assets under development"]
[null,null,null,null,"Purchase of intangible assets under development",null,null,null,null,"Purchase of intangible assets under development"]
[null,null,null,null,"Proceeds from sales of goodwill",null,null,null,null,"Proceeds from sales of goodwill investing activities"]
[null,null,null,null,"Purchase of goodwill",null,null,null,null,"Purchase of goodwill investing activities"]
[null,null,null,null,"Proceeds from biological assets other than bearer plants",null,null,null,null,"Proceeds from biological assets other than bearer plants investing activities"]
[null,null,null,null,"Purchase of biological assets other than bearer plants",null,null,null,null,"Purchase of biological assets other than bearer plants investing activities"]
[null,null,null,null,"Proceeds from government grants",null,null,null,null,"Proceeds from government grants investing activities"]
[null,null,null,null,"Proceeds from sales of other long-term assets",null,null,null,null,"Proceeds from sales of other long-term assets investing activities"]
[null,null,null,null,"Purchase of other long-term assets",null,null,null,null,"Purchase of other long-term assets investing activities"]
[null,null,null,null,"Cash advances and loans made to other parties",null,null,null,null,"Cash advances and loans made to other parties investing activities"]
[null,null,null,null,"Cash receipts from repayment of advances and loans made to other parties",null,null,null,null,"Cash receipts from repayment of advances and loans made to other parties investing activities"]
[null,null,null,null,"Cash payments for future contracts, forward contracts, option contracts and swap contracts",null,null,null,null,"Cash payments for future contracts, forward contracts, option contracts and swap contracts investing activities"]
[null,null,null,null,"Cash receipts from future contracts, forward contracts, option contracts and swap contracts",null,null,null,null,"Cash receipts from future contracts, forward contracts, option contracts and swap contracts investing activities"]
[null,null,null,null,"Dividends received",null,null,null,null,"Dividends received investing activities"]
[null,null,null,null,"Interest received",null,null,null,null,"Interest received investing activities"]
[null,null,null,null,"Income taxes paid (refund)",null,null,null,null,"Income taxes paid (refund) investing activities"]
[null,null,null,null,"Other inflows (outflows) of cash",null,null,null,null,"Other inflows (outflows) of cash investing activities"]
[null,null,null,null,"Net cash flows from (used in) investing activities",{"$f":"IF(COUNT(F58:F88),ROUND(SUM(F58)-SUM(F59)+SUM(F60)-SUM(F61)+SUM(F62)-SUM(F63)+SUM(F64)-SUM(F65)+SUM(F66)-SUM(F67)+SUM(F68)-SUM(F69)+SUM(F70)-SUM(F71)+SUM(F72)-SUM(F73)+SUM(F74)-SUM(F75)+SUM(F76)-SUM(F77)+SUM(F78)+SUM(F79)-SUM(F80)-SUM(F81)+SUM(F82)-SUM(F83)+SUM(F84:F86)-SUM(F87)+SUM(F88),3),\"\")","v":""},null,null,null,"Net cash flows from (used in) investing activities"]
[null,null,null,null,"Cash flows from used in financing activities",null,null,null,null,"Cash flows from used in financing activities [Abstract]"]
[null,null,null,null,"Proceeds from changes in ownership interests in subsidiaries",null,null,null,null,"Proceeds from changes in ownership interests in subsidiaries"]
[null,null,null,null,"Payments from changes in ownership interests in subsidiaries",null,null,null,null,"Payments from changes in ownership interests in subsidiaries"]
[null,null,null,null,"Proceeds from issuing shares",null,null,null,null,"Proceeds from issuing shares financing activities"]
[null,null,null,null,"Proceeds from issuing other equity instruments",null,null,null,null,"Proceeds from issuing other equity instruments financing activities"]
[null,null,null,null,"Payments to acquire or redeem entity's shares",null,null,null,null,"Payments to acquire or redeem entity's shares financing activities"]
[null,null,null,null,"Payments of other equity instruments",null,null,null,null,"Payments of other equity instruments financing activities"]
[null,null,null,null,"Proceeds from exercise of stock options",null,null,null,null,"Proceeds from exercise of stock options financing activities"]
[null,null,null,null,"Proceeds from issuing debentures notes bonds etc",null,null,null,null,"Proceeds from issuing debentures notes bonds etc financing activities"]
[null,null,null,null,"Proceeds from borrowings",null,null,null,null,"Proceeds from borrowings financing activities"]
[null,null,null,null,"Repayments of borrowings",null,null,null,null,"Repayments of borrowings financing activities"]
[null,null,null,null,"Payments of finance lease liabilities",null,null,null,null,"Payments of finance lease liabilities financing activities"]
[null,null,null,null,"Payments of lease liabilities",null,null,null,null,"Payments of lease liabilities financing activities"]
[null,null,null,null,"Dividends paid",null,null,null,null,"Dividends paid financing activities"]
[null,null,null,null,"Interest paid",null,null,null,null,"Interest paid financing activities"]
[null,null,null,null,"Income taxes paid (refund)",null,null,null,null,"Income taxes paid (refund) financing activities"]
[null,null,null,null,"Other inflows (outflows) of cash",null,null,null,null,"Other inflows (outflows) of cash financing activities"]
[null,null,null,null,"Net cash flows from (used in) financing activities",{"$f":"IF(COUNT(F91:F106),ROUND(SUM(F91)-SUM(F92)+SUM(F93)+SUM(F94)-SUM(F95)-SUM(F96)+SUM(F97)+SUM(F98)+SUM(F99)-SUM(F100)-SUM(F101)-SUM(F102)-SUM(F103)-SUM(F104)-SUM(F105)+SUM(F106),3),\"\")","v":""},null,null,null,"Net cash flows from (used in) financing activities"]
[null,null,null,null,"Net increase (decrease) in cash and cash equivalents before effect of exchange rate changes",{"$f":"IF(COUNT(F56:F107),ROUND(SUM(F56)+SUM(F89)+SUM(F107),3),\"\")","v":""},null,null,null,"Net increase (decrease) in cash and cash equivalents before effect of exchange rate changes"]
[null,null,null,null,"Effect of exchange rate changes on cash and cash equivalents",null,null,null,null,"Effect of exchange rate changes on cash and cash equivalents [Abstract]"]
[null,null,null,null,"Effect of exchange rate changes on cash and cash equivalents",null,null,null,null,"Effect of exchange rate changes on cash and cash equivalents"]
[null,null,null,null,"Net increase (decrease) in cash and cash equivalents",{"$f":"IF(COUNT(F108,F110),ROUND(SUM(F108)+SUM(F110),3),\"\")","v":""},null,null,null,"Net increase (decrease) in cash and cash equivalents"]
[null,null,null,null,"Cash and cash equivalents cash flow statement at beginning of period",null,null,null,null,"Cash and cash equivalents cash flow statement at beginning of period"]
[null,null,null,null,"Cash and cash equivalents cash flow statement at end of period",{"$f":"IF(COUNT(F111,F112),ROUND(SUM(F111)+SUM(F112),3),\"\")","v":""},null,null,null,"Cash and cash equivalents cash flow statement at end of period"]

{"sheet":"5 Segment Technical Liabili (2","index":11,"n_rows":38,"n_cols":18,"rows_kept":38,"cut":false,"hidden":true,"merged":[[35,5,35,7],[7,5,7,7],[8,5,8,6],[9,5,9,6],[10,5,10,6],[11,5,11,6],[12,5,12,6]]}
[]
[]
[]
[null,null,null,null,null,null,null,null,null,"Audited","Unaudited"]
[]
[]
[]
[null,null,null,null,null,"Format for financial results by general insurance companies filed with stock exchanges"]
[null,null,null,null,null,"Partiuclars",null,"Current Quarter"]
[null,null,null,null,null,"Date of start of reporting period"]
[null,null,null,null,null,"Date of end of reporting period"]
[null,null,null,null,null,"Whether accounts are audited or unaudited",null,{"$f":"+IF(COUNTA('General Info'!E24),'General Info'!E24,\"\")","v":""}]
[null,null,null,null,null,"Segment Technical Liabilities \n(Unexpired Risk Reserve-Net)"]
[null,null,null,null,null,1,"Fire",null,null,"FireMember",null,"SegmentTechnicalLiabilities",null,null,null,null,null,{"$f":"IF(COUNTA('5 Segment Technical Liabili (2'!H14),'5 Segment Technical Liabili (2'!H14,\"\")","v":""}]
[null,null,null,null,null,2,"Marine",null,null,"MarineMember",null,"SegmentTechnicalLiabilities",null,null,null,null,null,{"$f":"IF(COUNTA('5 Segment Technical Liabili (2'!H15),'5 Segment Technical Liabili (2'!H15,\"\")","v":""}]
[null,null,null,null,null,3,"Health including personal accident",null,null,"HealthIncludingPersonalAccidentMember",null,"SegmentTechnicalLiabilities",null,null,null,null,null,{"$f":"IF(COUNTA('5 Segment Technical Liabili (2'!H16),'5 Segment Technical Liabili (2'!H16,\"\")","v":""}]
[null,null,null,null,null,4,"Health retail",null,null,"HealthRetailMember",null,"SegmentTechnicalLiabilities",null,null,null,null,null,{"$f":"IF(COUNTA('5 Segment Technical Liabili (2'!H17),'5 Segment Technical Liabili (2'!H17,\"\")","v":""}]
[null,null,null,null,null,5,"Health group",null,null,"HealthGroupMember",null,"SegmentTechnicalLiabilities",null,null,null,null,null,{"$f":"IF(COUNTA('5 Segment Technical Liabili (2'!H18),'5 Segment Technical Liabili (2'!H18,\"\")","v":""}]
[null,null,null,null,null,6,"Health government schemes",null,null,"HealthGovernmentSchemesMember",null,"SegmentTechnicalLiabilities",null,null,null,null,null,{"$f":"IF(COUNTA('5 Segment Technical Liabili (2'!H19),'5 Segment Technical Liabili (2'!H19,\"\")","v":""}]
[null,null,null,null,null,7,"Motor",null,null,"MotorMember",null,"SegmentTechnicalLiabilities",null,null,null,null,null,{"$f":"IF(COUNTA('5 Segment Technical Liabili (2'!H20),'5 Segment Technical Liabili (2'!H20,\"\")","v":""}]
[null,null,null,null,null,8,"Miscellaneous",null,null,"MiscellaneousMember",null,"SegmentTechnicalLiabilities",null,null,null,null,null,{"$f":"IF(COUNTA('5 Segment Technical Liabili (2'!H21),'5 Segment Technical Liabili (2'!H21,\"\")","v":""}]
[null,null,null,null,null,9,"Retail",null,null,"RetailMember",null,"SegmentTechnicalLiabilities",null,null,null,null,null,{"$f":"IF(COUNTA('5 Segment Technical Liabili (2'!H22),'5 Segment Technical Liabili (2'!H22,\"\")","v":""}]
[null,null,null,null,null,10,"Group and corporate",null,null,"GroupAndCorporateMember",null,"SegmentTechnicalLiabilities",null,null,null,null,null,{"$f":"IF(COUNTA('5 Segment Technical Liabili (2'!H23),'5 Segment Technical Liabili (2'!H23,\"\")","v":""}]
[null,null,null,null,null,11,"Any other class as may be specified by the Authority. - Enter the name below",null,null,null,null,null,null,null,null,null,null,{"$f":"IF(COUNTA('5 Segment Technical Liabili (2'!H24),'5 Segment Technical Liabili (2'!H24,\"\")","v":""}]
[null,null,null,null,null,null,"Name of Other Segment",null,null,null,null,null,null,null,null,null,null,{"$f":"IF(COUNTA('5 Segment Technical Liabili (2'!H25),'5 Segment Technical Liabili (2'!H25,\"\")","v":""}]
[null,null,null,null,null,1,{"$f":"+IF(COUNTA('1 Segment Income'!H56:I56),('1 Segment Income'!H56),\"\")","v":""},null,null,"OtherReportableSegments1Member","DescriptionOfReportableSegments","SegmentTechnicalLiabilities",null,null,null,null,null,{"$f":"IF(COUNTA('5 Segment Technical Liabili (2'!H26),'5 Segment Technical Liabili (2'!H26,\"\")","v":""}]
[null,null,null,null,null,2,{"$f":"+IF(COUNTA('1 Segment Income'!H61:I61),('1 Segment Income'!H61),\"\")","v":""},null,null,"OtherReportableSegments2Member","DescriptionOfReportableSegments","SegmentTechnicalLiabilities",null,null,null,null,null,{"$f":"IF(COUNTA('5 Segment Technical Liabili (2'!H27),'5 Segment Technical Liabili (2'!H27,\"\")","v":""}]
[null,null,null,null,null,3,{"$f":"+IF(COUNTA('1 Segment Income'!H66:I66),('1 Segment Income'!H66),\"\")","v":""},null,null,"OtherReportableSegments3Member","DescriptionOfReportableSegments","SegmentTechnicalLiabilities",null,null,null,null,null,{"$f":"IF(COUNTA('5 Segment Technical Liabili (2'!H28),'5 Segment Technical Liabili (2'!H28,\"\")","v":""}]
[null,null,null,null,null,4,{"$f":"+IF(COUNTA('1 Segment Income'!H71:I71),('1 Segment Income'!H71),\"\")","v":""},null,null,"OtherReportableSegments4Member","DescriptionOfReportableSegments","SegmentTechnicalLiabilities",null,null,null,null,null,{"$f":"IF(COUNTA('5 Segment Technical Liabili (2'!H29),'5 Segment Technical Liabili (2'!H29,\"\")","v":""}]
[null,null,null,null,null,5,{"$f":"+IF(COUNTA('1 Segment Income'!H76:I76),('1 Segment Income'!H76),\"\")","v":""},null,null,"OtherReportableSegments5Member","DescriptionOfReportableSegments","SegmentTechnicalLiabilities",null,null,null,null,null,{"$f":"IF(COUNTA('5 Segment Technical Liabili (2'!H30),'5 Segment Technical Liabili (2'!H30,\"\")","v":""}]
[null,null,null,null,null,6,{"$f":"+IF(COUNTA('1 Segment Income'!H81:I81),('1 Segment Income'!H81),\"\")","v":""},null,null,"OtherReportableSegments6Member","DescriptionOfReportableSegments","SegmentTechnicalLiabilities",null,null,null,null,null,{"$f":"IF(COUNTA('5 Segment Technical Liabili (2'!H31),'5 Segment Technical Liabili (2'!H31,\"\")","v":""}]
[null,null,null,null,null,7,{"$f":"+IF(COUNTA('1 Segment Income'!H86:I86),('1 Segment Income'!H86),\"\")","v":""},null,null,"OtherReportableSegments7Member","DescriptionOfReportableSegments","SegmentTechnicalLiabilities",null,null,null,null,null,{"$f":"IF(COUNTA('5 Segment Technical Liabili (2'!H32),'5 Segment Technical Liabili (2'!H32,\"\")","v":""}]
[null,null,null,null,null,8,{"$f":"+IF(COUNTA('1 Segment Income'!H91:I91),('1 Segment Income'!H91),\"\")","v":""},null,null,"OtherReportableSegments8Member","DescriptionOfReportableSegments","SegmentTechnicalLiabilities",null,null,null,null,null,{"$f":"IF(COUNTA('5 Segment Technical Liabili (2'!H33),'5 Segment Technical Liabili (2'!H33,\"\")","v":""}]
[null,null,null,null,null,9,{"$f":"+IF(COUNTA('1 Segment Income'!H96:I96),('1 Segment Income'!H96),\"\")","v":""},null,null,"OtherReportableSegments9Member","DescriptionOfReportableSegments","SegmentTechnicalLiabilities",null,null,null,null,null,{"$f":"IF(COUNTA('5 Segment Technical Liabili (2'!H34),'5 Segment Technical Liabili (2'!H34,\"\")","v":""}]
[null,null,null,null,null,10,{"$f":"+IF(COUNTA('1 Segment Income'!H101:I101),('1 Segment Income'!H101),\"\")","v":""},null,null,"OtherReportableSegments10Member","DescriptionOfReportableSegments","SegmentTechnicalLiabilities",null,null,null,null,null,{"$f":"IF(COUNTA('5 Segment Technical Liabili (2'!H35),'5 Segment Technical Liabili (2'!H35,\"\")","v":""}]
[null,null,null,null,null,null,null,null,null,null,null,null,null,null,null,null,null,{"$f":"IF(COUNTA('5 Segment Technical Liabili (2'!H36),'5 Segment Technical Liabili (2'!H36,\"\")","v":""}]
[null,null,null,null,null,12,"Unallocated",null,null,"UnallocatedMember","DescriptionOfReportableSegments","SegmentTechnicalLiabilities",null,null,null,null,null,{"$f":"IF(COUNTA('5 Segment Technical Liabili (2'!H37),'5 Segment Technical Liabili (2'!H37,\"\")","v":""}]
[null,null,null,null,null,13,"Notes to the Technical Liabilities",19,null,"DisclosureOfNotesOnSegmentTechnicalLiabilitiesExplanatoryTextBlock"]

{"sheet":"Balance Sheet","index":12,"n_rows":39,"n_cols":11,"rows_kept":39,"cut":false,"hidden":true,"merged":[[9,5,9,6],[8,5,8,6],[6,5,6,7],[7,5,7,6],[20,5,20,6]]}
[]
[]
[]
[null,null,null,null,null,null,null,null,null,"Audited","Unaudited"]
[]
[]
[null,null,null,null,null,"Format for financial results by general insurance companies filed with stock exchanges"]
[null,null,null,null,null,"Partiuclars",null,"Current Quarter"]
[null,null,null,null,null,"Date of end of reporting period",null,null,null,null,"DateOfEndOfReportingPeriod"]
[null,null,null,null,null,"Whether accounts are audited or unaudited",null,{"$f":"+IF(COUNTA('General Info'!E24),'General Info'!E24,\"\")","v":""},null,null,"WhetherResultsAreAuditedOrUnaudited"]
[null,null,null,null,null,"Sources of Funds"]
[null,null,null,null,null,1,"Share capital          ",null,null,null,"ShareCapital"]
[null,null,null,null,null,2,"Reserves and surplus",null,null,null,"ReservesAndSurplus"]
[null,null,null,null,null,3,"Share application money pending allotment",null,null,null,"ShareApplicationMoneyReceivedPendingAllotmentOfShares"]
[null,null,null,null,null,4,"Fair value change account"]
[null,null,null,null,null,"(a) ","Policyholders funds",null,null,null,"PolicyholdersFunds"]
[null,null,null,null,null,"(b) ","Shareholders funds",null,null,null,"ShareholdersFunds"]
[null,null,null,null,null,5,"Borrowings",null,null,null,"Borrowings"]
[null,null,null,null,null,6,"Minority Interest",null,null,null,"MinorityInterest"]
[null,null,null,null,null,null,"Total Sources of Funds",{"$f":"+IF(COUNT(H16:H19,H12:H14),SUM(H12:H14)+SUM(H16:H19),\"\")","v":""},null,null,"SourcesOfFunds"]
[null,null,null,null,null,"APPLICATION OF FUNDS",null,null,null,""]
[null,null,null,null,null,1,"Investments shareholders",null,null,null,"InvestmentsShareholders"]
[null,null,null,null,null,2,"Investments policyholders",null,null,null,"InvestmentsPolicyholders"]
[null,null,null,null,null,2,"Loans",null,null,null,"Loans"]
[null,null,null,null,null,3,"Fixed assets",null,null,null,"FixedAssets"]
[null,null,null,null,null,4,"Deferred Tax Asset",null,null,null,"DeferredTaxAsset"]
[null,null,null,null,null,5,"Current assets"]
[null,null,null,null,null,null,"Cash and bank balances",null,null,null,"CashAndBankBalances"]
[null,null,null,null,null,null,"Advances and other assets",null,null,null,"AdvancesAndOtherAssets"]
[null,null,null,null,null,6,"Sub-total (a)",{"$f":"+IF(COUNT(H28:H29),SUM(H28:H29),\"\")","v":""},null,null,"CurrentAssets"]
[null,null,null,null,null,7,"Current liabilities",null,null,null,"CurrentLiabilities"]
[null,null,null,null,null,8,"Provisions",null,null,null,"Provisions"]
[null,null,null,null,null,9,"Sub-total (b)",{"$f":"+IF(COUNT(H31:H32),SUM(H31:H32),\"\")","v":""},null,null,"CurrentLiabilitiesAndProvisions"]
[null,null,null,null,null,10,"Net current assets (c) = (a – b)",{"$f":"+IF(COUNT(H30,H33),SUM(H30)-SUM(H33),\"\")","v":""},null,null,"NetCurrentAssets"]
[null,null,null,null,null,11,"Miscellaneous expenditure (to the extent not written off or adjusted)",null,null,null,"MiscellaneousExpenditureToTheExtentNotWrittenOffOrAdjusted"]
[null,null,null,null,null,12,"Debit balance in profit & loss account (shareholders’ account)",null,null,null,"DebitBalanceInProfitAndLossAccountShareholdersAccount"]
[null,null,null,null,null,13,"Total",{"$f":"+IF(COUNT(H22:H26,H34,H35:H36),SUM(H22:H26)+SUM(H34)+SUM(H35:H36),\"\")","v":""},null,null,"ApplicationOfFunds"]
[null,null,null,null,null,14,"Contigent Liabilities",null,null,null,"ContigentLiabilities"]
[null,null,null,null,null,15,"Notes to the Balance Sheet",null,null,null,"DisclosureOfNotesToBalanceSheetExplanatoryTextBlock"]

{"sheet":"Sheet1","index":13,"n_rows":896,"n_cols":11,"rows_kept":896,"cut":false,"hidden":true,"merged":[]}
[]
["Prefix","Name","Name","id","type","substitutionGroup","balance","periodType","abstract","nillable","Validation"]
["in-capmkt","GeneralInformationAboutTheCompanyAbstract","GeneralInformationAboutTheCompanyAbstract","in-capmkt_GeneralInformationAboutTheCompanyAbstract","xbrli:stringItemType","xbrli:item",null,"duration","true","true"]
["in-capmkt","ScripCode","ScripCode","in-capmkt_ScripCode","in-capmkt-types:ScripCode","xbrli:item",null,"instant","false","true","This is a mandatory field. Should be valid SCRIP CODE  as per BSE Scrip Code Format. "]
["in-capmkt","NSESymbol","NSESymbol","in-capmkt_NSESymbol","in-capmkt-types:Symbol","xbrli:item",null,"instant","true","true","NSESymbol Must be Length of 12."]
["in-capmkt","MSEISymbol","MSEISymbol","in-capmkt_MSEISymbol","xbrli:stringItemType","xbrli:item",null,"instant","true","true"]
["in-capmkt","ISIN","ISIN","in-capmkt_ISIN","in-capmkt-types:ISINNumber","xbrli:item",null,"instant","true","true"]
["in-capmkt","TypeOfInsurance","TypeOfInsurance","in-capmkt_TypeOfInsurance","in-capmkt-types:TypeOfInsurance","xbrli:item",null,"instant","true","true"]
["in-capmkt","NameOfTheCompany","NameOfTheCompany","in-capmkt_NameOfTheCompany","xbrli:stringItemType","xbrli:item",null,"instant","true","true"]
["in-capmkt","DateOfStartOfFinancialYear","DateOfStartOfFinancialYear","in-capmkt_DateOfStartOfFinancialYear","xbrli:dateItemType","xbrli:item",null,"instant","false","true"]
["in-capmkt","DateOfEndOfFinancialYear","DateOfEndOfFinancialYear","in-capmkt_DateOfEndOfFinancialYear","xbrli:dateItemType","xbrli:item",null,"instant","false","true"]
["in-capmkt","DescriptionOfPresentationCurrency","DescriptionOfPresentationCurrency","in-capmkt_DescriptionOfPresentationCurrency","xbrli:stringItemType","xbrli:item",null,"instant","true","true"]
["in-capmkt","LevelOfRoundingUsedInFinancialStatements","LevelOfRoundingUsedInFinancialStatements","in-capmkt_LevelOfRoundingUsedInFinancialStatements","in-capmkt-types:LevelOfRounding","xbrli:item",null,"instant","true","true"]
["in-capmkt","DateOfBoardMeetingWhenFinancialResultsWereApproved","DateOfBoardMeetingWhenFinancialResultsWereApproved","in-capmkt_DateOfBoardMeetingWhenFinancialResultsWereApproved","xbrli:dateItemType","xbrli:item",null,"instant","false","true","Date on which prior intimation of the meeting for considering financial results was informed to the exchange must be on or before \"Date of board meeting when results were approved\"."]
["in-capmkt","ReportingQuarter","ReportingQuarter","in-capmkt_ReportingQuarter","xbrli:stringItemType","xbrli:item",null,"instant","false","true"]
["in-capmkt","NatureOfReportStandaloneConsolidated","NatureOfReportStandaloneConsolidated","in-capmkt_NatureOfReportStandaloneConsolidated","xbrli:stringItemType","xbrli:item",null,"instant","false","true"]
["in-capmkt","DateOfStartOfBoardMeeting","DateOfStartOfBoardMeeting","in-capmkt_DateOfStartOfBoardMeeting","xbrli:dateItemType","xbrli:item",null,"instant","false","true","Start date of board meeting would be the next quarter then the reporting quarter (e.g. if results are submitted for June, quarter start time and end time would be from July)."]
["in-capmkt","DateOfEndOfBoardMeeting","DateOfEndOfBoardMeeting","in-capmkt_DateOfEndOfBoardMeeting","xbrli:dateItemType","xbrli:item",null,"instant","false","true","End date of board meeting must be after or same day of start date of bord meeting and would be the next quarter then the reporting quarter (e.g. if results are submitted for June, quarter start time and end time would be from July) and shall not be earlier than Date of Prior Intimation."]
["in-capmkt","StartTimeOfBoardMeeting","StartTimeOfBoardMeeting","in-capmkt_StartTimeOfBoardMeeting","xbrli:timeItemType","xbrli:item",null,"instant","false","true"]
["in-capmkt","EndTimeOfBoardMeeting","EndTimeOfBoardMeeting","in-capmkt_EndTimeOfBoardMeeting","xbrli:timeItemType","xbrli:item",null,"instant","false","true","End time of board meeting must be greater than \"Start time of board meeting\""]
["in-capmkt","DeclarationOfUnmodifiedOpinionOrStatementOnImpactOfAuditQualification","DeclarationOfUnmodifiedOpinionOrStatementOnImpactOfAuditQualification","in-capmkt_DeclarationOfUnmodifiedOpinionOrStatementOnImpactOfAuditQualification","xbrli:timeItemType","xbrli:item",null,"instant","false","true"]
["in-capmkt","DateOnWhichPriorIntimationOfTheMeetingForConsideringFinancialResultsWasInformedToTheExchange","DateOnWhichPriorIntimationOfTheMeetingForConsideringFinancialResultsWasInformedToTheExchange","in-capmkt_DateOnWhichPriorIntimationOfTheMeetingForConsideringFinancialResultsWasInformedToTheExchange","xbrli:dateItemType","xbrli:item",null,"instant",false,true]
["in-capmkt","BalanceSheetAbstract","BalanceSheetAbstract","in-capmkt_BalanceSheetAbstract","xbrli:stringItemType","xbrli:item",null,"duration","true","true"]
["in-capmkt","DateOfEndOfReportingPeriod","DateOfEndOfReportingPeriod","in-capmkt_DateOfEndOfReportingPeriod","xbrli:dateItemType","xbrli:item",null,"instant","true","true"]
["in-capmkt","WhetherResultsAreAuditedOrUnaudited","WhetherResultsAreAuditedOrUnaudited","in-capmkt_WhetherResultsAreAuditedOrUnaudited","xbrli:booleanItemType","xbrli:item",null,"instant","false","true"]
["in-capmkt","SourcesOfFundsAbstract","SourcesOfFundsAbstract","in-capmkt_SourcesOfFundsAbstract","xbrli:stringItemType","xbrli:item",null,"duration","true","true"]
["in-capmkt","ShareCapital","ShareCapital","in-capmkt_ShareCapital","xbrli:monetaryItemType","xbrli:item",null,"instant","false","true"]
["in-capmkt","ReservesAndSurplus","ReservesAndSurplus","in-capmkt_ReservesAndSurplus","xbrli:monetaryItemType","xbrli:item"]
["in-capmkt","ReserveAndSurplus","ReserveAndSurplus","in-capmkt_ReservesAndSurplus","xbrli:monetaryItemType","xbrli:item",null,"instant","true","true","Value for Quarter ended date And Period Ended date has to be the same"]
["in-capmkt","FairValueChangeAccountAbstract","FairValueChangeAccountAbstract","in-capmkt_FairValueChangeAccountAbstract","xbrli:stringItemType","xbrli:item",null,"duration","true","true"]
["in-capmkt","PolicyholdersFunds","PolicyholdersFunds","in-capmkt_PolicyholdersFunds","xbrli:monetaryItemType","xbrli:item",null,"instant","true","true","Value for Quarter ended date And Period Ended date has to be the same"]
["in-capmkt","ShareholdersFunds","ShareholdersFunds","in-capmkt_ShareholdersFunds","xbrli:monetaryItemType","xbrli:item",null,"instant","false","true"]
["in-capmkt","Borrowings","Borrowings","in-capmkt_Borrowings","xbrli:monetaryItemType","xbrli:item",null,"instant","false","true"]
["in-capmkt","MinorityInterest","MinorityInterest","in-capmkt_MinorityInterest","xbrli:monetaryItemType","xbrli:item",null,"instant","false","true"]
["in-capmkt","SourcesOfFunds","SourcesOfFunds","in-capmkt_SourcesOfFunds","xbrli:monetaryItemType","xbrli:item",null,"instant","true","true"]
["in-capmkt","ApplicationOfFundsAbstract","ApplicationOfFundsAbstract","in-capmkt_ApplicationOfFundsAbstract","xbrli:stringItemType","xbrli:item",null,"duration","true","true"]
["in-capmkt","InvestmentsShareholders","InvestmentsShareholders","in-capmkt_InvestmentsShareholders","xbrli:monetaryItemType","xbrli:item",null,"instant","true","true"]
["in-capmkt","InvestmentsPolicyholders","InvestmentsPolicyholders","in-capmkt_InvestmentsPolicyholders","xbrli:monetaryItemType","xbrli:item",null,"instant","true","true"]
["in-capmkt","Loans","Loans","in-capmkt_Loans","xbrli:monetaryItemType","xbrli:item",null,"instant","true","true"]
["in-capmkt","FixedAssets","FixedAssets","in-capmkt_FixedAssets","xbrli:monetaryItemType","xbrli:item",null,"instant","false","true"]
["in-capmkt","DeferredTaxAsset","DeferredTaxAsset","in-capmkt_DeferredTaxAsset","xbrli:monetaryItemType","xbrli:item",null,"instant","true","true"]
["in-capmkt","NetCurrentAssetsAbstract","NetCurrentAssetsAbstract","in-capmkt_NetCurrentAssetsAbstract","xbrli:stringItemType","xbrli:item",null,"duration","true","true"]
["in-capmkt","CurrentAssetsAbstract","CurrentAssetsAbstract","in-capmkt_CurrentAssetsAbstract","xbrli:stringItemType","xbrli:item",null,"duration","true","true"]
["in-capmkt","CashAndBankBalances","CashAndBankBalances","in-capmkt_CashAndBankBalances","xbrli:monetaryItemType","xbrli:item",null,"instant","true","true"]
["in-capmkt","AdvancesAndOtherAssets","AdvancesAndOtherAssets","in-capmkt_AdvancesAndOtherAssets","xbrli:monetaryItemType","xbrli:item",null,"instant","true","true"]
["in-capmkt","CurrentAssets","CurrentAssets","in-capmkt_CurrentAssets","xbrli:monetaryItemType","xbrli:item",null,"instant","false","true"]
["in-capmkt","CurrentLiabilitiesAbstract","CurrentLiabilitiesAbstract","in-capmkt_CurrentLiabilitiesAbstract","xbrli:stringItemType","xbrli:item",null,"duration","true","true"]
["in-capmkt","CurrentLiabilities","CurrentLiabilities","in-capmkt_CurrentLiabilities","xbrli:monetaryItemType","xbrli:item",null,"instant","false","true"]
["in-capmkt","Provisions","Provisions","in-capmkt_Provisions","xbrli:monetaryItemType","xbrli:item",null,"instant","false","true"]
["in-capmkt","NetCurrentAssets","NetCurrentAssets","in-capmkt_NetCurrentAssets","xbrli:monetaryItemType","xbrli:item",null,"instant","false","true"]
["in-capmkt","MiscellaneousExpenditureToTheExtentNotWrittenOffOrAdjusted","MiscellaneousExpenditureToTheExtentNotWrittenOffOrAdjusted","in-capmkt_MiscellaneousExpenditureToTheExtentNotWrittenOffOrAdjusted","xbrli:monetaryItemType","xbrli:item",null,"instant","false","true"]
["in-capmkt","DebitBalanceInProfitAndLossAccountShareholdersAccount","DebitBalanceInProfitAndLossAccountShareholdersAccount","in-capmkt_DebitBalanceInProfitAndLossAccountShareholdersAccount","xbrli:monetaryItemType","xbrli:item",null,"instant","false","true"]
["in-capmkt","ApplicationOfFunds","ApplicationOfFunds","in-capmkt_ApplicationOfFunds","xbrli:monetaryItemType","xbrli:item",null,"instant","false","true"]
["in-capmkt","ContigentLiabilities","ContigentLiabilities","in-capmkt_ContigentLiabilities","xbrli:monetaryItemType","xbrli:item",null,"instant","false","true"]
["in-capmkt","DisclosureOfNotesToBalanceSheetExplanatoryTextBlock","DisclosureOfNotesToBalanceSheetExplanatoryTextBlock","in-capmkt_DisclosureOfNotesToBalanceSheetExplanatoryTextBlock","nonnum:textBlockItemType","xbrli:item",null,"instant","false","true"]
["in-capmkt","DisclosureOfNotesOnSegmentIncomeExplanatoryTextBlock","DisclosureOfNotesOnSegmentIncomeExplanatoryTextBlock","in-capmkt_DisclosureOfNotesOnSegmentIncomeExplanatoryTextBlock","nonnum:textBlockItemType","xbrli:item",null,"instant","false","true"]
["in-capmkt","DisclosureOfNotesOnSegmentPremiumDeficiencyExplanatoryTextBlock","DisclosureOfNotesOnSegmentPremiumDeficiencyExplanatoryTextBlock","in-capmkt_DisclosureOfNotesOnSegmentPremiumDeficiencyExplanatoryTextBlock","nonnum:textBlockItemType","xbrli:item",null,"instant","false","true"]
["in-capmkt","DisclosureOfNotesOnSegmentUnderwritingProfitOrLossExplanatoryTextBlock","DisclosureOfNotesOnSegmentUnderwritingProfitOrLossExplanatoryTextBlock","in-capmkt_DisclosureOfNotesOnSegmentUnderwritingProfitOrLossExplanatoryTextBlock","nonnum:textBlockItemType","xbrli:item",null,"instant","false","true"]
["in-capmkt","DisclosureOfNotesOnSegmentOperatingProfitOrLossExplanatoryTextBlock","DisclosureOfNotesOnSegmentOperatingProfitOrLossExplanatoryTextBlock","in-capmkt_DisclosureOfNotesOnSegmentOperatingProfitOrLossExplanatoryTextBlock","nonnum:textBlockItemType","xbrli:item",null,"instant","false","true"]
["in-capmkt","DisclosureOfNotesOnSegmentTechnicalLiabilitiesUnexpiredRiskReserveNetExplanatoryTextBlock","DisclosureOfNotesOnSegmentTechnicalLiabilitiesUnexpiredRiskReserveNetExplanatoryTextBlock","in-capmkt_DisclosureOfNotesOnSegmentTechnicalLiabilitiesUnexpiredRiskReserveNetExplanatoryTextBlock","nonnum:textBlockItemType","xbrli:item",null,"instant","false","true"]
["in-capmkt","SubmissionOfFinancialResultsByLifeInsuranceCompaniesFiledWithStockExchangesAbstract","SubmissionOfFinancialResultsByLifeInsuranceCompaniesFiledWithStockExchangesAbstract","in-capmkt_SubmissionOfFinancialResultsByLifeInsuranceCompaniesFiledWithStockExchangesAbstract","xbrli:stringItemType","xbrli:item",null,"duration","true","true"]
["in-capmkt","DateOfStartOfReportingPeriod","DateOfStartOfReportingPeriod","in-capmkt_DateOfStartOfReportingPeriod","xbrli:dateItemType","xbrli:item",null,"instant","true","true"]
["in-capmkt","PolicyholdersAccountAbstract","PolicyholdersAccountAbstract","in-capmkt_PolicyholdersAccountAbstract","xbrli:stringItemType","xbrli:item",null,"duration","true","true"]
["in-capmkt","StatementOfSurplusDeficitAbstract","StatementOfSurplusDeficitAbstract","in-capmkt_StatementOfSurplusDeficitAbstract","xbrli:stringItemType","xbrli:item",null,"duration","true","true"]
["in-capmkt","IncomeAbstract","IncomeAbstract","in-capmkt_IncomeAbstract","xbrli:stringItemType","xbrli:item",null,"duration","true","true"]
["in-capmkt","GrossPremiumIncomeAbstract","GrossPremiumIncomeAbstract","in-capmkt_GrossPremiumIncomeAbstract","xbrli:stringItemType","xbrli:item",null,"duration","true","true"]
["in-capmkt","IncomeFirstYearPremium","IncomeFirstYearPremium","in-capmkt_IncomeFirstYearPremium","xbrli:monetaryItemType","xbrli:item",null,"duration","true","true"]
["in-capmkt","IncomeRenewalPremium","IncomeRenewalPremium","in-capmkt_IncomeRenewalPremium","xbrli:monetaryItemType","xbrli:item",null,"duration","true","true"]
["in-capmkt","IncomeSinglePremium","IncomeSinglePremium","in-capmkt_IncomeSinglePremium","xbrli:monetaryItemType","xbrli:item",null,"duration","true","true"]
["in-capmkt","GrossPremiumIncome","GrossPremiumIncome","in-capmkt_GrossPremiumIncome","xbrli:monetaryItemType","xbrli:item",null,"duration","true","true"]
["in-capmkt","NetPremiumIncome","NetPremiumIncome","in-capmkt_NetPremiumIncome","xbrli:monetaryItemType","xbrli:item",null,"duration","true","true"]
["in-capmkt","IncomeFromInvestmentsNet","IncomeFromInvestmentsNet","in-capmkt_IncomeFromInvestmentsNet","xbrli:monetaryItemType","xbrli:item",null,"duration","true","true"]
["in-capmkt","PolicyholdersAccountOtherIncome","PolicyholdersAccountOtherIncome","in-capmkt_PolicyholdersAccountOtherIncome","xbrli:monetaryItemType","xbrli:item",null,"duration","true","true"]
["in-capmkt","TransferOfFundsFromShareholdersAccount","TransferOfFundsFromShareholdersAccount","in-capmkt_TransferOfFundsFromShareholdersAccount","xbrli:monetaryItemType","xbrli:item",null,"duration","true","true"]
["in-capmkt","Income","Income","in-capmkt_Income","xbrli:monetaryItemType","xbrli:item",null,"duration","true","true"]
["in-capmkt","ExpensesAbstract","ExpensesAbstract","in-capmkt_ExpensesAbstract","xbrli:stringItemType","xbrli:item",null,"duration","true","true"]
["in-capmkt","ExpensesOfManagementAbstract","ExpensesOfManagementAbstract","in-capmkt_ExpensesOfManagementAbstract","xbrli:stringItemType","xbrli:item",null,"duration","true","true"]
["in-capmkt","CommissionAbstract","CommissionAbstract","in-capmkt_CommissionAbstract","xbrli:stringItemType","xbrli:item",null,"duration","true","true"]
["in-capmkt","CommissionFirstYearPremium","CommissionFirstYearPremium","in-capmkt_CommissionFirstYearPremium","xbrli:monetaryItemType","xbrli:item",null,"duration","true","true"]
["in-capmkt","CommissionRenewalPremium","CommissionRenewalPremium","in-capmkt_CommissionRenewalPremium","xbrli:monetaryItemType","xbrli:item",null,"duration","true","true"]
["in-capmkt","CommissionSinglePremium","CommissionSinglePremium","in-capmkt_CommissionSinglePremium","xbrli:monetaryItemType","xbrli:item",null,"duration","true","true"]
["in-capmkt","Commission","Commission","in-capmkt_Commission","xbrli:monetaryItemType","xbrli:item",null,"duration","true","true"]
["in-capmkt","NetCommission","NetCommission","in-capmkt_NetCommission","xbrli:monetaryItemType","xbrli:item",null,"duration","true","true"]
["in-capmkt","OperatingExpensesRelatedToInsuranceBusinessAbstract","OperatingExpensesRelatedToInsuranceBusinessAbstract","in-capmkt_OperatingExpensesRelatedToInsuranceBusinessAbstract","xbrli:stringItemType","xbrli:item",null,"duration","true","true"]
["in-capmkt","EmployeesRemunerationAndWelfareExpenses","EmployeesRemunerationAndWelfareExpenses","in-capmkt_EmployeesRemunerationAndWelfareExpenses","xbrli:monetaryItemType","xbrli:item",null,"duration","true","true"]
["in-capmkt","AdministrationExpenses","AdministrationExpenses","in-capmkt_AdministrationExpenses","xbrli:monetaryItemType","xbrli:item",null,"duration","true","true"]
["in-capmkt","AdvertisementAndPublicity","AdvertisementAndPublicity","in-capmkt_AdvertisementAndPublicity","xbrli:monetaryItemType","xbrli:item",null,"duration","true","true"]
["in-capmkt","OtherOperatingExpenses","OtherOperatingExpenses","in-capmkt_OtherOperatingExpenses","xbrli:monetaryItemType","xbrli:item",null,"duration","true","true"]
["in-capmkt","OperatingExpensesRelatedToInsuranceBusiness","OperatingExpensesRelatedToInsuranceBusiness","in-capmkt_OperatingExpensesRelatedToInsuranceBusiness","xbrli:monetaryItemType","xbrli:item",null,"duration","true","true"]
["in-capmkt","ExpensesOfManagement","ExpensesOfManagement","in-capmkt_ExpensesOfManagement","xbrli:monetaryItemType","xbrli:item",null,"duration","true","true"]
["in-capmkt","ProvisionsForDoubtfulDebtsIncludingBadDebtsWrittenOff","ProvisionsForDoubtfulDebtsIncludingBadDebtsWrittenOff","in-capmkt_ProvisionsForDoubtfulDebtsIncludingBadDebtsWrittenOff","xbrli:monetaryItemType","xbrli:item",null,"duration","true","true"]
["in-capmkt","ProvisionsForDiminutionInValueOfInvestments","ProvisionsForDiminutionInValueOfInvestments","in-capmkt_ProvisionsForDiminutionInValueOfInvestments","xbrli:monetaryItemType","xbrli:item",null,"duration","true","true"]
["in-capmkt","GoodsAndServiceTaxChargeOnLinkedCharges","GoodsAndServiceTaxChargeOnLinkedCharges","in-capmkt_GoodsAndServiceTaxChargeOnLinkedCharges","xbrli:monetaryItemType","xbrli:item",null,"duration","true","true"]
["in-capmkt","ProvisionForTaxAbstract","ProvisionForTaxAbstract","in-capmkt_ProvisionForTaxAbstract","xbrli:stringItemType","xbrli:item",null,"duration","true","true"]
["in-capmkt","CurrentTax","CurrentTax","in-capmkt_CurrentTax","xbrli:monetaryItemType","xbrli:item",null,"duration","false","true"]
["in-capmkt","DefferedTax","DefferedTax","in-capmkt_DefferedTax","xbrli:monetaryItemType","xbrli:item",null,"duration","true","true"]
["in-capmkt","ProvisionForTax","ProvisionForTax","in-capmkt_ProvisionForTax","xbrli:monetaryItemType","xbrli:item",null,"duration","true","true"]
["in-capmkt","BenefitsPaidNet","BenefitsPaidNet","in-capmkt_BenefitsPaidNet","xbrli:monetaryItemType","xbrli:item",null,"duration","true","true"]
["in-capmkt","ChangeInActuarialLiability","ChangeInActuarialLiability","in-capmkt_ChangeInActuarialLiability","xbrli:monetaryItemType","xbrli:item",null,"duration","true","true"]
["in-capmkt","Expenses","Expenses","in-capmkt_Expenses","xbrli:monetaryItemType","xbrli:item",null,"duration","true","true"]
["in-capmkt","NetSurplusDeficit","NetSurplusDeficit","in-capmkt_NetSurplusDeficit","xbrli:monetaryItemType","xbrli:item",null,"duration","true","true"]
["in-capmkt","AppropriationsAbstract","AppropriationsAbstract","in-capmkt_AppropriationsAbstract","xbrli:stringItemType","xbrli:item",null,"duration","true","true"]
["in-capmkt","TransferredToShareholdersAccount","TransferredToShareholdersAccount","in-capmkt_TransferredToShareholdersAccount","xbrli:monetaryItemType","xbrli:item",null,"duration","true","true"]
["in-capmkt","FundsForFutureAppropriations","FundsForFutureAppropriations","in-capmkt_FundsForFutureAppropriations","xbrli:monetaryItemType","xbrli:item",null,"duration","true","true"]
["in-capmkt","DetailsOfSurplusDeficitAbstract","DetailsOfSurplusDeficitAbstract","in-capmkt_DetailsOfSurplusDeficitAbstract","xbrli:stringItemType","xbrli:item",null,"duration","true","true"]
["in-capmkt","InterimBonusPaid","InterimBonusPaid","in-capmkt_InterimBonusPaid","xbrli:monetaryItemType","xbrli:item",null,"duration","true","true"]
["in-capmkt","AllocationOfBonusToPolicyholders","AllocationOfBonusToPolicyholders","in-capmkt_AllocationOfBonusToPolicyholders","xbrli:monetaryItemType","xbrli:item",null,"duration","true","true"]
["in-capmkt","SurplusShownInTheRevenueAccount","SurplusShownInTheRevenueAccount","in-capmkt_SurplusShownInTheRevenueAccount","xbrli:monetaryItemType","xbrli:item",null,"duration","true","true"]
["in-capmkt","TerminalBonusPaid","TerminalBonusPaid","in-capmkt_TerminalBonusPaid","xbrli:monetaryItemType","xbrli:item",null,"duration","true","true"]
["in-capmkt","SurplusDeficit","SurplusDeficit","in-capmkt_SurplusDeficit","xbrli:monetaryItemType","xbrli:item",null,"duration","true","true"]
["in-capmkt","ShareholdersAccountAbstract","ShareholdersAccountAbstract","in-capmkt_ShareholdersAccountAbstract","xbrli:stringItemType","xbrli:item",null,"duration","true","true"]
["in-capmkt","StatementOfProfitAndLossAbstract","StatementOfProfitAndLossAbstract","in-capmkt_StatementOfProfitAndLossAbstract","xbrli:stringItemType","xbrli:item",null,"duration","true","true"]
["in-capmkt","ShareholdersAccountIncomeAbstract","ShareholdersAccountIncomeAbstract","in-capmkt_ShareholdersAccountIncomeAbstract","xbrli:stringItemType","xbrli:item",null,"duration","true","true"]
["in-capmkt","TransferFromPolicyholdersAccount","TransferFromPolicyholdersAccount","in-capmkt_TransferFromPolicyholdersAccount","xbrli:monetaryItemType","xbrli:item",null,"duration","true","true"]
["in-capmkt","IncomeUnderShareholdersAccountAbstract","IncomeUnderShareholdersAccountAbstract","in-capmkt_IncomeUnderShareholdersAccountAbstract","xbrli:stringItemType","xbrli:item",null,"duration","true","true"]
["in-capmkt","InvestmentIncome","InvestmentIncome","in-capmkt_InvestmentIncome","xbrli:monetaryItemType","xbrli:item",null,"duration","true","true"]
["in-capmkt","ShareholdersAccountOtherIncome","ShareholdersAccountOtherIncome","in-capmkt_ShareholdersAccountOtherIncome","xbrli:monetaryItemType","xbrli:item",null,"duration","true","true"]
["in-capmkt","IncomeUnderShareholdersAccount","IncomeUnderShareholdersAccount","in-capmkt_IncomeUnderShareholdersAccount","xbrli:monetaryItemType","xbrli:item",null,"duration","true","true"]
["in-capmkt","ShareholdersAccountIncome","ShareholdersAccountIncome","in-capmkt_ShareholdersAccountIncome","xbrli:monetaryItemType","xbrli:item",null,"duration","true","true"]
["in-capmkt","ShareholdersAccountExpensesAbstract","ShareholdersAccountExpensesAbstract","in-capmkt_ShareholdersAccountExpensesAbstract","xbrli:stringItemType","xbrli:item",null,"duration","true","true"]
["in-capmkt","ExpensesOtherThanThoseRelatedToInsuranceBusiness","ExpensesOtherThanThoseRelatedToInsuranceBusiness","in-capmkt_ExpensesOtherThanThoseRelatedToInsuranceBusiness","xbrli:monetaryItemType","xbrli:item",null,"duration","true","true"]
["in-capmkt","TransferOfFundsToPolicyholdersAccount","TransferOfFundsToPolicyholdersAccount","in-capmkt_TransferOfFundsToPolicyholdersAccount","xbrli:monetaryItemType","xbrli:item",null,"duration","true","true"]
["in-capmkt","ProvisionsForDoubtfulDebtsIncludingWriteOff","ProvisionsForDoubtfulDebtsIncludingWriteOff","in-capmkt_ProvisionsForDoubtfulDebtsIncludingWriteOff","xbrli:monetaryItemType","xbrli:item",null,"duration","true","true"]
["in-capmkt","ShareholdersAccountProvisionsForDiminutionInValueOfInvestments","ShareholdersAccountProvisionsForDiminutionInValueOfInvestments","in-capmkt_ShareholdersAccountProvisionsForDiminutionInValueOfInvestments","xbrli:monetaryItemType","xbrli:item",null,"duration","true","true"]
["in-capmkt","ShareholdersAccountExpenses","ShareholdersAccountExpenses","in-capmkt_ShareholdersAccountExpenses","xbrli:monetaryItemType","xbrli:item",null,"duration","true","true"]
["in-capmkt","ProfitLossBeforeTax","ProfitLossBeforeTax","in-capmkt_ProfitLossBeforeTax","xbrli:monetaryItemType","xbrli:item",null,"duration","true","true"]
["in-capmkt","ProvisionsForTax","ProvisionsForTax","in-capmkt_ProvisionsForTax","xbrli:monetaryItemType","xbrli:item",null,"duration","true","true"]
["in-capmkt","ProvisionsForTaxesAbstract","ProvisionsForTaxesAbstract","in-capmkt_ProvisionsForTaxesAbstract","xbrli:stringItemType","xbrli:item",null,"duration","true","true"]
["in-capmkt","CurrentTaxes","CurrentTaxes","in-capmkt_CurrentTaxes","xbrli:monetaryItemType","xbrli:item",null,"duration","true","true"]
["in-capmkt","DefferedTaxes","DefferedTaxes","in-capmkt_DefferedTaxes","xbrli:monetaryItemType","xbrli:item",null,"duration","true","true"]
["in-capmkt","ProvisionsForTaxes","ProvisionsForTaxes","in-capmkt_ProvisionsForTaxes","xbrli:monetaryItemType","xbrli:item",null,"duration","true","true"]
["in-capmkt","ProfitLossAfterTaxBeforeExtraordinaryItems","ProfitLossAfterTaxBeforeExtraordinaryItems","in-capmkt_ProfitLossAfterTaxBeforeExtraordinaryItems","xbrli:monetaryItemType","xbrli:item",null,"duration","true","true"]
["in-capmkt","ExtraordinaryItemsNetOfTaxExpenses","ExtraordinaryItemsNetOfTaxExpenses","in-capmkt_ExtraordinaryItemsNetOfTaxExpenses","xbrli:monetaryItemType","xbrli:item",null,"duration","true","true"]
["in-capmkt","ProfitLossAfterTaxAndExtraordinaryItems","ProfitLossAfterTaxAndExtraordinaryItems","in-capmkt_ProfitLossAfterTaxAndExtraordinaryItems","xbrli:monetaryItemType","xbrli:item",null,"duration","true","true"]
["in-capmkt","DividendPerShareAbstract","DividendPerShareAbstract","in-capmkt_DividendPerShareAbstract","xbrli:stringItemType","xbrli:item",null,"duration","true","true"]
["in-capmkt","InterimDividend","InterimDividend","in-capmkt_InterimDividend","xbrli:monetaryItemType","xbrli:item",null,"duration","true","true"]
["in-capmkt","FinalDividend","FinalDividend","in-capmkt_FinalDividend","xbrli:monetaryItemType","xbrli:item",null,"duration","true","true"]
["in-capmkt","OpeningBalanceAndApproproationsFromPATNet","OpeningBalanceAndApproproationsFromPATNet","in-capmkt_OpeningBalanceAndApproproationsFromPATNet","xbrli:monetaryItemType","xbrli:item",null,"instant","true","true","Value for Quarter ended date And Period Ended date has to be the same"]
["in-capmkt","ProfitLossCarriedToBalanceSheet","ProfitLossCarriedToBalanceSheet","in-capmkt_ProfitLossCarriedToBalanceSheet","xbrli:monetaryItemType","xbrli:item",null,"duration","true","true"]
["in-capmkt","PaidUpEquityShareCapital","PaidUpEquityShareCapital","in-capmkt_PaidUpEquityShareCapital","xbrli:monetaryItemType","xbrli:item",null,"instant","true","true","Value for Quarter ended date And Period Ended date has to be the same"]
["in-capmkt","FairValueChangeAccountAndRevaluationReserveShareholders","FairValueChangeAccountAndRevaluationReserveShareholders","in-capmkt_FairValueChangeAccountAndRevaluationReserveShareholders","xbrli:monetaryItemType","xbrli:item",null,"instant","true",true,"Value for Quarter ended date And Period Ended date has to be the same"]
["in-capmkt","AssetsAbstract","AssetsAbstract","in-capmkt_AssetsAbstract","xbrli:stringItemType","xbrli:item",null,"duration","true","true"]
["in-capmkt","InvestmentsAbstract","InvestmentsAbstract","in-capmkt_InvestmentsAbstract","xbrli:stringItemType","xbrli:item",null,"duration","true","true"]
["in-capmkt","ShareholdersFund","ShareholdersFund","in-capmkt_ShareholdersFund","xbrli:monetaryItemType","xbrli:item",null,"instant","true","true"]
["in-capmkt","PolicyholdersFundExcludingLinkedAssets","PolicyholdersFundExcludingLinkedAssets","in-capmkt_PolicyholdersFundExcludingLinkedAssets","xbrli:monetaryItemType","xbrli:item",null,"instant","true","true"]
["in-capmkt","AssetsHeldToCoverLinkedLiabilities","AssetsHeldToCoverLinkedLiabilities","in-capmkt_AssetsHeldToCoverLinkedLiabilities","xbrli:monetaryItemType","xbrli:item",null,"instant","true","true"]
["in-capmkt","Investments","Investments","in-capmkt_Investments","xbrli:monetaryItemType","xbrli:item",null,"instant","true","true","Value for Quarter ended date And Period Ended date has to be the same"]
["in-capmkt","OtherAssetsNetOfCurrentLiabilitiesAndProvisions","OtherAssetsNetOfCurrentLiabilitiesAndProvisions","in-capmkt_OtherAssetsNetOfCurrentLiabilitiesAndProvisions","xbrli:monetaryItemType","xbrli:item",null,"instant","true","true","Value for Quarter ended date And Period Ended date has to be the same"]
["in-capmkt","Assets","Assets","in-capmkt_Assets","xbrli:monetaryItemType","xbrli:item",null,"instant","true","true","Value for Quarter ended date And Period Ended date has to be the same"]
["in-capmkt","AnalyticalRatiosAbstract","AnalyticalRatiosAbstract","in-capmkt_AnalyticalRatiosAbstract","xbrli:stringItemType","xbrli:item",null,"duration","true","true"]
["in-capmkt","SolvencyRatio","SolvencyRatio","in-capmkt_SolvencyRatio","num:percentItemType","xbrli:item",null,"duration","true","true"]
["in-capmkt","ExpensesOfManagementRatio","ExpensesOfManagementRatio","in-capmkt_ExpensesOfManagementRatio","num:percentItemType","xbrli:item",null,"duration","true","true"]
["in-capmkt","PolicyholdersLiabilitiesToShareholdersFund","PolicyholdersLiabilitiesToShareholdersFund","in-capmkt_PolicyholdersLiabilitiesToShareholdersFund","xbrli:monetaryItemType","xbrli:item",null,"duration","true","true"]
["in-capmkt","EarningsPerShareAbstract","EarningsPerShareAbstract","in-capmkt_EarningsPerShareAbstract","xbrli:stringItemType","xbrli:item",null,"duration","true","true"]
["in-capmkt","BasicAndDilutedEPSBeforeExtraordinaryItemsNetOfTaxExpenseForThePeriodNotToBeAnnualized","BasicAndDilutedEPSBeforeExtraordinaryItemsNetOfTaxExpenseForThePeriodNotToBeAnnualized","in-capmkt_BasicAndDilutedEPSBeforeExtraordinaryItemsNetOfTaxExpenseForThePeriodNotToBeAnnualized","num:perShareItemType","xbrli:item",null,"duration","true","true"]
["in-capmkt","BasicAndDilutedEPSAfterExtraordinaryItemsNetOfTaxExpenseForThePeriodNotToBeAnnualized","BasicAndDilutedEPSAfterExtraordinaryItemsNetOfTaxExpenseForThePeriodNotToBeAnnualized","in-capmkt_BasicAndDilutedEPSAfterExtraordinaryItemsNetOfTaxExpenseForThePeriodNotToBeAnnualized","num:perShareItemType","xbrli:item",null,"duration","true","true"]
["in-capmkt","NPARatiosForPolicyholdersFundAbstract","NPARatiosForPolicyholdersFundAbstract","in-capmkt_NPARatiosForPolicyholdersFundAbstract","xbrli:stringItemType","xbrli:item",null,"duration","true","true"]
["in-capmkt","GrossNPAsPolicyholdersFund","GrossNPAsPolicyholdersFund","in-capmkt_GrossNPAsPolicyholdersFund","xbrli:monetaryItemType","xbrli:item",null,"duration","true","true"]
["in-capmkt","PercentageOfGrossNPAsPolicyholdersFund","PercentageOfGrossNPAsPolicyholdersFund","in-capmkt_PercentageOfGrossNPAsPolicyholdersFund","num:percentItemType","xbrli:item",null,"duration","true","true"]
["in-capmkt","NetNPAsPolicyholdersFund","NetNPAsPolicyholdersFund","in-capmkt_NetNPAsPolicyholdersFund","xbrli:monetaryItemType","xbrli:item",null,"duration","true","true"]
["in-capmkt","PercentageOfNetNPAsPolicyholdersFund","PercentageOfNetNPAsPolicyholdersFund","in-capmkt_PercentageOfNetNPAsPolicyholdersFund","num:percentItemType","xbrli:item",null,"duration","true","true"]
["in-capmkt","YieldOnInvestmentsOnPolicyholdersFundAbstract","YieldOnInvestmentsOnPolicyholdersFundAbstract","in-capmkt_YieldOnInvestmentsOnPolicyholdersFundAbstract","xbrli:stringItemType","xbrli:item",null,"duration","true","true"]
["in-capmkt","PolicyholdersFundWithoutUnrealisedGainsAbstract","PolicyholdersFundWithoutUnrealisedGainsAbstract","in-capmkt_PolicyholdersFundWithoutUnrealisedGainsAbstract","xbrli:stringItemType","xbrli:item",null,"duration","true","true"]
["in-capmkt","NonLinkedPolicyholdersFundWithoutUnrealisedGainsAbstract","NonLinkedPolicyholdersFundWithoutUnrealisedGainsAbstract","in-capmkt_NonLinkedPolicyholdersFundWithoutUnrealisedGainsAbstract","xbrli:stringItemType","xbrli:item",null,"duration","true","true"]
["in-capmkt","NonLinkedParticipatingPolicyholdersFundWithoutUnrealisedGains","NonLinkedParticipatingPolicyholdersFundWithoutUnrealisedGains","in-capmkt_NonLinkedParticipatingPolicyholdersFundWithoutUnrealisedGains","num:percentItemType","xbrli:item",null,"duration","true","true"]
["in-capmkt","NonLinkedNonParticipatingPolicyholdersFundWithoutUnrealisedGains","NonLinkedNonParticipatingPolicyholdersFundWithoutUnrealisedGains","in-capmkt_NonLinkedNonParticipatingPolicyholdersFundWithoutUnrealisedGains","num:percentItemType","xbrli:item",null,"duration","true","true"]
["in-capmkt","LinkedPolicyholdersFundWithoutUnrealisedGainsAbstract","LinkedPolicyholdersFundWithoutUnrealisedGainsAbstract","in-capmkt_LinkedPolicyholdersFundWithoutUnrealisedGainsAbstract","xbrli:stringItemType","xbrli:item",null,"duration","true","true"]
["in-capmkt","LinkedParticipatingPolicyholdersFundWithoutUnrealisedGains","LinkedParticipatingPolicyholdersFundWithoutUnrealisedGains","in-capmkt_LinkedParticipatingPolicyholdersFundWithoutUnrealisedGains","num:percentItemType","xbrli:item",null,"duration","true","true"]
["in-capmkt","LinkedNonParticipatingPolicyholdersFundWithoutUnrealisedGains","LinkedNonParticipatingPolicyholdersFundWithoutUnrealisedGains","in-capmkt_LinkedNonParticipatingPolicyholdersFundWithoutUnrealisedGains","num:percentItemType","xbrli:item",null,"duration","true","true"]
["in-capmkt","PolicyholdersFundWithUnrealisedGainsAbstract","PolicyholdersFundWithUnrealisedGainsAbstract","in-capmkt_PolicyholdersFundWithUnrealisedGainsAbstract","xbrli:stringItemType","xbrli:item",null,"duration","true","true"]
["in-capmkt","NonLinkedPolicyholdersFundWithUnrealisedGainsAbstract","NonLinkedPolicyholdersFundWithUnrealisedGainsAbstract","in-capmkt_NonLinkedPolicyholdersFundWithUnrealisedGainsAbstract","xbrli:stringItemType","xbrli:item",null,"duration","true","true"]
["in-capmkt","NonLinkedParticipatingPolicyholdersFundWithUnrealisedGains","NonLinkedParticipatingPolicyholdersFundWithUnrealisedGains","in-capmkt_NonLinkedParticipatingPolicyholdersFundWithUnrealisedGains","num:percentItemType","xbrli:item",null,"duration","true","true"]
["in-capmkt","NonLinkedNonParticipatingPolicyholdersFundWithUnrealisedGains","NonLinkedNonParticipatingPolicyholdersFundWithUnrealisedGains","in-capmkt_NonLinkedNonParticipatingPolicyholdersFundWithUnrealisedGains","num:percentItemType","xbrli:item",null,"duration","true","true"]
["in-capmkt","LinkedPolicyholdersFundWithUnrealisedGainsAbstract","LinkedPolicyholdersFundWithUnrealisedGainsAbstract","in-capmkt_LinkedPolicyholdersFundWithUnrealisedGainsAbstract","xbrli:stringItemType","xbrli:item",null,"duration","true","true"]
["in-capmkt","LinkedParticipatingPolicyholdersFundWithUnrealisedGains","LinkedParticipatingPolicyholdersFundWithUnrealisedGains","in-capmkt_LinkedParticipatingPolicyholdersFundWithUnrealisedGains","num:percentItemType","xbrli:item",null,"duration","true","true"]
["in-capmkt","LinkedNonParticipatingPolicyholdersFundWithUnrealisedGains","LinkedNonParticipatingPolicyholdersFundWithUnrealisedGains","in-capmkt_LinkedNonParticipatingPolicyholdersFundWithUnrealisedGains","num:percentItemType","xbrli:item",null,"duration","true","true"]
["in-capmkt","NPARatiosForShareholdersFundAbstract","NPARatiosForShareholdersFundAbstract","in-capmkt_NPARatiosForShareholdersFundAbstract","xbrli:stringItemType","xbrli:item",null,"duration","true","true"]
["in-capmkt","GrossNPAsShareholdersFund","GrossNPAsShareholdersFund","in-capmkt_GrossNPAsShareholdersFund","xbrli:monetaryItemType","xbrli:item",null,"duration","true","true"]
["in-capmkt","PercentageOfGrossNPAsShareholdersFund","PercentageOfGrossNPAsShareholdersFund","in-capmkt_PercentageOfGrossNPAsShareholdersFund","num:percentItemType","xbrli:item",null,"duration","true","true"]
["in-capmkt","NetNPAsShareholdersFund","NetNPAsShareholdersFund","in-capmkt_NetNPAsShareholdersFund","xbrli:monetaryItemType","xbrli:item",null,"duration","true","true"]
["in-capmkt","PercentageOfNetNPAsShareholdersFund","PercentageOfNetNPAsShareholdersFund","in-capmkt_PercentageOfNetNPAsShareholdersFund","num:percentItemType","xbrli:item",null,"duration","true","true"]
["in-capmkt","YieldOnInvestmentsOnShareholdersFundAbstract","YieldOnInvestmentsOnShareholdersFundAbstract","in-capmkt_YieldOnInvestmentsOnShareholdersFundAbstract","xbrli:stringItemType","xbrli:item",null,"duration","true","true"]
["in-capmkt","ShareholdersFundWithoutUnrealisedGains","ShareholdersFundWithoutUnrealisedGains","in-capmkt_ShareholdersFundWithoutUnrealisedGains","xbrli:monetaryItemType","xbrli:item",null,"duration","true","true"]
["in-capmkt","ShareholdersFundWithUnrealisedGains","ShareholdersFundWithUnrealisedGains","in-capmkt_ShareholdersFundWithUnrealisedGains","xbrli:monetaryItemType","xbrli:item",null,"duration","true","true"]
["in-capmkt","PersistencyRatio","PersistencyRatio","in-capmkt_PersistencyRatio","num:percentItemType","xbrli:item",null,"duration","true","true"]
["in-capmkt","PersistencyRatio13ThMonth","PersistencyRatio13ThMonth","in-capmkt_PersistencyRatio13ThMonth","num:percentItemType","xbrli:item",null,"duration","true","true"]
["in-capmkt","PersistencyRatio25ThMonth","PersistencyRatio25ThMonth","in-capmkt_PersistencyRatio25ThMonth","num:percentItemType","xbrli:item",null,"duration","true","true"]
["in-capmkt","PersistencyRatio37ThMonth","PersistencyRatio37ThMonth","in-capmkt_PersistencyRatio37ThMonth","num:percentItemType","xbrli:item",null,"duration","true","true"]
["in-capmkt","PersistencyRatio49ThMonth","PersistencyRatio49ThMonth","in-capmkt_PersistencyRatio49ThMonth","num:percentItemType","xbrli:item",null,"duration","true","true"]
["in-capmkt","PersistencyRatio61ThMonth","PersistencyRatio61ThMonth","in-capmkt_PersistencyRatio61ThMonth","num:percentItemType","xbrli:item",null,"duration","true","true"]
["in-capmkt","ConservationRatio","ConservationRatio","in-capmkt_ConservationRatio","num:percentItemType","xbrli:item",null,"duration","true","true"]
["in-capmkt","PercentageOfSharesHeldByGovernmentOfIndiaInCaseOfPublicSectorInsuranceCompanies","PercentageOfSharesHeldByGovernmentOfIndiaInCaseOfPublicSectorInsuranceCompanies","in-capmkt_PercentageOfSharesHeldByGovernmentOfIndiaInCaseOfPublicSectorInsuranceCompanies","num:percentItemType","xbrli:item",null,"duration","true","true"]
["in-capmkt","InvestorComplaintsAbstract","InvestorComplaintsAbstract","in-capmkt_InvestorComplaintsAbstract","xbrli:stringItemType","xbrli:item",null,"duration","true","true"]
["in-capmkt","NoOfInvestorComplaintsPendingAtTheBeginningOfThePeriod","NoOfInvestorComplaintsPendingAtTheBeginningOfThePeriod","in-capmkt_NoOfInvestorComplaintsPendingAtTheBeginningOfThePeriod","xbrli:decimalItemType","xbrli:item",null,"instant","true","true","Value for Quarter ended date And Period Ended date has to be the same"]
["in-capmkt","NoOfInvestorComplaintsDuringThePeriod","NoOfInvestorComplaintsDuringThePeriod","in-capmkt_NoOfInvestorComplaintsDuringThePeriod","xbrli:decimalItemType","xbrli:item",null,"duration","true","true"]
["in-capmkt","NoOfInvestorComplaintsDisposedOffDuringThePeriod","NoOfInvestorComplaintsDisposedOffDuringThePeriod","in-capmkt_NoOfInvestorComplaintsDisposedOffDuringThePeriod","xbrli:decimalItemType","xbrli:item",null,"duration","true","true"]
["in-capmkt","NoOfInvestorComplaintsRemainingUnresolvedAtTheEndOfThePeriod","NoOfInvestorComplaintsRemainingUnresolvedAtTheEndOfThePeriod","in-capmkt_NoOfInvestorComplaintsRemainingUnresolvedAtTheEndOfThePeriod","xbrli:decimalItemType","xbrli:item",null,"instant","true","true","Value for Quarter ended date And Period Ended date has to be the same"]
["in-capmkt","DisclosureOfNotesOnFinancialResultsExplanatoryTextBlock","DisclosureOfNotesOnFinancialResultsExplanatoryTextBlock","in-capmkt_DisclosureOfNotesOnFinancialResultsExplanatoryTextBlock","nonnum:textBlockItemType","xbrli:item",null,"duration","false","true"]
["in-capmkt","DetailsOfOtherIncomeAbstract","DetailsOfOtherIncomeAbstract","in-capmkt_DetailsOfOtherIncomeAbstract","xbrli:stringItemType","xbrli:item",null,"duration","true","true"]
["in-capmkt","DetailsOfOtherIncomeTable","DetailsOfOtherIncomeTable","in-capmkt_DetailsOfOtherIncomeTable","xbrli:stringItemType","xbrldt:hypercubeItem",null,"duration","true","true"]
["in-capmkt","DetailsOfOtherIncomeAxis","DetailsOfOtherIncomeAxis","in-capmkt_DetailsOfOtherIncomeAxis","xbrli:stringItemType","xbrldt:dimensionItem",null,"duration","true","true"]
["in-capmkt","OtherIncomeMember","OtherIncomeMember","in-capmkt_OtherIncomeMember","nonnum:domainItemType","xbrli:item",null,"duration","true","true"]
["in-capmkt","OtherIncome1Member","OtherIncome1Member","in-capmkt_OtherIncome1Member","nonnum:domainItemType","xbrli:item",null,"duration","true","true"]
["in-capmkt","OtherIncome2Member","OtherIncome2Member","in-capmkt_OtherIncome2Member","nonnum:domainItemType","xbrli:item",null,"duration","true","true"]
["in-capmkt","OtherIncome3Member","OtherIncome3Member","in-capmkt_OtherIncome3Member","nonnum:domainItemType","xbrli:item",null,"duration","true","true"]
["in-capmkt","OtherIncome4Member","OtherIncome4Member","in-capmkt_OtherIncome4Member","nonnum:domainItemType","xbrli:item",null,"duration","true","true"]
["in-capmkt","OtherIncome5Member","OtherIncome5Member","in-capmkt_OtherIncome5Member","nonnum:domainItemType","xbrli:item",null,"duration","true","true"]
["in-capmkt","OtherIncome6Member","OtherIncome6Member","in-capmkt_OtherIncome6Member","nonnum:domainItemType","xbrli:item",null,"duration","true","true"]
["in-capmkt","OtherIncome7Member","OtherIncome7Member","in-capmkt_OtherIncome7Member","nonnum:domainItemType","xbrli:item",null,"duration","true","true"]
["in-capmkt","OtherIncome8Member","OtherIncome8Member","in-capmkt_OtherIncome8Member","nonnum:domainItemType","xbrli:item",null,"duration","true","true"]
["in-capmkt","OtherIncome9Member","OtherIncome9Member","in-capmkt_OtherIncome9Member","nonnum:domainItemType","xbrli:item",null,"duration","true","true"]
["in-capmkt","OtherIncome10Member","OtherIncome10Member","in-capmkt_OtherIncome10Member","nonnum:domainItemType","xbrli:item",null,"duration","true","true"]
["in-capmkt","DetailsOfOtherIncomeLineItems","DetailsOfOtherIncomeLineItems","in-capmkt_DetailsOfOtherIncomeLineItems","xbrli:stringItemType","xbrli:item",null,"duration","true","true"]
["in-capmkt","DescriptionOfOtherIncome","DescriptionOfOtherIncome","in-capmkt_DescriptionOfOtherIncome","xbrli:stringItemType","xbrli:item",null,"duration","true","true"]
["in-capmkt","OtherIncome","OtherIncome","in-capmkt_OtherIncome","xbrli:monetaryItemType","xbrli:item",null,"duration","true","true"]
["in-capmkt","DetailsOfOtherOperatingExpensesAbstract","DetailsOfOtherOperatingExpensesAbstract","in-capmkt_DetailsOfOtherOperatingExpensesAbstract","xbrli:stringItemType","xbrli:item",null,"duration","true","true"]
["in-capmkt","DetailsOfOtherOperatingExpensesTable","DetailsOfOtherOperatingExpensesTable","in-capmkt_DetailsOfOtherOperatingExpensesTable","xbrli:stringItemType","xbrldt:hypercubeItem",null,"duration","true","true"]
["in-capmkt","DetailsOfOtherOperatingExpensesAxis","DetailsOfOtherOperatingExpensesAxis","in-capmkt_DetailsOfOtherOperatingExpensesAxis","xbrli:stringItemType","xbrldt:dimensionItem",null,"duration","true","true"]
["in-capmkt","OtherOperatingExpensesMember","OtherOperatingExpensesMember","in-capmkt_OtherOperatingExpensesMember","nonnum:domainItemType","xbrli:item",null,"duration","true","true"]
["in-capmkt","OtherOperatingExpenses1Member","OtherOperatingExpenses1Member","in-capmkt_OtherOperatingExpenses1Member","nonnum:domainItemType","xbrli:item",null,"duration","true","true"]
["in-capmkt","OtherOperatingExpenses2Member","OtherOperatingExpenses2Member","in-capmkt_OtherOperatingExpenses2Member","nonnum:domainItemType","xbrli:item",null,"duration","true","true"]
["in-capmkt","OtherOperatingExpenses3Member","OtherOperatingExpenses3Member","in-capmkt_OtherOperatingExpenses3Member","nonnum:domainItemType","xbrli:item",null,"duration","true","true"]
["in-capmkt","OtherOperatingExpenses4Member","OtherOperatingExpenses4Member","in-capmkt_OtherOperatingExpenses4Member","nonnum:domainItemType","xbrli:item",null,"duration","true","true"]
["in-capmkt","OtherOperatingExpenses5Member","OtherOperatingExpenses5Member","in-capmkt_OtherOperatingExpenses5Member","nonnum:domainItemType","xbrli:item",null,"duration","true","true"]
["in-capmkt","OtherOperatingExpenses6Member","OtherOperatingExpenses6Member","in-capmkt_OtherOperatingExpenses6Member","nonnum:domainItemType","xbrli:item",null,"duration","true","true"]
["in-capmkt","OtherOperatingExpenses7Member","OtherOperatingExpenses7Member","in-capmkt_OtherOperatingExpenses7Member","nonnum:domainItemType","xbrli:item",null,"duration","true","true"]
["in-capmkt","OtherOperatingExpenses8Member","OtherOperatingExpenses8Member","in-capmkt_OtherOperatingExpenses8Member","nonnum:domainItemType","xbrli:item",null,"duration","true","true"]
["in-capmkt","OtherOperatingExpenses9Member","OtherOperatingExpenses9Member","in-capmkt_OtherOperatingExpenses9Member","nonnum:domainItemType","xbrli:item",null,"duration","true","true"]
["in-capmkt","OtherOperatingExpenses10Member","OtherOperatingExpenses10Member","in-capmkt_OtherOperatingExpenses10Member","nonnum:domainItemType","xbrli:item",null,"duration","true","true"]
["in-capmkt","DetailsOfOtherOperatingExpensesLineItems","DetailsOfOtherOperatingExpensesLineItems","in-capmkt_DetailsOfOtherOperatingExpensesLineItems","xbrli:stringItemType","xbrli:item",null,"duration","true","true"]
["in-capmkt","DescriptionOfOtherOperatingExpenses","DescriptionOfOtherOperatingExpenses","in-capmkt_DescriptionOfOtherOperatingExpenses","xbrli:stringItemType","xbrli:item",null,"duration","true","true"]
["in-capmkt","DetailsOfPolicyholdersAccountOtherIncomeAbstract","DetailsOfPolicyholdersAccountOtherIncomeAbstract","in-capmkt_DetailsOfPolicyholdersAccountOtherIncomeAbstract","xbrli:stringItemType","xbrli:item",null,"duration","true","true"]
["in-capmkt","DetailsOfPolicyholdersAccountOtherIncomeTable","DetailsOfPolicyholdersAccountOtherIncomeTable","in-capmkt_DetailsOfPolicyholdersAccountOtherIncomeTable","xbrli:stringItemType","xbrldt:hypercubeItem",null,"duration","true","true"]
["in-capmkt","DetailsOfPolicyholdersAccountOtherIncomeAxis","DetailsOfPolicyholdersAccountOtherIncomeAxis","in-capmkt_DetailsOfPolicyholdersAccountOtherIncomeAxis","xbrli:stringItemType","xbrldt:dimensionItem",null,"duration","true","true"]
["in-capmkt","PolicyholdersAccountOtherIncomeMember","PolicyholdersAccountOtherIncomeMember","in-capmkt_PolicyholdersAccountOtherIncomeMember","nonnum:domainItemType","xbrli:item",null,"duration","true","true"]
["in-capmkt","PolicyholdersAccountOtherIncome1Member","PolicyholdersAccountOtherIncome1Member","in-capmkt_PolicyholdersAccountOtherIncome1Member","nonnum:domainItemType","xbrli:item",null,"duration","true","true"]
["in-capmkt","PolicyholdersAccountOtherIncome2Member","PolicyholdersAccountOtherIncome2Member","in-capmkt_PolicyholdersAccountOtherIncome2Member","nonnum:domainItemType","xbrli:item",null,"duration","true","true"]
["in-capmkt","PolicyholdersAccountOtherIncome3Member","PolicyholdersAccountOtherIncome3Member","in-capmkt_PolicyholdersAccountOtherIncome3Member","nonnum:domainItemType","xbrli:item",null,"duration","true","true"]
["in-capmkt","PolicyholdersAccountOtherIncome4Member","PolicyholdersAccountOtherIncome4Member","in-capmkt_PolicyholdersAccountOtherIncome4Member","nonnum:domainItemType","xbrli:item",null,"duration","true","true"]
["in-capmkt","PolicyholdersAccountOtherIncome5Member","PolicyholdersAccountOtherIncome5Member","in-capmkt_PolicyholdersAccountOtherIncome5Member","nonnum:domainItemType","xbrli:item",null,"duration","true","true"]
["in-capmkt","PolicyholdersAccountOtherIncome6Member","PolicyholdersAccountOtherIncome6Member","in-capmkt_PolicyholdersAccountOtherIncome6Member","nonnum:domainItemType","xbrli:item",null,"duration","true","true"]
["in-capmkt","PolicyholdersAccountOtherIncome7Member","PolicyholdersAccountOtherIncome7Member","in-capmkt_PolicyholdersAccountOtherIncome7Member","nonnum:domainItemType","xbrli:item",null,"duration","true","true"]
["in-capmkt","PolicyholdersAccountOtherIncome8Member","PolicyholdersAccountOtherIncome8Member","in-capmkt_PolicyholdersAccountOtherIncome8Member","nonnum:domainItemType","xbrli:item",null,"duration","true","true"]
["in-capmkt","PolicyholdersAccountOtherIncome9Member","PolicyholdersAccountOtherIncome9Member","in-capmkt_PolicyholdersAccountOtherIncome9Member","nonnum:domainItemType","xbrli:item",null,"duration","true","true"]
["in-capmkt","PolicyholdersAccountOtherIncome10Member","PolicyholdersAccountOtherIncome10Member","in-capmkt_PolicyholdersAccountOtherIncome10Member","nonnum:domainItemType","xbrli:item",null,"duration","true","true"]
["in-capmkt","DetailsOfPolicyholdersAccountOtherIncomeLineItems","DetailsOfPolicyholdersAccountOtherIncomeLineItems","in-capmkt_DetailsOfPolicyholdersAccountOtherIncomeLineItems","xbrli:stringItemType","xbrli:item",null,"duration","true","true"]
["in-capmkt","DescriptionOfPolicyholdersAccountOtherIncome","DescriptionOfPolicyholdersAccountOtherIncome","in-capmkt_DescriptionOfPolicyholdersAccountOtherIncome","xbrli:stringItemType","xbrli:item",null,"duration","true","true"]
["in-capmkt","DetailsOfShareholdersAccountOtherIncomeAbstract","DetailsOfShareholdersAccountOtherIncomeAbstract","in-capmkt_DetailsOfShareholdersAccountOtherIncomeAbstract","xbrli:stringItemType","xbrli:item",null,"duration","true","true"]
["in-capmkt","DetailsOfShareholdersAccountOtherIncomeTable","DetailsOfShareholdersAccountOtherIncomeTable","in-capmkt_DetailsOfShareholdersAccountOtherIncomeTable","xbrli:stringItemType","xbrldt:hypercubeItem",null,"duration","true","true"]
["in-capmkt","DetailsOfShareholdersAccountOtherIncomeAxis","DetailsOfShareholdersAccountOtherIncomeAxis","in-capmkt_DetailsOfShareholdersAccountOtherIncomeAxis","xbrli:stringItemType","xbrldt:dimensionItem",null,"duration","true","true"]
["in-capmkt","ShareholdersAccountOtherIncomeMember","ShareholdersAccountOtherIncomeMember","in-capmkt_ShareholdersAccountOtherIncomeMember","nonnum:domainItemType","xbrli:item",null,"duration","true","true"]
["in-capmkt","ShareholdersAccountOtherIncome1Member","ShareholdersAccountOtherIncome1Member","in-capmkt_ShareholdersAccountOtherIncome1Member","nonnum:domainItemType","xbrli:item",null,"duration","true","true"]
["in-capmkt","ShareholdersAccountOtherIncome2Member","ShareholdersAccountOtherIncome2Member","in-capmkt_ShareholdersAccountOtherIncome2Member","nonnum:domainItemType","xbrli:item",null,"duration","true","true"]
["in-capmkt","ShareholdersAccountOtherIncome3Member","ShareholdersAccountOtherIncome3Member","in-capmkt_ShareholdersAccountOtherIncome3Member","nonnum:domainItemType","xbrli:item",null,"duration","true","true"]
["in-capmkt","ShareholdersAccountOtherIncome4Member","ShareholdersAccountOtherIncome4Member","in-capmkt_ShareholdersAccountOtherIncome4Member","nonnum:domainItemType","xbrli:item",null,"duration","true","true"]
["in-capmkt","ShareholdersAccountOtherIncome5Member","ShareholdersAccountOtherIncome5Member","in-capmkt_ShareholdersAccountOtherIncome5Member","nonnum:domainItemType","xbrli:item",null,"duration","true","true"]
["in-capmkt","ShareholdersAccountOtherIncome6Member","ShareholdersAccountOtherIncome6Member","in-capmkt_ShareholdersAccountOtherIncome6Member","nonnum:domainItemType","xbrli:item",null,"duration","true","true"]
["in-capmkt","ShareholdersAccountOtherIncome7Member","ShareholdersAccountOtherIncome7Member","in-capmkt_ShareholdersAccountOtherIncome7Member","nonnum:domainItemType","xbrli:item",null,"duration","true","true"]
["in-capmkt","ShareholdersAccountOtherIncome8Member","ShareholdersAccountOtherIncome8Member","in-capmkt_ShareholdersAccountOtherIncome8Member","nonnum:domainItemType","xbrli:item",null,"duration","true","true"]
["in-capmkt","ShareholdersAccountOtherIncome9Member","ShareholdersAccountOtherIncome9Member","in-capmkt_ShareholdersAccountOtherIncome9Member","nonnum:domainItemType","xbrli:item",null,"duration","true","true"]
["in-capmkt","ShareholdersAccountOtherIncome10Member","ShareholdersAccountOtherIncome10Member","in-capmkt_ShareholdersAccountOtherIncome10Member","nonnum:domainItemType","xbrli:item",null,"duration","true","true"]
["in-capmkt","DetailsOfShareholdersAccountOtherIncomeLineItems","DetailsOfShareholdersAccountOtherIncomeLineItems","in-capmkt_DetailsOfShareholdersAccountOtherIncomeLineItems","xbrli:stringItemType","xbrli:item",null,"duration","true","true"]
["in-capmkt","DescriptionOfShareholdersAccountOtherIncome","DescriptionOfShareholdersAccountOtherIncome","in-capmkt_DescriptionOfShareholdersAccountOtherIncome","xbrli:stringItemType","xbrli:item",null,"duration","true","true"]
["in-capmkt","ReportingOfGeneralInsuranceCompaniesSegmentWiseRevenueResultsAndCapitalEmployedAbstract","ReportingOfGeneralInsuranceCompaniesSegmentWiseRevenueResultsAndCapitalEmployedAbstract","in-capmkt_ReportingOfGeneralInsuranceCompaniesSegmentWiseRevenueResultsAndCapitalEmployedAbstract","xbrli:stringItemType","xbrli:item",null,"duration","true","true"]
["in-capmkt","ReportingOfSegmentWiseRevenueResultsAndCapitalEmployedAbstract","ReportingOfSegmentWiseRevenueResultsAndCapitalEmployedAbstract","in-capmkt_ReportingOfSegmentWiseRevenueResultsAndCapitalEmployedAbstract","xbrli:stringItemType","xbrli:item",null,"duration","true","true"]
["in-capmkt","DisclosuresRelatingToSegmentIncomeAbstract","DisclosuresRelatingToSegmentIncomeAbstract","in-capmkt_DisclosuresRelatingToSegmentIncomeAbstract","xbrli:stringItemType","xbrli:item",null,"duration","true","true"]
["in-capmkt","DisclosuresRelatingToSegmentIncomeTable","DisclosuresRelatingToSegmentIncomeTable","in-capmkt_DisclosuresRelatingToSegmentIncomeTable","xbrli:stringItemType","xbrldt:hypercubeItem",null,"duration","true","true"]
["in-capmkt","SegmentRevenueAxis","SegmentRevenueAxis","in-capmkt_SegmentRevenueAxis","xbrli:stringItemType","xbrldt:dimensionItem",null,"duration","true","true"]
["in-capmkt","DisclosuresRelatingToSegmentIncomeLineItems","DisclosuresRelatingToSegmentIncomeLineItems","in-capmkt_DisclosuresRelatingToSegmentIncomeLineItems","xbrli:stringItemType","xbrli:item",null,"duration","true","true"]
["in-capmkt","NetPremium","NetPremium","in-capmkt_NetPremium","xbrli:monetaryItemType","xbrli:item",null,"duration","true","true"]
["in-capmkt","IncomeFormInvestments","IncomeFormInvestments","in-capmkt_IncomeFormInvestments","xbrli:monetaryItemType","xbrli:item",null,"duration","true","true"]
["in-capmkt","DisclosureOfNotesOnSegmentIncomeExplanatoryTextBlock","DisclosureOfNotesOnSegmentIncomeExplanatoryTextBlock","in-capmkt_DisclosureOfNotesOnSegmentIncomeExplanatoryTextBlock","nonnum:textBlockItemType","xbrli:item",null,"instant","false","true"]
["in-capmkt","DisclosuresRelatingToSegmentPremiumDeficiencyAbstract","DisclosuresRelatingToSegmentPremiumDeficiencyAbstract","in-capmkt_DisclosuresRelatingToSegmentPremiumDeficiencyAbstract","xbrli:stringItemType","xbrli:item",null,"duration","true","true"]
["in-capmkt","DisclosuresRelatingToSegmentPremiumDeficiencyTable","DisclosuresRelatingToSegmentPremiumDeficiencyTable","in-capmkt_DisclosuresRelatingToSegmentPremiumDeficiencyTable","xbrli:stringItemType","xbrldt:hypercubeItem",null,"duration","true","true"]
["in-capmkt","SegmentPremiumDeficiencyAxis","SegmentPremiumDeficiencyAxis","in-capmkt_SegmentPremiumDeficiencyAxis","xbrli:stringItemType","xbrldt:dimensionItem",null,"duration","true","true"]
["in-capmkt","DisclosuresRelatingToSegmentPremiumDeficiencyLineItems","DisclosuresRelatingToSegmentPremiumDeficiencyLineItems","in-capmkt_DisclosuresRelatingToSegmentPremiumDeficiencyLineItems","xbrli:stringItemType","xbrli:item",null,"duration","true","true"]
["in-capmkt","PremiumDeficiency","PremiumDeficiency","in-capmkt_PremiumDeficiency","xbrli:monetaryItemType","xbrli:item",null,"duration","true","true"]
["in-capmkt","DisclosureOfNotesOnSegmentPremiumDeficiencyExplanatoryTextBlock","DisclosureOfNotesOnSegmentPremiumDeficiencyExplanatoryTextBlock","in-capmkt_DisclosureOfNotesOnSegmentPremiumDeficiencyExplanatoryTextBlock","nonnum:textBlockItemType","xbrli:item",null,"instant","true","true"]
["in-capmkt","DisclosuresRelatingToSegmentUnderwritingProfitOrLossAbstract","DisclosuresRelatingToSegmentUnderwritingProfitOrLossAbstract","in-capmkt_DisclosuresRelatingToSegmentUnderwritingProfitOrLossAbstract","xbrli:stringItemType","xbrli:item",null,"duration","true","true"]
["in-capmkt","DisclosuresRelatingToSegmentUnderwritingProfitOrLossTable","DisclosuresRelatingToSegmentUnderwritingProfitOrLossTable","in-capmkt_DisclosuresRelatingToSegmentUnderwritingProfitOrLossTable","xbrli:stringItemType","xbrldt:hypercubeItem",null,"duration","true","true"]
["in-capmkt","SegmentUnderwritingProfitOrLossAxis","SegmentUnderwritingProfitOrLossAxis","in-capmkt_SegmentUnderwritingProfitOrLossAxis","xbrli:stringItemType","xbrldt:dimensionItem",null,"duration","true","true"]
["in-capmkt","DisclosuresRelatingToSegmentUnderwritingProfitOrLossLineItems","DisclosuresRelatingToSegmentUnderwritingProfitOrLossLineItems","in-capmkt_DisclosuresRelatingToSegmentUnderwritingProfitOrLossLineItems","xbrli:stringItemType","xbrli:item",null,"duration","true","true"]
["in-capmkt","UnderwritingProfitOrLoss","UnderwritingProfitOrLoss","in-capmkt_UnderwritingProfitOrLoss","xbrli:monetaryItemType","xbrli:item",null,"duration","true","true"]
["in-capmkt","DisclosureOfNotesOnSegmentUnderwritingProfitOrLossExplanatoryTextBlock","DisclosureOfNotesOnSegmentUnderwritingProfitOrLossExplanatoryTextBlock","in-capmkt_DisclosureOfNotesOnSegmentUnderwritingProfitOrLossExplanatoryTextBlock","nonnum:textBlockItemType","xbrli:item",null,"instant","false","true"]
["in-capmkt","DisclosuresRelatingToSegmentOperatingProfitOrLossAbstract","DisclosuresRelatingToSegmentOperatingProfitOrLossAbstract","in-capmkt_DisclosuresRelatingToSegmentOperatingProfitOrLossAbstract","xbrli:stringItemType","xbrli:item",null,"duration","true","true"]
["in-capmkt","DisclosuresRelatingToSegmentOperatingProfitOrLossTable","DisclosuresRelatingToSegmentOperatingProfitOrLossTable","in-capmkt_DisclosuresRelatingToSegmentOperatingProfitOrLossTable","xbrli:stringItemType","xbrldt:hypercubeItem",null,"duration","true","true"]
["in-capmkt","SegmentOperatingProfitOrLossAxis","SegmentOperatingProfitOrLossAxis","in-capmkt_SegmentOperatingProfitOrLossAxis","xbrli:stringItemType","xbrldt:dimensionItem",null,"duration","true","true"]
["in-capmkt","DisclosuresRelatingToSegmentOperatingProfitOrLossLineItems","DisclosuresRelatingToSegmentOperatingProfitOrLossLineItems","in-capmkt_DisclosuresRelatingToSegmentOperatingProfitOrLossLineItems","xbrli:stringItemType","xbrli:item",null,"duration","true","true"]
["in-capmkt","OperatingProfitOrLoss","OperatingProfitOrLoss","in-capmkt_OperatingProfitOrLoss","xbrli:monetaryItemType","xbrli:item",null,"duration","true","true"]
["in-capmkt","DisclosureOfNotesOnSegmentOperatingProfitOrLossExplanatoryTextBlock","DisclosureOfNotesOnSegmentOperatingProfitOrLossExplanatoryTextBlock","in-capmkt_DisclosureOfNotesOnSegmentOperatingProfitOrLossExplanatoryTextBlock","nonnum:textBlockItemType","xbrli:item",null,"instant","false","true"]
["in-capmkt","DisclosuresRelatingToSegmentTechnicalLiabilitiesAbstract","DisclosuresRelatingToSegmentTechnicalLiabilitiesAbstract","in-capmkt_DisclosuresRelatingToSegmentTechnicalLiabilitiesAbstract","xbrli:stringItemType","xbrli:item",null,"duration","true","true"]
["in-capmkt","DisclosuresRelatingToSegmentTechnicalLiabilitiesTable","DisclosuresRelatingToSegmentTechnicalLiabilitiesTable","in-capmkt_DisclosuresRelatingToSegmentTechnicalLiabilitiesTable","xbrli:stringItemType","xbrldt:hypercubeItem",null,"duration","true","true"]
["in-capmkt","SegmentTechnicalLiabilitiesAxis","SegmentTechnicalLiabilitiesAxis","in-capmkt_SegmentTechnicalLiabilitiesAxis","xbrli:stringItemType","xbrldt:dimensionItem",null,"duration","true","true"]
["in-capmkt","ReportableSegmentsMember","ReportableSegmentsMember","in-capmkt_ReportableSegmentsMember","nonnum:domainItemType","xbrli:item",null,"duration","true","true"]
["in-capmkt","FireMember","FireMember","in-capmkt_FireMember","nonnum:domainItemType","xbrli:item",null,"duration","true","true"]
["in-capmkt","MarineMember","MarineMember","in-capmkt_MarineMember","nonnum:domainItemType","xbrli:item",null,"duration","true","true"]
["in-capmkt","HealthIncludingPersonalAccidentMember","HealthIncludingPersonalAccidentMember","in-capmkt_HealthIncludingPersonalAccidentMember","nonnum:domainItemType","xbrli:item",null,"duration","true","true"]
["in-capmkt","HealthRetailMember","HealthRetailMember","in-capmkt_HealthRetailMember","nonnum:domainItemType","xbrli:item",null,"duration","true","true"]
["in-capmkt","HealthGroupMember","HealthGroupMember","in-capmkt_HealthGroupMember","nonnum:domainItemType","xbrli:item",null,"duration","true","true"]
["in-capmkt","HealthGovernmentSchemesMember","HealthGovernmentSchemesMember","in-capmkt_HealthGovernmentSchemesMember","nonnum:domainItemType","xbrli:item",null,"duration","true","true"]
["in-capmkt","MotorMember","MotorMember","in-capmkt_MotorMember","nonnum:domainItemType","xbrli:item",null,"duration","true","true"]
["in-capmkt","MiscellaneousMember","MiscellaneousMember","in-capmkt_MiscellaneousMember","nonnum:domainItemType","xbrli:item",null,"duration","true","true"]
["in-capmkt","RetailMember","RetailMember","in-capmkt_RetailMember","nonnum:domainItemType","xbrli:item",null,"duration","true","true"]
["in-capmkt","GroupAndCorporateMember","GroupAndCorporateMember","in-capmkt_GroupAndCorporateMember","nonnum:domainItemType","xbrli:item",null,"duration","true","true"]
["in-capmkt","OtherSegmentsMember","OtherSegmentsMember","in-capmkt_OtherSegmentsMember","nonnum:domainItemType","xbrli:item",null,"duration","true","true"]
["in-capmkt","OtherReportableSegments1Member","OtherReportableSegments1Member","in-capmkt_OtherReportableSegments1Member","nonnum:domainItemType","xbrli:item",null,"duration","true","true"]
["in-capmkt","OtherReportableSegments2Member","OtherReportableSegments2Member","in-capmkt_OtherReportableSegments2Member","nonnum:domainItemType","xbrli:item",null,"duration","true","true"]
["in-capmkt","OtherReportableSegments3Member","OtherReportableSegments3Member","in-capmkt_OtherReportableSegments3Member","nonnum:domainItemType","xbrli:item",null,"duration","true","true"]
["in-capmkt","OtherReportableSegments4Member","OtherReportableSegments4Member","in-capmkt_OtherReportableSegments4Member","nonnum:domainItemType","xbrli:item",null,"duration","true","true"]
["in-capmkt","OtherReportableSegments5Member","OtherReportableSegments5Member","in-capmkt_OtherReportableSegments5Member","nonnum:domainItemType","xbrli:item",null,"duration","true","true"]
["in-capmkt","OtherReportableSegments6Member","OtherReportableSegments6Member","in-capmkt_OtherReportableSegments6Member","nonnum:domainItemType","xbrli:item",null,"duration","true","true"]
["in-capmkt","OtherReportableSegments7Member","OtherReportableSegments7Member","in-capmkt_OtherReportableSegments7Member","nonnum:domainItemType","xbrli:item",null,"duration","true","true"]
["in-capmkt","OtherReportableSegments8Member","OtherReportableSegments8Member","in-capmkt_OtherReportableSegments8Member","nonnum:domainItemType","xbrli:item",null,"duration","true","true"]
["in-capmkt","OtherReportableSegments9Member","OtherReportableSegments9Member","in-capmkt_OtherReportableSegments9Member","nonnum:domainItemType","xbrli:item",null,"duration","true","true"]
["in-capmkt","OtherReportableSegments10Member","OtherReportableSegments10Member","in-capmkt_OtherReportableSegments10Member","nonnum:domainItemType","xbrli:item",null,"duration","true","true"]
["in-capmkt","UnallocatedMember","UnallocatedMember","in-capmkt_UnallocatedMember","nonnum:domainItemType","xbrli:item",null,"duration","true","true"]
["in-capmkt","DisclosuresRelatingToSegmentTechnicalLiabilitiesLineItems","DisclosuresRelatingToSegmentTechnicalLiabilitiesLineItems","in-capmkt_DisclosuresRelatingToSegmentTechnicalLiabilitiesLineItems","xbrli:stringItemType","xbrli:item",null,"duration","true","true"]
["in-capmkt","DescriptionOfReportableSegments","DescriptionOfReportableSegments","in-capmkt_DescriptionOfReportableSegments","xbrli:stringItemType","xbrli:item",null,"duration","true","true"]
["in-capmkt","SegmentTechnicalLiabilities","SegmentTechnicalLiabilities","in-capmkt_SegmentTechnicalLiabilities","xbrli:monetaryItemType","xbrli:item",null,"instant","true","true"]
["in-capmkt","DisclosureOfNotesOnSegmentTechnicalLiabilitiesExplanatoryTextBlock","DisclosureOfNotesOnSegmentTechnicalLiabilitiesExplanatoryTextBlock","in-capmkt_DisclosureOfNotesOnSegmentTechnicalLiabilitiesExplanatoryTextBlock","nonnum:textBlockItemType","xbrli:item",null,"instant","false","true"]
["in-capmkt","ReportingOfLifeInsuranceCompaniesSegmentWiseRevenueResultsAndCapitalEmployedAbstract","ReportingOfLifeInsuranceCompaniesSegmentWiseRevenueResultsAndCapitalEmployedAbstract","in-capmkt_ReportingOfLifeInsuranceCompaniesSegmentWiseRevenueResultsAndCapitalEmployedAbstract","xbrli:stringItemType","xbrli:item",null,"duration","true","true"]
["in-capmkt","DisclosuresRelatingToSegmentSurplusDeficitAbstract","DisclosuresRelatingToSegmentSurplusDeficitAbstract","in-capmkt_DisclosuresRelatingToSegmentSurplusDeficitAbstract","xbrli:stringItemType","xbrli:item",null,"duration","true","true"]
["in-capmkt","DisclosuresRelatingToSegmentSurplusDeficitTable","DisclosuresRelatingToSegmentSurplusDeficitTable","in-capmkt_DisclosuresRelatingToSegmentSurplusDeficitTable","xbrli:stringItemType","xbrldt:hypercubeItem",null,"duration","true","true"]
["in-capmkt","SegmentSurplusDeficitAxis","SegmentSurplusDeficitAxis","in-capmkt_SegmentSurplusDeficitAxis","xbrli:stringItemType","xbrldt:dimensionItem",null,"duration","true","true"]
["in-capmkt","DisclosuresRelatingToSegmentSurplusDeficitLineItems","DisclosuresRelatingToSegmentSurplusDeficitLineItems","in-capmkt_DisclosuresRelatingToSegmentSurplusDeficitLineItems","xbrli:stringItemType","xbrli:item",null,"duration","true","true"]
["in-capmkt","DisclosureOfNotesOnSegmentSurplusDeficitExplanatoryTextBlock","DisclosureOfNotesOnSegmentSurplusDeficitExplanatoryTextBlock","in-capmkt_DisclosureOfNotesOnSegmentSurplusDeficitExplanatoryTextBlock","nonnum:textBlockItemType","xbrli:item",null,"instant","false","true"]
["in-capmkt","DisclosuresRelatingToSegmentAssetsAbstract","DisclosuresRelatingToSegmentAssetsAbstract","in-capmkt_DisclosuresRelatingToSegmentAssetsAbstract","xbrli:stringItemType","xbrli:item",null,"duration","true","true"]
["in-capmkt","DisclosuresRelatingToSegmentAssetsTable","DisclosuresRelatingToSegmentAssetsTable","in-capmkt_DisclosuresRelatingToSegmentAssetsTable","xbrli:stringItemType","xbrldt:hypercubeItem",null,"duration","true","true"]
["in-capmkt","ReportableSegmentAssetsAxis","ReportableSegmentAssetsAxis","in-capmkt_ReportableSegmentAssetsAxis","xbrli:stringItemType","xbrldt:dimensionItem",null,"duration","true","true"]
["in-capmkt","DisclosuresRelatingToSegmentAssetsLineItems","DisclosuresRelatingToSegmentAssetsLineItems","in-capmkt_DisclosuresRelatingToSegmentAssetsLineItems","xbrli:stringItemType","xbrli:item",null,"duration","true","true"]
["in-capmkt","TypeOfPolicy","TypeOfPolicy","in-capmkt_TypeOfPolicy","in-capmkt-types:TypeOfInsurance","xbrli:item",null,"duration","true","true"]
["in-capmkt","ParticipantingNonParticipantingPolicies","ParticipantingNonParticipantingPolicies","in-capmkt_ParticipantingNonParticipantingPolicies","xbrli:stringItemType","xbrli:item",null,"duration","true","true"]
["in-capmkt","SegmentAssets","SegmentAssets","in-capmkt_SegmentAssets","xbrli:monetaryItemType","xbrli:item",null,"instant","true","true"]
["in-capmkt","DisclosureOfNotesOnSegmentAssetsExplanatoryTextBlock","DisclosureOfNotesOnSegmentAssetsExplanatoryTextBlock","in-capmkt_DisclosureOfNotesOnSegmentAssetsExplanatoryTextBlock","nonnum:textBlockItemType","xbrli:item",null,"instant","false","true"]
["in-capmkt","DisclosuresRelatingToSegmentLiabilitiesAbstract","DisclosuresRelatingToSegmentLiabilitiesAbstract","in-capmkt_DisclosuresRelatingToSegmentLiabilitiesAbstract","xbrli:stringItemType","xbrli:item",null,"duration","true","true"]
["in-capmkt","DisclosuresRelatingToSegmentLiabilitiesTable","DisclosuresRelatingToSegmentLiabilitiesTable","in-capmkt_DisclosuresRelatingToSegmentLiabilitiesTable","xbrli:stringItemType","xbrldt:hypercubeItem",null,"duration","true","true"]
["in-capmkt","ReportableSegmentLiabilitiesAxis","ReportableSegmentLiabilitiesAxis","in-capmkt_ReportableSegmentLiabilitiesAxis","xbrli:stringItemType","xbrldt:dimensionItem",null,"duration","true","true"]
["in-capmkt","ReportableSegmentsMember1","ReportableSegmentsMember1","in-capmkt_ReportableSegmentsMember1","nonnum:domainItemType","xbrli:item",null,"duration","true","true"]
["in-capmkt","ReportableSegmentsMember2","ReportableSegmentsMember2","in-capmkt_ReportableSegmentsMember2","nonnum:domainItemType","xbrli:item",null,"duration","true","true"]
["in-capmkt","ReportableSegmentsMember3","ReportableSegmentsMember3","in-capmkt_ReportableSegmentsMember3","nonnum:domainItemType","xbrli:item",null,"duration","true","true"]
["in-capmkt","ReportableSegmentsMember4","ReportableSegmentsMember4","in-capmkt_ReportableSegmentsMember4","nonnum:domainItemType","xbrli:item",null,"duration","true","true"]
["in-capmkt","ReportableSegmentsMember5","ReportableSegmentsMember5","in-capmkt_ReportableSegmentsMember5","nonnum:domainItemType","xbrli:item",null,"duration","true","true"]
["in-capmkt","ReportableSegmentsMember6","ReportableSegmentsMember6","in-capmkt_ReportableSegmentsMember6","nonnum:domainItemType","xbrli:item",null,"duration","true","true"]
["in-capmkt","ReportableSegmentsMember7","ReportableSegmentsMember7","in-capmkt_ReportableSegmentsMember7","nonnum:domainItemType","xbrli:item",null,"duration","true","true"]
["in-capmkt","ReportableSegmentsMember8","ReportableSegmentsMember8","in-capmkt_ReportableSegmentsMember8","nonnum:domainItemType","xbrli:item",null,"duration","true","true"]
["in-capmkt","ReportableSegmentsMember9","ReportableSegmentsMember9","in-capmkt_ReportableSegmentsMember9","nonnum:domainItemType","xbrli:item",null,"duration","true","true"]
["in-capmkt","ReportableSegmentsMember10","ReportableSegmentsMember10","in-capmkt_ReportableSegmentsMember10","nonnum:domainItemType","xbrli:item",null,"duration","true","true"]
["in-capmkt","ReportableSegmentsMember11","ReportableSegmentsMember11","in-capmkt_ReportableSegmentsMember11","nonnum:domainItemType","xbrli:item",null,"duration","true","true"]
["in-capmkt","ReportableSegmentsMember12","ReportableSegmentsMember12","in-capmkt_ReportableSegmentsMember12","nonnum:domainItemType","xbrli:item",null,"duration","true","true"]
["in-capmkt","ReportableSegmentsMember13","ReportableSegmentsMember13","in-capmkt_ReportableSegmentsMember13","nonnum:domainItemType","xbrli:item",null,"duration","true","true"]
["in-capmkt","ReportableSegmentsMember14","ReportableSegmentsMember14","in-capmkt_ReportableSegmentsMember14","nonnum:domainItemType","xbrli:item",null,"duration","true","true"]
["in-capmkt","ReportableSegmentsMember15","ReportableSegmentsMember15","in-capmkt_ReportableSegmentsMember15","nonnum:domainItemType","xbrli:item",null,"duration","true","true"]
["in-capmkt","ReportableSegmentsMember16","ReportableSegmentsMember16","in-capmkt_ReportableSegmentsMember16","nonnum:domainItemType","xbrli:item",null,"duration","true","true"]
["in-capmkt","ReportableSegmentsMember17","ReportableSegmentsMember17","in-capmkt_ReportableSegmentsMember17","nonnum:domainItemType","xbrli:item",null,"duration","true","true"]
["in-capmkt","ReportableSegmentsMember18","ReportableSegmentsMember18","in-capmkt_ReportableSegmentsMember18","nonnum:domainItemType","xbrli:item",null,"duration","true","true"]
["in-capmkt","ReportableSegmentsMember19","ReportableSegmentsMember19","in-capmkt_ReportableSegmentsMember19","nonnum:domainItemType","xbrli:item",null,"duration","true","true"]
["in-capmkt","ReportableSegmentsMember20","ReportableSegmentsMember20","in-capmkt_ReportableSegmentsMember20","nonnum:domainItemType","xbrli:item",null,"duration","true","true"]
["in-capmkt","ReportableSegmentsMember21","ReportableSegmentsMember21","in-capmkt_ReportableSegmentsMember21","nonnum:domainItemType","xbrli:item",null,"duration","true","true"]
["in-capmkt","ReportableSegmentsMember22","ReportableSegmentsMember22","in-capmkt_ReportableSegmentsMember22","nonnum:domainItemType","xbrli:item",null,"duration","true","true"]
["in-capmkt","DisclosuresRelatingToSegmentLiabilitiesLineItems","DisclosuresRelatingToSegmentLiabilitiesLineItems","in-capmkt_DisclosuresRelatingToSegmentLiabilitiesLineItems","xbrli:stringItemType","xbrli:item",null,"duration","true","true"]
["in-capmkt","DescriptionOfReportableSegments","DescriptionOfReportableSegments","in-capmkt_DescriptionOfReportableSegments","xbrli:stringItemType","xbrli:item",null,"duration","true","true"]
["in-capmkt","SegmentTechnicalLiabilitiesUnexpiredRiskReserveNet","SegmentTechnicalLiabilitiesUnexpiredRiskReserveNet","in-capmkt_SegmentTechnicalLiabilitiesUnexpiredRiskReserveNet","xbrli:monetaryItemType","xbrli:item",null,"instant","true","true"]
["in-capmkt","DisclosureOfNotesOnSegmentLiabilitiesExplanatoryTextBlock","DisclosureOfNotesOnSegmentLiabilitiesExplanatoryTextBlock","in-capmkt_DisclosureOfNotesOnSegmentLiabilitiesExplanatoryTextBlock","nonnum:textBlockItemType","xbrli:item",null,"instant","false","true"]
["in-capmkt","SubmissionOfFinancialResultsByGeneralInsuranceCompaniesFiledWithStockExchangesAbstract","SubmissionOfFinancialResultsByGeneralInsuranceCompaniesFiledWithStockExchangesAbstract","in-capmkt_SubmissionOfFinancialResultsByGeneralInsuranceCompaniesFiledWithStockExchangesAbstract","xbrli:stringItemType","xbrli:item",null,"duration","true","true"]
["in-capmkt","OperatingResultsAbstract","OperatingResultsAbstract","in-capmkt_OperatingResultsAbstract","xbrli:stringItemType","xbrli:item",null,"duration","true","true"]
["in-capmkt","StatementOfOperatingProfitAndLossAbstract","StatementOfOperatingProfitAndLossAbstract","in-capmkt_StatementOfOperatingProfitAndLossAbstract","xbrli:stringItemType","xbrli:item",null,"duration","true","true"]
["in-capmkt","OperatingIncomeAbstract","OperatingIncomeAbstract","in-capmkt_OperatingIncomeAbstract","xbrli:stringItemType","xbrli:item",null,"duration","true","true"]
["in-capmkt","GrossPremiumsWritten","GrossPremiumsWritten","in-capmkt_GrossPremiumsWritten","xbrli:monetaryItemType","xbrli:item",null,"duration","true","true"]
["in-capmkt","NetPremiumWritten","NetPremiumWritten","in-capmkt_NetPremiumWritten","xbrli:monetaryItemType","xbrli:item",null,"duration","true","true"]
["in-capmkt","PremiumEarned","PremiumEarned","in-capmkt_PremiumEarned","xbrli:monetaryItemType","xbrli:item",null,"duration","true","true"]
["in-capmkt","OperatingIncome","OperatingIncome","in-capmkt_OperatingIncome","xbrli:monetaryItemType","xbrli:item",null,"duration","true","true"]
["in-capmkt","OperatingExpensesAbstract","OperatingExpensesAbstract","in-capmkt_OperatingExpensesAbstract","xbrli:stringItemType","xbrli:item",null,"duration","true","true"]
["in-capmkt","CommissionsAndBrokerageNet","CommissionsAndBrokerageNet","in-capmkt_CommissionsAndBrokerageNet","xbrli:monetaryItemType","xbrli:item",null,"duration","true","true"]
["in-capmkt","IncurredClaimsAbstract","IncurredClaimsAbstract","in-capmkt_IncurredClaimsAbstract","xbrli:stringItemType","xbrli:item",null,"duration","true","true"]
["in-capmkt","ClaimsPaid","ClaimsPaid","in-capmkt_ClaimsPaid","xbrli:monetaryItemType","xbrli:item",null,"duration","true","true"]
["in-capmkt","ChangeInOutstandingClaims","ChangeInOutstandingClaims","in-capmkt_ChangeInOutstandingClaims","xbrli:monetaryItemType","xbrli:item",null,"duration","true","true"]
["in-capmkt","IncurredClaims","IncurredClaims","in-capmkt_IncurredClaims","xbrli:monetaryItemType","xbrli:item",null,"duration","true","true"]
["in-capmkt","OperatingExpenses","OperatingExpenses","in-capmkt_OperatingExpenses","xbrli:monetaryItemType","xbrli:item",null,"duration","true","true"]
["in-capmkt","TransferToProfitAndLossAccount","TransferToProfitAndLossAccount","in-capmkt_TransferToProfitAndLossAccount","xbrli:monetaryItemType","xbrli:item",null,"duration","true","true","This Is Mandatory.  Note :- Transfer to Profit and Loss A/c + Transfer to reserves  =  Operating Profit/loss"]
["in-capmkt","TransferToReserves","TransferToReserves","in-capmkt_TransferToReserves","xbrli:monetaryItemType","xbrli:item",null,"duration","true","true","This Is Mandatory.  Note :- Transfer to Profit and Loss A/c + Transfer to reserves  =  Operating Profit/loss"]
["in-capmkt","NonOperatingResultsAbstract","NonOperatingResultsAbstract","in-capmkt_NonOperatingResultsAbstract","xbrli:stringItemType","xbrli:item",null,"duration","true","true"]
["in-capmkt","StatementOfNonOperatingProfitAndLossAbstract","StatementOfNonOperatingProfitAndLossAbstract","in-capmkt_StatementOfNonOperatingProfitAndLossAbstract","xbrli:stringItemType","xbrli:item",null,"duration","true","true"]
["in-capmkt","IncomeInShareholdersAccountAbstract","IncomeInShareholdersAccountAbstract","in-capmkt_IncomeInShareholdersAccountAbstract","xbrli:stringItemType","xbrli:item",null,"duration","true","true"]
["in-capmkt","ShareholdersAccountTransferFromPolicyholdersFund","ShareholdersAccountTransferFromPolicyholdersFund","in-capmkt_ShareholdersAccountTransferFromPolicyholdersFund","xbrli:monetaryItemType","xbrli:item",null,"duration","true","true","This is Mandatory.  Note :- Transfer from Policyholders' Fund  = Transfer to Profit and Loss A/c"]
["in-capmkt","ShareholdersAccountIncomeFromInvestments","ShareholdersAccountIncomeFromInvestments","in-capmkt_ShareholdersAccountIncomeFromInvestments","xbrli:monetaryItemType","xbrli:item",null,"duration","true","true"]
["in-capmkt","IncomeInShareholdersAccount","IncomeInShareholdersAccount","in-capmkt_IncomeInShareholdersAccount","xbrli:monetaryItemType","xbrli:item",null,"duration","true","true"]
["in-capmkt","NonOperatingExpenseAbstract","NonOperatingExpenseAbstract","in-capmkt_NonOperatingExpenseAbstract","xbrli:stringItemType","xbrli:item",null,"duration","true","true"]
["in-capmkt","NonOperatingExpensesOtherThanThoseRelatedToInsuranceBusiness","NonOperatingExpensesOtherThanThoseRelatedToInsuranceBusiness","in-capmkt_NonOperatingExpensesOtherThanThoseRelatedToInsuranceBusiness","xbrli:monetaryItemType","xbrli:item",null,"duration","true","true"]
["in-capmkt","NonOperatingProvisionsForDoubtfulDebtsIncludingBadDebtsWrittenOff","NonOperatingProvisionsForDoubtfulDebtsIncludingBadDebtsWrittenOff","in-capmkt_NonOperatingProvisionsForDoubtfulDebtsIncludingBadDebtsWrittenOff","xbrli:monetaryItemType","xbrli:item",null,"duration","true","true"]
["in-capmkt","NonOperatingProvisionsForDiminutionInValueOfInvestments","NonOperatingProvisionsForDiminutionInValueOfInvestments","in-capmkt_NonOperatingProvisionsForDiminutionInValueOfInvestments","xbrli:monetaryItemType","xbrli:item",null,"duration","true","true"]
["in-capmkt","NonOperatingExpense","NonOperatingExpense","in-capmkt_NonOperatingExpense","xbrli:monetaryItemType","xbrli:item",null,"duration","true","true"]
["in-capmkt","ProfitOrLossBeforeExtraordinaryItems","ProfitOrLossBeforeExtraordinaryItems","in-capmkt_ProfitOrLossBeforeExtraordinaryItems","xbrli:monetaryItemType","xbrli:item",null,"duration","true","true"]
["in-capmkt","ExtraordinaryItems","ExtraordinaryItems","in-capmkt_ExtraordinaryItems","xbrli:monetaryItemType","xbrli:item",null,"duration","true","true"]
["in-capmkt","ProfitOrLossBeforeTax","ProfitOrLossBeforeTax","in-capmkt_ProfitOrLossBeforeTax","xbrli:monetaryItemType","xbrli:item",null,"duration","true","true"]
["in-capmkt","ProfitLossAfterTax","ProfitLossAfterTax","in-capmkt_ProfitLossAfterTax","xbrli:monetaryItemType","xbrli:item",null,"duration","true","true"]
["in-capmkt","PaidUpEquityCapital","PaidUpEquityCapital","in-capmkt_PaidUpEquityCapital","xbrli:monetaryItemType","xbrli:item",null,"instant","true","true","Value for Quarter ended date And Period Ended date has to be the same"]
["in-capmkt","FairValueChangeAccountAndRevaluationReserve","FairValueChangeAccountAndRevaluationReserve","in-capmkt_FairValueChangeAccountAndRevaluationReserve","xbrli:monetaryItemType","xbrli:item",null,"instant","true","true","Value for Quarter ended date And Period Ended date has to be the same"]
["in-capmkt","ShareholderFund","ShareholderFund","in-capmkt_ShareholderFund","xbrli:monetaryItemType","xbrli:item",null,"instant","true","true","Value for Quarter ended date And Period Ended date has to be the same"]
["in-capmkt","PolicyholdersFund","PolicyholdersFund","in-capmkt_PolicyholdersFund","xbrli:monetaryItemType","xbrli:item",null,"instant","true","true","Value for Quarter ended date And Period Ended date has to be the same"]
["in-capmkt","IncurredClaimRatio","IncurredClaimRatio","in-capmkt_IncurredClaimRatio","num:percentItemType","xbrli:item",null,"duration","true","true"]
["in-capmkt","NetRetentionRatio","NetRetentionRatio","in-capmkt_NetRetentionRatio","num:percentItemType","xbrli:item",null,"duration","true","true"]
["in-capmkt","CombinedRatio","CombinedRatio","in-capmkt_CombinedRatio","num:percentItemType","xbrli:item",null,"duration","true","true"]
["in-capmkt","YieldOnInvestmentsAbstract","YieldOnInvestmentsAbstract","in-capmkt_YieldOnInvestmentsAbstract","xbrli:stringItemType","xbrli:item",null,"duration","true","true"]
["in-capmkt","WithoutUnrealizedGains","WithoutUnrealizedGains","in-capmkt_WithoutUnrealizedGains","xbrli:monetaryItemType","xbrli:item",null,"duration","true","true"]
["in-capmkt","WithUnrealisedGains","WithUnrealisedGains","in-capmkt_WithUnrealisedGains","xbrli:monetaryItemType","xbrli:item",null,"duration","true","true"]
["in-capmkt","PublicShareholdingAbstract","PublicShareholdingAbstract","in-capmkt_PublicShareholdingAbstract","xbrli:stringItemType","xbrli:item",null,"duration","true","true"]
["in-capmkt","NumberOfShares","NumberOfShares","in-capmkt_NumberOfShares","xbrli:sharesItemType","xbrli:item",null,"instant","true","true","Value for Quarter ended date And Period Ended date has to be the same"]
["in-capmkt","PercentageOfShareholding","PercentageOfShareholding","in-capmkt_PercentageOfShareholding","num:percentItemType","xbrli:item",null,"duration","true","true"]
["in-capmkt","PercentageOfGovernmentHolding","PercentageOfGovernmentHolding","in-capmkt_PercentageOfGovernmentHolding","num:percentItemType","xbrli:item",null,"duration","true","true","Value for Quarter ended date And Period Ended date has to be the same"]
["in-capmkt","ShareApplicationMoneyReceivedPendingAllotmentOfShares","ShareApplicationMoneyReceivedPendingAllotmentOfShares","in-capmkt_ShareApplicationMoneyReceivedPendingAllotmentOfShares","xbrli:monetaryItemType","xbrli:item",null,"instant","true","true"]
["in-capmkt","CreditDebitFairValueChangeAccount","CreditDebitFairValueChangeAccount","in-capmkt_CreditDebitFairValueChangeAccount","xbrli:monetaryItemType","xbrli:item",null,"instant","true","true"]
["in-capmkt","PolicyholdersFundsAbstract","PolicyholdersFundsAbstract","in-capmkt_PolicyholdersFundsAbstract","xbrli:stringItemType","xbrli:item",null,"duration","true","true"]
["in-capmkt","CreditDebitFairValueChangeAccountPolicyholdersFunds","CreditDebitFairValueChangeAccountPolicyholdersFunds","in-capmkt_CreditDebitFairValueChangeAccountPolicyholdersFunds","xbrli:monetaryItemType","xbrli:item",null,"instant","true","true"]
["in-capmkt","PolicyLiabilities","PolicyLiabilities","in-capmkt_PolicyLiabilities","xbrli:monetaryItemType","xbrli:item",null,"instant","true","true"]
["in-capmkt","InsuranceReserve","InsuranceReserve","in-capmkt_InsuranceReserve","xbrli:monetaryItemType","xbrli:item",null,"instant","true","true"]
["in-capmkt","RevaluationReserveInvestmentProperty","RevaluationReserveInvestmentProperty","in-capmkt_RevaluationReserveInvestmentProperty","xbrli:monetaryItemType","xbrli:item",null,"instant","true","true"]
["in-capmkt","LinkedLiabilitiesAbstract","LinkedLiabilitiesAbstract","in-capmkt_LinkedLiabilitiesAbstract","xbrli:stringItemType","xbrli:item",null,"duration","true","true"]
["in-capmkt","ProvisionForLinkedLiabilities","ProvisionForLinkedLiabilities","in-capmkt_ProvisionForLinkedLiabilities","xbrli:monetaryItemType","xbrli:item",null,"instant","true","true"]
["in-capmkt","ChangeInFairvalueAccount","ChangeInFairvalueAccount","in-capmkt_ChangeInFairvalueAccount","xbrli:monetaryItemType","xbrli:item",null,"instant","true","true"]
["in-capmkt","FundsForDiscontinuedPoliciesAbstract","FundsForDiscontinuedPoliciesAbstract","in-capmkt_FundsForDiscontinuedPoliciesAbstract","xbrli:stringItemType","xbrli:item",null,"duration","true","true"]
["in-capmkt","DiscontinuedOnAccountOfNonPaymentOfPremium","DiscontinuedOnAccountOfNonPaymentOfPremium","in-capmkt_DiscontinuedOnAccountOfNonPaymentOfPremium","xbrli:monetaryItemType","xbrli:item",null,"instant","true","true"]
["in-capmkt","CreditDebitFairValueChangeAccountFundsForDiscontinuedPolicies","CreditDebitFairValueChangeAccountFundsForDiscontinuedPolicies","in-capmkt_CreditDebitFairValueChangeAccountFundsForDiscontinuedPolicies","xbrli:monetaryItemType","xbrli:item",null,"instant","true","true"]
["in-capmkt","OthersDiscontinuance","OthersDiscontinuance","in-capmkt_OthersDiscontinuance","xbrli:monetaryItemType","xbrli:item",null,"instant","true","true"]
["in-capmkt","LinkedLiabilities","LinkedLiabilities","in-capmkt_LinkedLiabilities","xbrli:monetaryItemType","xbrli:item",null,"instant","true","true"]
["in-capmkt","AssetsHeldToCoverLinkLiabilities","AssetsHeldToCoverLinkLiabilities","in-capmkt_AssetsHeldToCoverLinkLiabilities","xbrli:monetaryItemType","xbrli:item",null,"instant","true","true"]
["in-capmkt","TypeOfReport","TypeOfReport","in-capmkt_TypeOfReport","in-capmkt-types:TypeOfReport","xbrli:item",null,"instant","false","true"]
["in-capmkt","DateOfReport","DateOfReport","in-capmkt_DateOfReport","xbrli:dateItemType","xbrli:item",null,"instant","false","true"]
["in-capmkt","DateOfListing","DateOfListing","in-capmkt_DateOfListing","xbrli:dateItemType","xbrli:item",null,"instant","false","true"]
["in-capmkt","DateOfCapitalRestructuring","DateOfCapitalRestructuring","in-capmkt_DateOfCapitalRestructuring","xbrli:dateItemType","xbrli:item",null,"instant","false","true"]
["in-capmkt","CompanyRemarksExplanatory","CompanyRemarksExplanatory","in-capmkt_CompanyRemarksExplanatory","nonnum:textBlockItemType","xbrli:item",null,"instant","false","true"]
["in-capmkt","DisclosureOfUnitHoldingPatternAbstract","DisclosureOfUnitHoldingPatternAbstract","in-capmkt_DisclosureOfUnitHoldingPatternAbstract","xbrli:stringItemType","xbrli:item",null,"duration","true","true"]
["in-capmkt","DisclosureOfUnitHoldingPatternTable","DisclosureOfUnitHoldingPatternTable","in-capmkt_DisclosureOfUnitHoldingPatternTable","xbrli:stringItemType","xbrldt:hypercubeItem",null,"duration","true","true"]
["in-capmkt","OtherInstitutions7Member","OtherInstitutions7Member","in-capmkt_OtherInstitutions7Member","nonnum:domainItemType","xbrli:item",null,"duration","true","true"]
["in-capmkt","OtherInstitutions8Member","OtherInstitutions8Member","in-capmkt_OtherInstitutions8Member","nonnum:domainItemType","xbrli:item",null,"duration","true","true"]
["in-capmkt","OtherInstitutions9Member","OtherInstitutions9Member","in-capmkt_OtherInstitutions9Member","nonnum:domainItemType","xbrli:item",null,"duration","true","true"]
["in-capmkt","OtherInstitutions10Member","OtherInstitutions10Member","in-capmkt_OtherInstitutions10Member","nonnum:domainItemType","xbrli:item",null,"duration","true","true"]
["in-capmkt","OtherInstitutions11Member","OtherInstitutions11Member","in-capmkt_OtherInstitutions11Member","nonnum:domainItemType","xbrli:item",null,"duration","true","true"]
["in-capmkt","OtherInstitutions12Member","OtherInstitutions12Member","in-capmkt_OtherInstitutions12Member","nonnum:domainItemType","xbrli:item",null,"duration","true","true"]
["in-capmkt","OtherInstitutions13Member","OtherInstitutions13Member","in-capmkt_OtherInstitutions13Member","nonnum:domainItemType","xbrli:item",null,"duration","true","true"]
["in-capmkt","OtherInstitutions14Member","OtherInstitutions14Member","in-capmkt_OtherInstitutions14Member","nonnum:domainItemType","xbrli:item",null,"duration","true","true"]
["in-capmkt","OtherInstitutions15Member","OtherInstitutions15Member","in-capmkt_OtherInstitutions15Member","nonnum:domainItemType","xbrli:item",null,"duration","true","true"]
["in-capmkt","NonInstitutionsMember","NonInstitutionsMember","in-capmkt_NonInstitutionsMember","nonnum:domainItemType","xbrli:item",null,"duration","true","true"]
["in-capmkt","CentralGovernmentOrStateGovernmentsOrPresidentOfIndiaNonInstitutionsMember","CentralGovernmentOrStateGovernmentsOrPresidentOfIndiaNonInstitutionsMember","in-capmkt_CentralGovernmentOrStateGovernmentsOrPresidentOfIndiaNonInstitutionsMember","nonnum:domainItemType","xbrli:item",null,"duration","true","true"]
["in-capmkt","IndividualsNonInstitutionsMember","IndividualsNonInstitutionsMember","in-capmkt_IndividualsNonInstitutionsMember","nonnum:domainItemType","xbrli:item",null,"duration","true","true"]
["in-capmkt","NBFCsRegisteredWithRBINonInstitutionsMember","NBFCsRegisteredWithRBINonInstitutionsMember","in-capmkt_NBFCsRegisteredWithRBINonInstitutionsMember","nonnum:domainItemType","xbrli:item",null,"duration","true","true"]
["in-capmkt","OtherNonInstitutionsMember","OtherNonInstitutionsMember","in-capmkt_OtherNonInstitutionsMember","nonnum:domainItemType","xbrli:item",null,"duration","true","true"]
["in-capmkt","OtherNonInstitutions1Member","OtherNonInstitutions1Member","in-capmkt_OtherNonInstitutions1Member","nonnum:domainItemType","xbrli:item",null,"duration","true","true"]
["in-capmkt","OtherNonInstitutions2Member","OtherNonInstitutions2Member","in-capmkt_OtherNonInstitutions2Member","nonnum:domainItemType","xbrli:item",null,"duration","true","true"]
["in-capmkt","OtherNonInstitutions3Member","OtherNonInstitutions3Member","in-capmkt_OtherNonInstitutions3Member","nonnum:domainItemType","xbrli:item",null,"duration","true","true"]
["in-capmkt","OtherNonInstitutions4Member","OtherNonInstitutions4Member","in-capmkt_OtherNonInstitutions4Member","nonnum:domainItemType","xbrli:item",null,"duration","true","true"]
["in-capmkt","OtherNonInstitutions5Member","OtherNonInstitutions5Member","in-capmkt_OtherNonInstitutions5Member","nonnum:domainItemType","xbrli:item",null,"duration","true","true"]
["in-capmkt","OtherNonInstitutions6Member","OtherNonInstitutions6Member","in-capmkt_OtherNonInstitutions6Member","nonnum:domainItemType","xbrli:item",null,"duration","true","true"]
["in-capmkt","OtherNonInstitutions7Member","OtherNonInstitutions7Member","in-capmkt_OtherNonInstitutions7Member","nonnum:domainItemType","xbrli:item",null,"duration","true","true"]
["in-capmkt","OtherNonInstitutions8Member","OtherNonInstitutions8Member","in-capmkt_OtherNonInstitutions8Member","nonnum:domainItemType","xbrli:item",null,"duration","true","true"]
["in-capmkt","OtherNonInstitutions9Member","OtherNonInstitutions9Member","in-capmkt_OtherNonInstitutions9Member","nonnum:domainItemType","xbrli:item",null,"duration","true","true"]
["in-capmkt","OtherNonInstitutions10Member","OtherNonInstitutions10Member","in-capmkt_OtherNonInstitutions10Member","nonnum:domainItemType","xbrli:item",null,"duration","true","true"]
["in-capmkt","OtherNonInstitutions11Member","OtherNonInstitutions11Member","in-capmkt_OtherNonInstitutions11Member","nonnum:domainItemType","xbrli:item",null,"duration","true","true"]
["in-capmkt","OtherNonInstitutions12Member","OtherNonInstitutions12Member","in-capmkt_OtherNonInstitutions12Member","nonnum:domainItemType","xbrli:item",null,"duration","true","true"]
["in-capmkt","OtherNonInstitutions13Member","OtherNonInstitutions13Member","in-capmkt_OtherNonInstitutions13Member","nonnum:domainItemType","xbrli:item",null,"duration","true","true"]
["in-capmkt","OtherNonInstitutions14Member","OtherNonInstitutions14Member","in-capmkt_OtherNonInstitutions14Member","nonnum:domainItemType","xbrli:item",null,"duration","true","true"]
["in-capmkt","OtherNonInstitutions15Member","OtherNonInstitutions15Member","in-capmkt_OtherNonInstitutions15Member","nonnum:domainItemType","xbrli:item",null,"duration","true","true"]
["in-capmkt","DisclosureOfUnitHoldingPatternLineItems","DisclosureOfUnitHoldingPatternLineItems","in-capmkt_DisclosureOfUnitHoldingPatternLineItems","xbrli:stringItemType","xbrli:item",null,"duration","true","true"]
["in-capmkt","NatureOfOther","NatureOfOther","in-capmkt_NatureOfOther","xbrli:stringItemType","xbrli:item",null,"instant","false","true"]
["in-capmkt","NumberOfUnitsHeld","NumberOfUnitsHeld","in-capmkt_NumberOfUnitsHeld","xbrli:sharesItemType","xbrli:item",null,"instant","false","true"]
["in-capmkt","AsAPercentageOfTotalOutStandingUnits","AsAPercentageOfTotalOutStandingUnits","in-capmkt_AsAPercentageOfTotalOutStandingUnits","num:percentItemType","xbrli:item",null,"instant","false","true"]
["in-capmkt","OtherIndian16Member","OtherIndian16Member","in-capmkt_OtherIndian16Member","nonnum:domainItemType","xbrli:item",null,"duration","true","true"]
["in-capmkt","OtherIndian17Member","OtherIndian17Member","in-capmkt_OtherIndian17Member","nonnum:domainItemType","xbrli:item",null,"duration","true","true"]
["in-capmkt","OtherIndian18Member","OtherIndian18Member","in-capmkt_OtherIndian18Member","nonnum:domainItemType","xbrli:item",null,"duration","true","true"]
["in-capmkt","CategoryOfUnitHoldingPatternDetailsAxis","CategoryOfUnitHoldingPatternDetailsAxis","in-capmkt_CategoryOfUnitHoldingPatternDetailsAxis","xbrli:stringItemType","xbrldt:dimensionItem",null,"duration","true","true"]
["in-capmkt","TotalUnitsOutstandingMember","TotalUnitsOutstandingMember","in-capmkt_TotalUnitsOutstandingMember","nonnum:domainItemType","xbrli:item",null,"duration","true","true"]
["in-capmkt","UnitHoldingOfSponsorAndSponsorGroupMember","UnitHoldingOfSponsorAndSponsorGroupMember","in-capmkt_UnitHoldingOfSponsorAndSponsorGroupMember","nonnum:domainItemType","xbrli:item",null,"duration","true","true"]
["in-capmkt","IndianMember","IndianMember","in-capmkt_IndianMember","nonnum:domainItemType","xbrli:item",null,"duration","true","true"]
["in-capmkt","IndividualsOrHUFMember","IndividualsOrHUFMember","in-capmkt_IndividualsOrHUFMember","nonnum:domainItemType","xbrli:item",null,"duration","true","true"]
["in-capmkt","CentralGovernmentOrStateGovernmentMember","CentralGovernmentOrStateGovernmentMember","in-capmkt_CentralGovernmentOrStateGovernmentMember","nonnum:domainItemType","xbrli:item",null,"duration","true","true"]
["in-capmkt","FinancialInstitutionsBanksMember","FinancialInstitutionsBanksMember","in-capmkt_FinancialInstitutionsBanksMember","nonnum:domainItemType","xbrli:item",null,"duration","true","true"]
["in-capmkt","OtherIndianMember","OtherIndianMember","in-capmkt_OtherIndianMember","nonnum:domainItemType","xbrli:item",null,"duration","true","true"]
["in-capmkt","OtherIndian1Member","OtherIndian1Member","in-capmkt_OtherIndian1Member","nonnum:domainItemType","xbrli:item",null,"duration","true","true"]
["in-capmkt","OtherIndian2Member","OtherIndian2Member","in-capmkt_OtherIndian2Member","nonnum:domainItemType","xbrli:item",null,"duration","true","true"]
["in-capmkt","OtherIndian3Member","OtherIndian3Member","in-capmkt_OtherIndian3Member","nonnum:domainItemType","xbrli:item",null,"duration","true","true"]
["in-capmkt","OtherIndian4Member","OtherIndian4Member","in-capmkt_OtherIndian4Member","nonnum:domainItemType","xbrli:item",null,"duration","true","true"]
["in-capmkt","OtherIndian5Member","OtherIndian5Member","in-capmkt_OtherIndian5Member","nonnum:domainItemType","xbrli:item",null,"duration","true","true"]
["in-capmkt","OtherIndian6Member","OtherIndian6Member","in-capmkt_OtherIndian6Member","nonnum:domainItemType","xbrli:item",null,"duration","true","true"]
["in-capmkt","OtherIndian7Member","OtherIndian7Member","in-capmkt_OtherIndian7Member","nonnum:domainItemType","xbrli:item",null,"duration","true","true"]
["in-capmkt","OtherIndian8Member","OtherIndian8Member","in-capmkt_OtherIndian8Member","nonnum:domainItemType","xbrli:item",null,"duration","true","true"]
["in-capmkt","OtherIndian9Member","OtherIndian9Member","in-capmkt_OtherIndian9Member","nonnum:domainItemType","xbrli:item",null,"duration","true","true"]
["in-capmkt","OtherIndian10Member","OtherIndian10Member","in-capmkt_OtherIndian10Member","nonnum:domainItemType","xbrli:item",null,"duration","true","true"]
["in-capmkt","OtherIndian11Member","OtherIndian11Member","in-capmkt_OtherIndian11Member","nonnum:domainItemType","xbrli:item",null,"duration","true","true"]
["in-capmkt","OtherIndian12Member","OtherIndian12Member","in-capmkt_OtherIndian12Member","nonnum:domainItemType","xbrli:item",null,"duration","true","true"]
["in-capmkt","OtherIndian13Member","OtherIndian13Member","in-capmkt_OtherIndian13Member","nonnum:domainItemType","xbrli:item",null,"duration","true","true"]
["in-capmkt","OtherIndian14Member","OtherIndian14Member","in-capmkt_OtherIndian14Member","nonnum:domainItemType","xbrli:item",null,"duration","true","true"]
["in-capmkt","OtherIndian15Member","OtherIndian15Member","in-capmkt_OtherIndian15Member","nonnum:domainItemType","xbrli:item",null,"duration","true","true"]
["in-capmkt","ForeignMember","ForeignMember","in-capmkt_ForeignMember","nonnum:domainItemType","xbrli:item",null,"duration","true","true"]
["in-capmkt","IndividualsNonResidentIndiansOrForeignIndividualsMember","IndividualsNonResidentIndiansOrForeignIndividualsMember","in-capmkt_IndividualsNonResidentIndiansOrForeignIndividualsMember","nonnum:domainItemType","xbrli:item",null,"duration","true","true"]
["in-capmkt","ForeignGovernmentMember","ForeignGovernmentMember","in-capmkt_ForeignGovernmentMember","nonnum:domainItemType","xbrli:item",null,"duration","true","true"]
["in-capmkt","ForeignInstitutionsMember","ForeignInstitutionsMember","in-capmkt_ForeignInstitutionsMember","nonnum:domainItemType","xbrli:item",null,"duration","true","true"]
["in-capmkt","ForeignPortfolioInvestorsMember","ForeignPortfolioInvestorsMember","in-capmkt_ForeignPortfolioInvestorsMember","nonnum:domainItemType","xbrli:item",null,"duration","true","true"]
["in-capmkt","OtherForeignMember","OtherForeignMember","in-capmkt_OtherForeignMember","nonnum:domainItemType","xbrli:item",null,"duration","true","true"]
["in-capmkt","OtherForeign1Member","OtherForeign1Member","in-capmkt_OtherForeign1Member","nonnum:domainItemType","xbrli:item",null,"duration","true","true"]
["in-capmkt","OtherForeign2Member","OtherForeign2Member","in-capmkt_OtherForeign2Member","nonnum:domainItemType","xbrli:item",null,"duration","true","true"]
["in-capmkt","OtherForeign3Member","OtherForeign3Member","in-capmkt_OtherForeign3Member","nonnum:domainItemType","xbrli:item",null,"duration","true","true"]
["in-capmkt","OtherForeign4Member","OtherForeign4Member","in-capmkt_OtherForeign4Member","nonnum:domainItemType","xbrli:item",null,"duration","true","true"]
["in-capmkt","OtherForeign5Member","OtherForeign5Member","in-capmkt_OtherForeign5Member","nonnum:domainItemType","xbrli:item",null,"duration","true","true"]
["in-capmkt","OtherForeign6Member","OtherForeign6Member","in-capmkt_OtherForeign6Member","nonnum:domainItemType","xbrli:item",null,"duration","true","true"]
["in-capmkt","OtherForeign7Member","OtherForeign7Member","in-capmkt_OtherForeign7Member","nonnum:domainItemType","xbrli:item",null,"duration","true","true"]
["in-capmkt","OtherForeign8Member","OtherForeign8Member","in-capmkt_OtherForeign8Member","nonnum:domainItemType","xbrli:item",null,"duration","true","true"]
["in-capmkt","OtherForeign9Member","OtherForeign9Member","in-capmkt_OtherForeign9Member","nonnum:domainItemType","xbrli:item",null,"duration","true","true"]
["in-capmkt","OtherForeign10Member","OtherForeign10Member","in-capmkt_OtherForeign10Member","nonnum:domainItemType","xbrli:item",null,"duration","true","true"]
["in-capmkt","OtherForeign11Member","OtherForeign11Member","in-capmkt_OtherForeign11Member","nonnum:domainItemType","xbrli:item",null,"duration","true","true"]
["in-capmkt","OtherForeign12Member","OtherForeign12Member","in-capmkt_OtherForeign12Member","nonnum:domainItemType","xbrli:item",null,"duration","true","true"]
["in-capmkt","OtherForeign13Member","OtherForeign13Member","in-capmkt_OtherForeign13Member","nonnum:domainItemType","xbrli:item",null,"duration","true","true"]
["in-capmkt","OtherForeign14Member","OtherForeign14Member","in-capmkt_OtherForeign14Member","nonnum:domainItemType","xbrli:item",null,"duration","true","true"]
["in-capmkt","OtherForeign15Member","OtherForeign15Member","in-capmkt_OtherForeign15Member","nonnum:domainItemType","xbrli:item",null,"duration","true","true"]
["in-capmkt","PublicHoldingMember","PublicHoldingMember","in-capmkt_PublicHoldingMember","nonnum:domainItemType","xbrli:item",null,"duration","true","true"]
["in-capmkt","InstitutionsMember","InstitutionsMember","in-capmkt_InstitutionsMember","nonnum:domainItemType","xbrli:item",null,"duration","true","true"]
["in-capmkt","MutualFundsInstitutionsMember","MutualFundsInstitutionsMember","in-capmkt_MutualFundsInstitutionsMember","nonnum:domainItemType","xbrli:item",null,"duration","true","true"]
["in-capmkt","FinancialInstitutionsOrBanksInstitutionsMember","FinancialInstitutionsOrBanksInstitutionsMember","in-capmkt_FinancialInstitutionsOrBanksInstitutionsMember","nonnum:domainItemType","xbrli:item",null,"duration","true","true"]
["in-capmkt","CentralGovernmentOrStateGovernmentsMember","CentralGovernmentOrStateGovernmentsMember","in-capmkt_CentralGovernmentOrStateGovernmentsMember","nonnum:domainItemType","xbrli:item",null,"duration","true","true"]
["in-capmkt","VentureCapitalFundsInstitutionsMember","VentureCapitalFundsInstitutionsMember","in-capmkt_VentureCapitalFundsInstitutionsMember","nonnum:domainItemType","xbrli:item",null,"duration","true","true"]
["in-capmkt","InsuranceCompaniesInstitutionsMember","InsuranceCompaniesInstitutionsMember","in-capmkt_InsuranceCompaniesInstitutionsMember","nonnum:domainItemType","xbrli:item",null,"duration","true","true"]
["in-capmkt","ProvidentOrPensionFundsInstitutionsMember","ProvidentOrPensionFundsInstitutionsMember","in-capmkt_ProvidentOrPensionFundsInstitutionsMember","nonnum:domainItemType","xbrli:item",null,"duration","true","true"]
["in-capmkt","ForeignPortfolioInvestorsInstitutionsMember","ForeignPortfolioInvestorsInstitutionsMember","in-capmkt_ForeignPortfolioInvestorsInstitutionsMember","nonnum:domainItemType","xbrli:item",null,"duration","true","true"]
["in-capmkt","ForeignVentureCapitalInvestorsInstitutionsMember","ForeignVentureCapitalInvestorsInstitutionsMember","in-capmkt_ForeignVentureCapitalInvestorsInstitutionsMember","nonnum:domainItemType","xbrli:item",null,"duration","true","true"]
["in-capmkt","OtherInstitutionsMember","OtherInstitutionsMember","in-capmkt_OtherInstitutionsMember","nonnum:domainItemType","xbrli:item",null,"duration","true","true"]
["in-capmkt","OtherInstitutions1Member","OtherInstitutions1Member","in-capmkt_OtherInstitutions1Member","nonnum:domainItemType","xbrli:item",null,"duration","true","true"]
["in-capmkt","OtherInstitutions2Member","OtherInstitutions2Member","in-capmkt_OtherInstitutions2Member","nonnum:domainItemType","xbrli:item",null,"duration","true","true"]
["in-capmkt","OtherInstitutions3Member","OtherInstitutions3Member","in-capmkt_OtherInstitutions3Member","nonnum:domainItemType","xbrli:item",null,"duration","true","true"]
["in-capmkt","OtherInstitutions4Member","OtherInstitutions4Member","in-capmkt_OtherInstitutions4Member","nonnum:domainItemType","xbrli:item",null,"duration","true","true"]
["in-capmkt","OtherInstitutions5Member","OtherInstitutions5Member","in-capmkt_OtherInstitutions5Member","nonnum:domainItemType","xbrli:item",null,"duration","true","true"]
["in-capmkt","OtherInstitutions6Member","OtherInstitutions6Member","in-capmkt_OtherInstitutions6Member","nonnum:domainItemType","xbrli:item",null,"duration","true","true"]
["in-capmkt","OtherIndian19Member","OtherIndian19Member","in-capmkt_OtherIndian19Member","nonnum:domainItemType","xbrli:item",null,"duration","true","true"]
["in-capmkt","OtherIndian20Member","OtherIndian20Member","in-capmkt_OtherIndian20Member","nonnum:domainItemType","xbrli:item",null,"duration","true","true"]
["in-capmkt","OtherIndian21Member","OtherIndian21Member","in-capmkt_OtherIndian21Member","nonnum:domainItemType","xbrli:item",null,"duration","true","true"]
["in-capmkt","OtherIndian22Member","OtherIndian22Member","in-capmkt_OtherIndian22Member","nonnum:domainItemType","xbrli:item",null,"duration","true","true"]
["in-capmkt","OtherIndian23Member","OtherIndian23Member","in-capmkt_OtherIndian23Member","nonnum:domainItemType","xbrli:item",null,"duration","true","true"]
["in-capmkt","OtherIndian24Member","OtherIndian24Member","in-capmkt_OtherIndian24Member","nonnum:domainItemType","xbrli:item",null,"duration","true","true"]
["in-capmkt","OtherIndian25Member","OtherIndian25Member","in-capmkt_OtherIndian25Member","nonnum:domainItemType","xbrli:item",null,"duration","true","true"]
["in-capmkt","OtherIndian26Member","OtherIndian26Member","in-capmkt_OtherIndian26Member","nonnum:domainItemType","xbrli:item",null,"duration","true","true"]
["in-capmkt","OtherIndian27Member","OtherIndian27Member","in-capmkt_OtherIndian27Member","nonnum:domainItemType","xbrli:item",null,"duration","true","true"]
["in-capmkt","OtherIndian28Member","OtherIndian28Member","in-capmkt_OtherIndian28Member","nonnum:domainItemType","xbrli:item",null,"duration","true","true"]
["in-capmkt","OtherIndian29Member","OtherIndian29Member","in-capmkt_OtherIndian29Member","nonnum:domainItemType","xbrli:item",null,"duration","true","true"]
["in-capmkt","OtherIndian30Member","OtherIndian30Member","in-capmkt_OtherIndian30Member","nonnum:domainItemType","xbrli:item",null,"duration","true","true"]
["in-capmkt","OtherIndian31Member","OtherIndian31Member","in-capmkt_OtherIndian31Member","nonnum:domainItemType","xbrli:item",null,"duration","true","true"]
["in-capmkt","OtherIndian32Member","OtherIndian32Member","in-capmkt_OtherIndian32Member","nonnum:domainItemType","xbrli:item",null,"duration","true","true"]
["in-capmkt","OtherIndian33Member","OtherIndian33Member","in-capmkt_OtherIndian33Member","nonnum:domainItemType","xbrli:item",null,"duration","true","true"]
["in-capmkt","OtherIndian34Member","OtherIndian34Member","in-capmkt_OtherIndian34Member","nonnum:domainItemType","xbrli:item",null,"duration","true","true"]
["in-capmkt","OtherIndian35Member","OtherIndian35Member","in-capmkt_OtherIndian35Member","nonnum:domainItemType","xbrli:item",null,"duration","true","true"]
["in-capmkt","OtherIndian36Member","OtherIndian36Member","in-capmkt_OtherIndian36Member","nonnum:domainItemType","xbrli:item",null,"duration","true","true"]
["in-capmkt","OtherIndian37Member","OtherIndian37Member","in-capmkt_OtherIndian37Member","nonnum:domainItemType","xbrli:item",null,"duration","true","true"]
["in-capmkt","OtherIndian38Member","OtherIndian38Member","in-capmkt_OtherIndian38Member","nonnum:domainItemType","xbrli:item",null,"duration","true","true"]
["in-capmkt","OtherIndian39Member","OtherIndian39Member","in-capmkt_OtherIndian39Member","nonnum:domainItemType","xbrli:item",null,"duration","true","true"]
["in-capmkt","OtherIndian40Member","OtherIndian40Member","in-capmkt_OtherIndian40Member","nonnum:domainItemType","xbrli:item",null,"duration","true","true"]
["in-capmkt","OtherIndian41Member","OtherIndian41Member","in-capmkt_OtherIndian41Member","nonnum:domainItemType","xbrli:item",null,"duration","true","true"]
["in-capmkt","OtherIndian42Member","OtherIndian42Member","in-capmkt_OtherIndian42Member","nonnum:domainItemType","xbrli:item",null,"duration","true","true"]
["in-capmkt","OtherIndian43Member","OtherIndian43Member","in-capmkt_OtherIndian43Member","nonnum:domainItemType","xbrli:item",null,"duration","true","true"]
["in-capmkt","OtherIndian44Member","OtherIndian44Member","in-capmkt_OtherIndian44Member","nonnum:domainItemType","xbrli:item",null,"duration","true","true"]
["in-capmkt","OtherIndian45Member","OtherIndian45Member","in-capmkt_OtherIndian45Member","nonnum:domainItemType","xbrli:item",null,"duration","true","true"]
["in-capmkt","OtherIndian46Member","OtherIndian46Member","in-capmkt_OtherIndian46Member","nonnum:domainItemType","xbrli:item",null,"duration","true","true"]
["in-capmkt","OtherIndian47Member","OtherIndian47Member","in-capmkt_OtherIndian47Member","nonnum:domainItemType","xbrli:item",null,"duration","true","true"]
["in-capmkt","OtherIndian48Member","OtherIndian48Member","in-capmkt_OtherIndian48Member","nonnum:domainItemType","xbrli:item",null,"duration","true","true"]
["in-capmkt","OtherIndian49Member","OtherIndian49Member","in-capmkt_OtherIndian49Member","nonnum:domainItemType","xbrli:item",null,"duration","true","true"]
["in-capmkt","OtherIndian50Member","OtherIndian50Member","in-capmkt_OtherIndian50Member","nonnum:domainItemType","xbrli:item",null,"duration","true","true"]
["in-capmkt","OtherForeign16Member","OtherForeign16Member","in-capmkt_OtherForeign16Member","nonnum:domainItemType","xbrli:item",null,"duration","true","true"]
["in-capmkt","OtherForeign17Member","OtherForeign17Member","in-capmkt_OtherForeign17Member","nonnum:domainItemType","xbrli:item",null,"duration","true","true"]
["in-capmkt","OtherForeign18Member","OtherForeign18Member","in-capmkt_OtherForeign18Member","nonnum:domainItemType","xbrli:item",null,"duration","true","true"]
["in-capmkt","OtherForeign19Member","OtherForeign19Member","in-capmkt_OtherForeign19Member","nonnum:domainItemType","xbrli:item",null,"duration","true","true"]
["in-capmkt","OtherForeign20Member","OtherForeign20Member","in-capmkt_OtherForeign20Member","nonnum:domainItemType","xbrli:item",null,"duration","true","true"]
["in-capmkt","OtherForeign21Member","OtherForeign21Member","in-capmkt_OtherForeign21Member","nonnum:domainItemType","xbrli:item",null,"duration","true","true"]
["in-capmkt","OtherForeign22Member","OtherForeign22Member","in-capmkt_OtherForeign22Member","nonnum:domainItemType","xbrli:item",null,"duration","true","true"]
["in-capmkt","OtherForeign23Member","OtherForeign23Member","in-capmkt_OtherForeign23Member","nonnum:domainItemType","xbrli:item",null,"duration","true","true"]
["in-capmkt","OtherForeign24Member","OtherForeign24Member","in-capmkt_OtherForeign24Member","nonnum:domainItemType","xbrli:item",null,"duration","true","true"]
["in-capmkt","OtherForeign25Member","OtherForeign25Member","in-capmkt_OtherForeign25Member","nonnum:domainItemType","xbrli:item",null,"duration","true","true"]
["in-capmkt","OtherForeign26Member","OtherForeign26Member","in-capmkt_OtherForeign26Member","nonnum:domainItemType","xbrli:item",null,"duration","true","true"]
["in-capmkt","OtherForeign27Member","OtherForeign27Member","in-capmkt_OtherForeign27Member","nonnum:domainItemType","xbrli:item",null,"duration","true","true"]
["in-capmkt","OtherForeign28Member","OtherForeign28Member","in-capmkt_OtherForeign28Member","nonnum:domainItemType","xbrli:item",null,"duration","true","true"]
["in-capmkt","OtherForeign29Member","OtherForeign29Member","in-capmkt_OtherForeign29Member","nonnum:domainItemType","xbrli:item",null,"duration","true","true"]
["in-capmkt","OtherForeign30Member","OtherForeign30Member","in-capmkt_OtherForeign30Member","nonnum:domainItemType","xbrli:item",null,"duration","true","true"]
["in-capmkt","OtherForeign31Member","OtherForeign31Member","in-capmkt_OtherForeign31Member","nonnum:domainItemType","xbrli:item",null,"duration","true","true"]
["in-capmkt","OtherForeign32Member","OtherForeign32Member","in-capmkt_OtherForeign32Member","nonnum:domainItemType","xbrli:item",null,"duration","true","true"]
["in-capmkt","OtherForeign33Member","OtherForeign33Member","in-capmkt_OtherForeign33Member","nonnum:domainItemType","xbrli:item",null,"duration","true","true"]
["in-capmkt","OtherForeign34Member","OtherForeign34Member","in-capmkt_OtherForeign34Member","nonnum:domainItemType","xbrli:item",null,"duration","true","true"]
["in-capmkt","OtherForeign35Member","OtherForeign35Member","in-capmkt_OtherForeign35Member","nonnum:domainItemType","xbrli:item",null,"duration","true","true"]
["in-capmkt","OtherForeign36Member","OtherForeign36Member","in-capmkt_OtherForeign36Member","nonnum:domainItemType","xbrli:item",null,"duration","true","true"]
["in-capmkt","OtherForeign37Member","OtherForeign37Member","in-capmkt_OtherForeign37Member","nonnum:domainItemType","xbrli:item",null,"duration","true","true"]
["in-capmkt","OtherForeign38Member","OtherForeign38Member","in-capmkt_OtherForeign38Member","nonnum:domainItemType","xbrli:item",null,"duration","true","true"]
["in-capmkt","OtherForeign39Member","OtherForeign39Member","in-capmkt_OtherForeign39Member","nonnum:domainItemType","xbrli:item",null,"duration","true","true"]
["in-capmkt","OtherForeign40Member","OtherForeign40Member","in-capmkt_OtherForeign40Member","nonnum:domainItemType","xbrli:item",null,"duration","true","true"]
["in-capmkt","OtherForeign41Member","OtherForeign41Member","in-capmkt_OtherForeign41Member","nonnum:domainItemType","xbrli:item",null,"duration","true","true"]
["in-capmkt","OtherForeign42Member","OtherForeign42Member","in-capmkt_OtherForeign42Member","nonnum:domainItemType","xbrli:item",null,"duration","true","true"]
["in-capmkt","OtherForeign43Member","OtherForeign43Member","in-capmkt_OtherForeign43Member","nonnum:domainItemType","xbrli:item",null,"duration","true","true"]
["in-capmkt","OtherForeign44Member","OtherForeign44Member","in-capmkt_OtherForeign44Member","nonnum:domainItemType","xbrli:item",null,"duration","true","true"]
["in-capmkt","OtherForeign45Member","OtherForeign45Member","in-capmkt_OtherForeign45Member","nonnum:domainItemType","xbrli:item",null,"duration","true","true"]
["in-capmkt","OtherForeign46Member","OtherForeign46Member","in-capmkt_OtherForeign46Member","nonnum:domainItemType","xbrli:item",null,"duration","true","true"]
["in-capmkt","OtherForeign47Member","OtherForeign47Member","in-capmkt_OtherForeign47Member","nonnum:domainItemType","xbrli:item",null,"duration","true","true"]
["in-capmkt","OtherForeign48Member","OtherForeign48Member","in-capmkt_OtherForeign48Member","nonnum:domainItemType","xbrli:item",null,"duration","true","true"]
["in-capmkt","OtherForeign49Member","OtherForeign49Member","in-capmkt_OtherForeign49Member","nonnum:domainItemType","xbrli:item",null,"duration","true","true"]
["in-capmkt","OtherForeign50Member","OtherForeign50Member","in-capmkt_OtherForeign50Member","nonnum:domainItemType","xbrli:item",null,"duration","true","true"]
["in-capmkt","OtherInstitutions16Member","OtherInstitutions16Member","in-capmkt_OtherInstitutions16Member","nonnum:domainItemType","xbrli:item",null,"duration","true","true"]
["in-capmkt","OtherInstitutions17Member","OtherInstitutions17Member","in-capmkt_OtherInstitutions17Member","nonnum:domainItemType","xbrli:item",null,"duration","true","true"]
["in-capmkt","OtherInstitutions18Member","OtherInstitutions18Member","in-capmkt_OtherInstitutions18Member","nonnum:domainItemType","xbrli:item",null,"duration","true","true"]
["in-capmkt","OtherInstitutions19Member","OtherInstitutions19Member","in-capmkt_OtherInstitutions19Member","nonnum:domainItemType","xbrli:item",null,"duration","true","true"]
["in-capmkt","OtherInstitutions20Member","OtherInstitutions20Member","in-capmkt_OtherInstitutions20Member","nonnum:domainItemType","xbrli:item",null,"duration","true","true"]
["in-capmkt","OtherInstitutions21Member","OtherInstitutions21Member","in-capmkt_OtherInstitutions21Member","nonnum:domainItemType","xbrli:item",null,"duration","true","true"]
["in-capmkt","OtherInstitutions22Member","OtherInstitutions22Member","in-capmkt_OtherInstitutions22Member","nonnum:domainItemType","xbrli:item",null,"duration","true","true"]
["in-capmkt","OtherInstitutions23Member","OtherInstitutions23Member","in-capmkt_OtherInstitutions23Member","nonnum:domainItemType","xbrli:item",null,"duration","true","true"]
["in-capmkt","OtherInstitutions24Member","OtherInstitutions24Member","in-capmkt_OtherInstitutions24Member","nonnum:domainItemType","xbrli:item",null,"duration","true","true"]
["in-capmkt","OtherInstitutions25Member","OtherInstitutions25Member","in-capmkt_OtherInstitutions25Member","nonnum:domainItemType","xbrli:item",null,"duration","true","true"]
["in-capmkt","OtherInstitutions26Member","OtherInstitutions26Member","in-capmkt_OtherInstitutions26Member","nonnum:domainItemType","xbrli:item",null,"duration","true","true"]
["in-capmkt","OtherInstitutions27Member","OtherInstitutions27Member","in-capmkt_OtherInstitutions27Member","nonnum:domainItemType","xbrli:item",null,"duration","true","true"]
["in-capmkt","OtherInstitutions28Member","OtherInstitutions28Member","in-capmkt_OtherInstitutions28Member","nonnum:domainItemType","xbrli:item",null,"duration","true","true"]
["in-capmkt","OtherInstitutions29Member","OtherInstitutions29Member","in-capmkt_OtherInstitutions29Member","nonnum:domainItemType","xbrli:item",null,"duration","true","true"]
["in-capmkt","OtherInstitutions30Member","OtherInstitutions30Member","in-capmkt_OtherInstitutions30Member","nonnum:domainItemType","xbrli:item",null,"duration","true","true"]
["in-capmkt","OtherInstitutions31Member","OtherInstitutions31Member","in-capmkt_OtherInstitutions31Member","nonnum:domainItemType","xbrli:item",null,"duration","true","true"]
["in-capmkt","OtherInstitutions32Member","OtherInstitutions32Member","in-capmkt_OtherInstitutions32Member","nonnum:domainItemType","xbrli:item",null,"duration","true","true"]
["in-capmkt","OtherInstitutions33Member","OtherInstitutions33Member","in-capmkt_OtherInstitutions33Member","nonnum:domainItemType","xbrli:item",null,"duration","true","true"]
["in-capmkt","OtherInstitutions34Member","OtherInstitutions34Member","in-capmkt_OtherInstitutions34Member","nonnum:domainItemType","xbrli:item",null,"duration","true","true"]
["in-capmkt","OtherInstitutions35Member","OtherInstitutions35Member","in-capmkt_OtherInstitutions35Member","nonnum:domainItemType","xbrli:item",null,"duration","true","true"]
["in-capmkt","OtherInstitutions36Member","OtherInstitutions36Member","in-capmkt_OtherInstitutions36Member","nonnum:domainItemType","xbrli:item",null,"duration","true","true"]
["in-capmkt","OtherInstitutions37Member","OtherInstitutions37Member","in-capmkt_OtherInstitutions37Member","nonnum:domainItemType","xbrli:item",null,"duration","true","true"]
["in-capmkt","OtherInstitutions38Member","OtherInstitutions38Member","in-capmkt_OtherInstitutions38Member","nonnum:domainItemType","xbrli:item",null,"duration","true","true"]
["in-capmkt","OtherInstitutions39Member","OtherInstitutions39Member","in-capmkt_OtherInstitutions39Member","nonnum:domainItemType","xbrli:item",null,"duration","true","true"]
["in-capmkt","OtherInstitutions40Member","OtherInstitutions40Member","in-capmkt_OtherInstitutions40Member","nonnum:domainItemType","xbrli:item",null,"duration","true","true"]
["in-capmkt","OtherInstitutions41Member","OtherInstitutions41Member","in-capmkt_OtherInstitutions41Member","nonnum:domainItemType","xbrli:item",null,"duration","true","true"]
["in-capmkt","OtherInstitutions42Member","OtherInstitutions42Member","in-capmkt_OtherInstitutions42Member","nonnum:domainItemType","xbrli:item",null,"duration","true","true"]
["in-capmkt","OtherInstitutions43Member","OtherInstitutions43Member","in-capmkt_OtherInstitutions43Member","nonnum:domainItemType","xbrli:item",null,"duration","true","true"]
["in-capmkt","OtherInstitutions44Member","OtherInstitutions44Member","in-capmkt_OtherInstitutions44Member","nonnum:domainItemType","xbrli:item",null,"duration","true","true"]
["in-capmkt","OtherInstitutions45Member","OtherInstitutions45Member","in-capmkt_OtherInstitutions45Member","nonnum:domainItemType","xbrli:item",null,"duration","true","true"]
["in-capmkt","OtherInstitutions46Member","OtherInstitutions46Member","in-capmkt_OtherInstitutions46Member","nonnum:domainItemType","xbrli:item",null,"duration","true","true"]
["in-capmkt","OtherInstitutions47Member","OtherInstitutions47Member","in-capmkt_OtherInstitutions47Member","nonnum:domainItemType","xbrli:item",null,"duration","true","true"]
["in-capmkt","OtherInstitutions48Member","OtherInstitutions48Member","in-capmkt_OtherInstitutions48Member","nonnum:domainItemType","xbrli:item",null,"duration","true","true"]
["in-capmkt","OtherInstitutions49Member","OtherInstitutions49Member","in-capmkt_OtherInstitutions49Member","nonnum:domainItemType","xbrli:item",null,"duration","true","true"]
["in-capmkt","OtherInstitutions50Member","OtherInstitutions50Member","in-capmkt_OtherInstitutions50Member","nonnum:domainItemType","xbrli:item",null,"duration","true","true"]
["in-capmkt","OtherNonInstitutions16Member","OtherNonInstitutions16Member","in-capmkt_OtherNonInstitutions16Member","nonnum:domainItemType","xbrli:item",null,"duration","true","true"]
["in-capmkt","OtherNonInstitutions17Member","OtherNonInstitutions17Member","in-capmkt_OtherNonInstitutions17Member","nonnum:domainItemType","xbrli:item",null,"duration","true","true"]
["in-capmkt","OtherNonInstitutions18Member","OtherNonInstitutions18Member","in-capmkt_OtherNonInstitutions18Member","nonnum:domainItemType","xbrli:item",null,"duration","true","true"]
["in-capmkt","OtherNonInstitutions19Member","OtherNonInstitutions19Member","in-capmkt_OtherNonInstitutions19Member","nonnum:domainItemType","xbrli:item",null,"duration","true","true"]
["in-capmkt","OtherNonInstitutions20Member","OtherNonInstitutions20Member","in-capmkt_OtherNonInstitutions20Member","nonnum:domainItemType","xbrli:item",null,"duration","true","true"]
["in-capmkt","OtherNonInstitutions21Member","OtherNonInstitutions21Member","in-capmkt_OtherNonInstitutions21Member","nonnum:domainItemType","xbrli:item",null,"duration","true","true"]
["in-capmkt","OtherNonInstitutions22Member","OtherNonInstitutions22Member","in-capmkt_OtherNonInstitutions22Member","nonnum:domainItemType","xbrli:item",null,"duration","true","true"]
["in-capmkt","OtherNonInstitutions23Member","OtherNonInstitutions23Member","in-capmkt_OtherNonInstitutions23Member","nonnum:domainItemType","xbrli:item",null,"duration","true","true"]
["in-capmkt","OtherNonInstitutions24Member","OtherNonInstitutions24Member","in-capmkt_OtherNonInstitutions24Member","nonnum:domainItemType","xbrli:item",null,"duration","true","true"]
["in-capmkt","OtherNonInstitutions25Member","OtherNonInstitutions25Member","in-capmkt_OtherNonInstitutions25Member","nonnum:domainItemType","xbrli:item",null,"duration","true","true"]
["in-capmkt","OtherNonInstitutions26Member","OtherNonInstitutions26Member","in-capmkt_OtherNonInstitutions26Member","nonnum:domainItemType","xbrli:item",null,"duration","true","true"]
["in-capmkt","OtherNonInstitutions27Member","OtherNonInstitutions27Member","in-capmkt_OtherNonInstitutions27Member","nonnum:domainItemType","xbrli:item",null,"duration","true","true"]
["in-capmkt","OtherNonInstitutions28Member","OtherNonInstitutions28Member","in-capmkt_OtherNonInstitutions28Member","nonnum:domainItemType","xbrli:item",null,"duration","true","true"]
["in-capmkt","OtherNonInstitutions29Member","OtherNonInstitutions29Member","in-capmkt_OtherNonInstitutions29Member","nonnum:domainItemType","xbrli:item",null,"duration","true","true"]
["in-capmkt","OtherNonInstitutions30Member","OtherNonInstitutions30Member","in-capmkt_OtherNonInstitutions30Member","nonnum:domainItemType","xbrli:item",null,"duration","true","true"]
["in-capmkt","OtherNonInstitutions31Member","OtherNonInstitutions31Member","in-capmkt_OtherNonInstitutions31Member","nonnum:domainItemType","xbrli:item",null,"duration","true","true"]
["in-capmkt","OtherNonInstitutions32Member","OtherNonInstitutions32Member","in-capmkt_OtherNonInstitutions32Member","nonnum:domainItemType","xbrli:item",null,"duration","true","true"]
["in-capmkt","OtherNonInstitutions33Member","OtherNonInstitutions33Member","in-capmkt_OtherNonInstitutions33Member","nonnum:domainItemType","xbrli:item",null,"duration","true","true"]
["in-capmkt","OtherNonInstitutions34Member","OtherNonInstitutions34Member","in-capmkt_OtherNonInstitutions34Member","nonnum:domainItemType","xbrli:item",null,"duration","true","true"]
["in-capmkt","OtherNonInstitutions35Member","OtherNonInstitutions35Member","in-capmkt_OtherNonInstitutions35Member","nonnum:domainItemType","xbrli:item",null,"duration","true","true"]
["in-capmkt","OtherNonInstitutions36Member","OtherNonInstitutions36Member","in-capmkt_OtherNonInstitutions36Member","nonnum:domainItemType","xbrli:item",null,"duration","true","true"]
["in-capmkt","OtherNonInstitutions37Member","OtherNonInstitutions37Member","in-capmkt_OtherNonInstitutions37Member","nonnum:domainItemType","xbrli:item",null,"duration","true","true"]
["in-capmkt","OtherNonInstitutions38Member","OtherNonInstitutions38Member","in-capmkt_OtherNonInstitutions38Member","nonnum:domainItemType","xbrli:item",null,"duration","true","true"]
["in-capmkt","OtherNonInstitutions39Member","OtherNonInstitutions39Member","in-capmkt_OtherNonInstitutions39Member","nonnum:domainItemType","xbrli:item",null,"duration","true","true"]
["in-capmkt","OtherNonInstitutions40Member","OtherNonInstitutions40Member","in-capmkt_OtherNonInstitutions40Member","nonnum:domainItemType","xbrli:item",null,"duration","true","true"]
["in-capmkt","OtherNonInstitutions41Member","OtherNonInstitutions41Member","in-capmkt_OtherNonInstitutions41Member","nonnum:domainItemType","xbrli:item",null,"duration","true","true"]
["in-capmkt","OtherNonInstitutions42Member","OtherNonInstitutions42Member","in-capmkt_OtherNonInstitutions42Member","nonnum:domainItemType","xbrli:item",null,"duration","true","true"]
["in-capmkt","OtherNonInstitutions43Member","OtherNonInstitutions43Member","in-capmkt_OtherNonInstitutions43Member","nonnum:domainItemType","xbrli:item",null,"duration","true","true"]
["in-capmkt","OtherNonInstitutions44Member","OtherNonInstitutions44Member","in-capmkt_OtherNonInstitutions44Member","nonnum:domainItemType","xbrli:item",null,"duration","true","true"]
["in-capmkt","OtherNonInstitutions45Member","OtherNonInstitutions45Member","in-capmkt_OtherNonInstitutions45Member","nonnum:domainItemType","xbrli:item",null,"duration","true","true"]
["in-capmkt","OtherNonInstitutions46Member","OtherNonInstitutions46Member","in-capmkt_OtherNonInstitutions46Member","nonnum:domainItemType","xbrli:item",null,"duration","true","true"]
["in-capmkt","OtherNonInstitutions47Member","OtherNonInstitutions47Member","in-capmkt_OtherNonInstitutions47Member","nonnum:domainItemType","xbrli:item",null,"duration","true","true"]
["in-capmkt","OtherNonInstitutions48Member","OtherNonInstitutions48Member","in-capmkt_OtherNonInstitutions48Member","nonnum:domainItemType","xbrli:item",null,"duration","true","true"]
["in-capmkt","OtherNonInstitutions49Member","OtherNonInstitutions49Member","in-capmkt_OtherNonInstitutions49Member","nonnum:domainItemType","xbrli:item",null,"duration","true","true"]
["in-capmkt","OtherNonInstitutions50Member","OtherNonInstitutions50Member","in-capmkt_OtherNonInstitutions50Member","nonnum:domainItemType","xbrli:item",null,"duration","true","true"]
["in-capmkt","DisclosureOfUnitHoldingPatternTableNotAll","DisclosureOfUnitHoldingPatternTableNotAll","in-capmkt_DisclosureOfUnitHoldingPatternTableNotAll","xbrli:stringItemType","xbrldt:hypercubeItem",null,"duration","true","true"]
["in-capmkt","ProvisionForTaxesAbstract","ProvisionForTaxesAbstract","in-capmkt_ProvisionForTaxesAbstract","xbrli:stringItemType","xbrli:item",null,"instant","false","true"]
["in-capmkt","CurrentLiabilitiesAndProvisions","CurrentLiabilitiesAndProvisions","in-capmkt_CurrentLiabilitiesAndProvisions","xbrli:monetaryItemType","xbrli:item",null,"instant","true","true"]
["in-capmkt","InvestmentsPolicyholders","InvestmentsPolicyholders","in-capmkt_InvestmentsPolicyholders","xbrli:monetaryItemType","xbrli:item",null,"instant","true","true"]
["in-capmkt","AssetsHeldToCoverLinkLiabilities","AssetsHeldToCoverLinkLiabilities","in-capmkt_AssetsHeldToCoverLinkLiabilities","xbrli:monetaryItemType","xbrli:item",null,"instant","true","true"]
["in-capmkt","Loans","Loans","in-capmkt_Loans","xbrli:monetaryItemType","xbrli:item",null,"instant","true","true"]
["in-capmkt","FixedAssets","FixedAssets","in-capmkt_FixedAssets","xbrli:monetaryItemType","xbrli:item",null,"instant","false","true"]
["in-capmkt","DeferredTaxAsset","DeferredTaxAsset","in-capmkt_DeferredTaxAsset","xbrli:monetaryItemType","xbrli:item",null,"instant","true","true"]
["in-capmkt","NetCurrentAssetsAbstract","NetCurrentAssetsAbstract","in-capmkt_NetCurrentAssetsAbstract","xbrli:stringItemType","xbrli:item",null,"duration","true","true"]
["in-capmkt","CurrentAssetsAbstract","CurrentAssetsAbstract","in-capmkt_CurrentAssetsAbstract","xbrli:stringItemType","xbrli:item",null,"duration","true","true"]
["in-capmkt","CashAndBankBalances","CashAndBankBalances","in-capmkt_CashAndBankBalances","xbrli:monetaryItemType","xbrli:item",null,"instant","true","true"]
["in-capmkt","AdvancesAndOtherAssets","AdvancesAndOtherAssets","in-capmkt_AdvancesAndOtherAssets","xbrli:monetaryItemType","xbrli:item",null,"instant","true","true"]
["in-capmkt","CurrentAssets","CurrentAssets","in-capmkt_CurrentAssets","xbrli:monetaryItemType","xbrli:item",null,"instant","false","true"]
["in-capmkt","CurrentLiabilitiesAbstract","CurrentLiabilitiesAbstract","in-capmkt_CurrentLiabilitiesAbstract","xbrli:stringItemType","xbrli:item",null,"duration","true","true"]
["in-capmkt","CurrentLiabilities","CurrentLiabilities","in-capmkt_CurrentLiabilities","xbrli:monetaryItemType","xbrli:item",null,"instant","false","true"]
["in-capmkt","Provisions","Provisions","in-capmkt_Provisions","xbrli:monetaryItemType","xbrli:item",null,"instant","false","true"]
["in-capmkt","CurrentLiabilitiesAndProvisions","CurrentLiabilitiesAndProvisions","in-capmkt_CurrentLiabilitiesAndProvisions","xbrli:monetaryItemType","xbrli:item",null,"duration","true","true"]
["in-capmkt","NetCurrentAssets","NetCurrentAssets","in-capmkt_NetCurrentAssets","xbrli:monetaryItemType","xbrli:item",null,"instant","false","true"]
["in-capmkt","MiscellaneousExpenditureToTheExtentNotWrittenOffOrAdjusted","MiscellaneousExpenditureToTheExtentNotWrittenOffOrAdjusted","in-capmkt_MiscellaneousExpenditureToTheExtentNotWrittenOffOrAdjusted","xbrli:monetaryItemType","xbrli:item",null,"instant","false","true"]
["in-capmkt","DebitBalanceInProfitAndLossAccountShareholdersAccount","DebitBalanceInProfitAndLossAccountShareholdersAccount","in-capmkt_DebitBalanceInProfitAndLossAccountShareholdersAccount","xbrli:monetaryItemType","xbrli:item",null,"instant","false","true"]
["in-capmkt","ApplicationOfFunds","ApplicationOfFunds","in-capmkt_ApplicationOfFunds","xbrli:monetaryItemType","xbrli:item",null,"instant","false","true"]
["in-capmkt","ContigentLiabilities","ContigentLiabilities","in-capmkt_ContigentLiabilities","xbrli:monetaryItemType","xbrli:item",null,"instant","false","true"]
["in-capmkt","DisclosureOfNotesToBalanceSheetExplanatoryTextBlock","DisclosureOfNotesToBalanceSheetExplanatoryTextBlock","in-capmkt_DisclosureOfNotesToBalanceSheetExplanatoryTextBlock","nonnum:textBlockItemType","xbrli:item",null,"instant","false","true"]
["Definition",null,"[9000] Shareholders account other income"]
["prefix","label","name","id","type","substitutionGroup","balance","periodType","abstract","nillable"]
["in-capmkt","Details of shareholders account other income [Abstract]","DetailsOfShareholdersAccountOtherIncomeAbstract","in-capmkt_DetailsOfShareholdersAccountOtherIncomeAbstract","xbrli:stringItemType","xbrli:item","","duration","true","true"]
["in-capmkt","Details of shareholders account other income [Table]","DetailsOfShareholdersAccountOtherIncomeTable","in-capmkt_DetailsOfShareholdersAccountOtherIncomeTable","xbrli:stringItemType","xbrldt:hypercubeItem","","duration","true","true"]
["in-capmkt","Details of shareholders account other income [Axis]","DetailsOfShareholdersAccountOtherIncomeAxis","in-capmkt_DetailsOfShareholdersAccountOtherIncomeAxis","xbrli:stringItemType","xbrldt:dimensionItem","","duration",true,"true"]
["in-capmkt","Shareholders account other income [Member]","ShareholdersAccountOtherIncomeMember","in-capmkt_ShareholdersAccountOtherIncomeMember","nonnum:domainItemType","xbrli:item","","duration","true","true"]
["in-capmkt","Shareholders account other income 1 [Member]","ShareholdersAccountOtherIncome1Member","in-capmkt_ShareholdersAccountOtherIncome1Member","nonnum:domainItemType","xbrli:item","","duration","true","true"]
["in-capmkt","Shareholders account other income 2 [Member]","ShareholdersAccountOtherIncome2Member","in-capmkt_ShareholdersAccountOtherIncome2Member","nonnum:domainItemType","xbrli:item","","duration","true","true"]
["in-capmkt","Shareholders account other income 3 [Member]","ShareholdersAccountOtherIncome3Member","in-capmkt_ShareholdersAccountOtherIncome3Member","nonnum:domainItemType","xbrli:item","","duration","true","true"]
["in-capmkt","Shareholders account other income 4 [Member]","ShareholdersAccountOtherIncome4Member","in-capmkt_ShareholdersAccountOtherIncome4Member","nonnum:domainItemType","xbrli:item","","duration","true","true"]
["in-capmkt","Shareholders account other income 5 [Member]","ShareholdersAccountOtherIncome5Member","in-capmkt_ShareholdersAccountOtherIncome5Member","nonnum:domainItemType","xbrli:item","","duration","true","true"]
["in-capmkt","Shareholders account other income 6 [Member]","ShareholdersAccountOtherIncome6Member","in-capmkt_ShareholdersAccountOtherIncome6Member","nonnum:domainItemType","xbrli:item","","duration","true","true"]
["in-capmkt","Shareholders account other income 7 [Member]","ShareholdersAccountOtherIncome7Member","in-capmkt_ShareholdersAccountOtherIncome7Member","nonnum:domainItemType","xbrli:item","","duration","true","true"]
["in-capmkt","Shareholders account other income 8 [Member]","ShareholdersAccountOtherIncome8Member","in-capmkt_ShareholdersAccountOtherIncome8Member","nonnum:domainItemType","xbrli:item","","duration","true","true"]
["in-capmkt","Shareholders account other income 9 [Member]","ShareholdersAccountOtherIncome9Member","in-capmkt_ShareholdersAccountOtherIncome9Member","nonnum:domainItemType","xbrli:item","","duration","true","true"]
["in-capmkt","Shareholders account other income 10 [Member]","ShareholdersAccountOtherIncome10Member","in-capmkt_ShareholdersAccountOtherIncome10Member","nonnum:domainItemType","xbrli:item","","duration","true","true"]
["in-capmkt","Details of shareholders account other income [Line items]","DetailsOfShareholdersAccountOtherIncomeLineItems","in-capmkt_DetailsOfShareholdersAccountOtherIncomeLineItems","xbrli:stringItemType","xbrli:item","","duration","true","true"]
["in-capmkt","Description of shareholders account other income","DescriptionOfShareholdersAccountOtherIncome","in-capmkt_DescriptionOfShareholdersAccountOtherIncome","xbrli:stringItemType","xbrli:item","","duration","false","true"]
["in-capmkt","Shareholders account other income","ShareholdersAccountOtherIncome","in-capmkt_ShareholdersAccountOtherIncome","xbrli:monetaryItemType","xbrli:item","credit","duration","false","true"]
[""]
[""]
["LinkRole",null,"http://www.bseindia.com/xbrl/insurance/role/in-capmkt-roles/GeneralInformationAboutTheCompany_5000"]
["Definition",null,"[5000] General information about the company"]
["prefix","label","name","id","type","substitutionGroup","balance","periodType","abstract","nillable"]
["in-capmkt","General information about the company [Abstract]","GeneralInformationAboutTheCompanyAbstract","in-capmkt_GeneralInformationAboutTheCompanyAbstract","xbrli:stringItemType","xbrli:item","","duration","true","true"]
["in-capmkt","Scrip code","ScripCode","in-capmkt_BSEScripCode","in-capmkt-types:ScripCode","xbrli:item","","instant","false","true","This is a mandatory field. Should be valid SCRIP CODE  as per BSE Scrip Code Format. "]
["in-capmkt"," NSE Symbol","NSESymbol","in-capmkt_NSESymbol","in-capmkt-types:Symbol","xbrli:item","","instant","false","true","NSESymbol Must be Length of 12."]
["in-capmkt","MSEI symbol","MSEISymbol","in-capmkt_MSEISymbol","xbrli:stringItemType","xbrli:item","","instant","false","true"]
["in-capmkt","Name of company","NameOfTheCompany","in-capmkt_NameOfTheCompany","xbrli:stringItemType","xbrli:item","","instant","false","true"]
["in-capmkt","ISIN","ISIN","in-capmkt_ISIN","in-capmkt-types:ISINNumber","xbrli:item","","instant","false","true"]
["in-capmkt","Description of presentation currency","DescriptionOfPresentationCurrency","in-capmkt_DescriptionOfPresentationCurrency","xbrli:stringItemType","xbrli:item","","instant","false","true"]
["in-capmkt","Level of rounding used in financial results","LevelOfRoundingUsedInFinancialStatements","in-capmkt_LevelOfRoundingUsedInFinancialStatements","in-capmkt-types:LevelOfRounding","xbrli:item","","instant","false","true"]
["in-capmkt","Date of start of financial year","Dateofstartoffinancialyear","in-capmkt_Dateofstartoffinancialyear","xbrli:dateItemType",null,null,"instant"]
["in-capmkt","Date of end of financial year","Dateofendoffinancialyear","in-capmkt_Dateofendoffinancialyear","xbrli:dateItemType",null,null,"instant"]
["in-capmkt","Date of board meeting when results were approved","Dateofboardmeetingwhenresultswereapproved","in-capmkt_Dateofboardmeetingwhenresultswereapproved","xbrli:dateItemType",null,null,"instant"]
["in-capmkt","Date on which prior intimation of the meeting for considering financial results was informed to the exchange","Dateonwhichpriorintimationofthemeetingforconsideringfinancialresultswasinformedtotheexchange","in-capmkt_Dateonwhichpriorintimationofthemeetingforconsideringfinancialresultswasinformedtotheexchange","xbrli:dateItemType",null,null,"instant",null,null,"\"Date on which prior intimation of the meeting for considering financial results was informed to the exchange\" must be on or before \"Date of board meeting when results were approved\"."]
["in-capmkt","Reporting Quarter","ReportingQuarter","in-capmkt_ReportingQuarter","xbrli:stringItemType",null,null,"instant"]
["in-capmkt","Nature of report standalone or consolidated","Natureofreportstandaloneorconsolidated","in-capmkt_Natureofreportstandaloneorconsolidated","xbrli:stringItemType",null,null,"instant"]
["in-capmkt","Whether results are audited or unaudited","Whetherresultsareauditedorunaudited","in-capmkt_Whetherresultsareauditedorunaudited","xbrli:stringItemType",null,null,"instant"]
["in-capmkt","Declaration of unmodified opinion or statement on impact of audit qualification","Declarationofunmodifiedopinionorstatementonimpactofauditqualification","in-capmkt_Declarationofunmodifiedopinionorstatementonimpactofauditqualification","xbrli:stringItemType",null,null,"instant"]
["in-capmkt","Start date and time of board meeting","StartTimeOfBoardMeeting","in-capmkt_StartTimeOfBoardMeeting","xbrli:timeItemType","xbrli:item","","instant","true"]
["in-capmkt","End date and time of board meeting","EndTimeOfBoardMeeting","in-capmkt_EndTimeOfBoardMeeting","xbrli:timeItemType","xbrli:item","","instant","true","\"End time of board meeting\" must be greater than \"Start time of board meeting\""]
["in-capmkt","Type Of Insurance","TypeOfInsurance","in-capmkt_TypeOfInsurance","xbrli:stringItemType","xbrli:item",null,"instant"]
["in-capmkt","Start date of board meeting","DateOfStartOfBoardMeeting","in-capmkt_DateOfStartOfBoardMeeting","xbrli:dateItemType",null,null,"instant",null,"Start date of board meeting would be the next quarter then the reporting quarter (e.g. if results are submitted for June, quarter start time and end time would be from July)."]
["in-capmkt","End date of board meeting","DateOfEndOfBoardMeeting","in-capmkt_DateOfEndOfBoardMeeting","xbrli:dateItemType",null,null,"instant",null,"End date of board meeting must be after or same day of start date of bord meeting and would be the next quarter then the reporting quarter (e.g. if results are submitted for June, quarter start time and end time would be from July) and shall not be earlier than Date of Prior Intimation."]
["in-capmkt","Date of start of reporting period","DateOfStartOfReportingPeriod","in-capmkt_DateOfStartOfReportingPeriod","xbrli:dateItemType",null,null,"instant"]
["in-capmkt","Date of end of reporting period","DateOfEndOfReportingPeriod","in-capmkt_DateOfEndOfReportingPeriod","xbrli:dateItemType",null,null,"instant"]
["prefix","label","name","id","type","substitutionGroup","balance","periodType"]
["in-capmkt","Share capital","Sharecapital","in-capmkt_Sharecapital","xbrli:monetaryItemType","xbrli:item","","duration"]
["in-capmkt","Reserves and surplus","Reservesandsurplus","in-capmkt_Reservesandsurplus","xbrli:monetaryItemType","xbrli:item",null,"duration"]
["in-capmkt","Policyholders funds","Policyholdersfunds","in-capmkt_Policyholdersfunds","xbrli:monetaryItemType","xbrli:item",null,"duration"]
["in-capmkt","Shareholders funds","Shareholdersfunds","in-capmkt_Shareholdersfunds","xbrli:monetaryItemType","xbrli:item",null,"duration"]
["in-capmkt","Borrowings","Borrowings","in-capmkt_Borrowings","xbrli:monetaryItemType","xbrli:item",null,"duration"]
["in-capmkt","Minority Interest","MinorityInterest","in-capmkt_MinorityInterest","xbrli:monetaryItemType","xbrli:item",null,"duration"]
["in-capmkt","Total Sources of Funds","TotalSourcesofFunds","in-capmkt_TotalSourcesofFunds","xbrli:monetaryItemType","xbrli:item",null,"duration"]
["in-capmkt","Investments shareholders","Investmentsshareholders","in-capmkt_Investmentsshareholders","xbrli:monetaryItemType","xbrli:item",null,"duration"]
["in-capmkt","Investments policyholders","Investmentspolicyholders","in-capmkt_Investmentspolicyholders","xbrli:monetaryItemType","xbrli:item",null,"duration"]
["in-capmkt","Loans","Loans","in-capmkt_Loans","xbrli:monetaryItemType","xbrli:item",null,"duration"]
["in-capmkt","Fixed assets","Fixedassets","in-capmkt_Fixed assets","xbrli:monetaryItemType","xbrli:item",null,"duration"]
["in-capmkt","Deferred Tax Asset","DeferredTaxAsset","in-capmkt_DeferredTaxAsset","xbrli:monetaryItemType","xbrli:item",null,"duration"]
["in-capmkt","Current assets","Currentassets","in-capmkt_Currentassets","xbrli:monetaryItemType","xbrli:item",null,"duration"]
["in-capmkt","Cash and bank balances","Cashandbankbalances","in-capmkt_Cashandbankbalances","xbrli:monetaryItemType","xbrli:item",null,"duration"]
["in-capmkt","Advances and other assets","Advancesandotherassets","in-capmkt_Advancesandotherassets","xbrli:monetaryItemType","xbrli:item",null,"duration"]
["in-capmkt","Sub-total (a)","Subtotal1","in-capmkt_Sub-total(a)","xbrli:monetaryItemType","xbrli:item",null,"duration"]
["in-capmkt","Current liabilities","Currentliabilities","in-capmkt_Currentliabilities","xbrli:monetaryItemType","xbrli:item",null,"duration"]
["in-capmkt","Provisions","Provisions","in-capmkt_Provisions","xbrli:monetaryItemType","xbrli:item",null,"duration"]
["in-capmkt","Sub-total (b)","Subtotal2","in-capmkt_Sub-total(a)","xbrli:monetaryItemType","xbrli:item",null,"duration"]
["in-capmkt","Net current assets (c) = (a – b)","Netcurrentassets","in-capmkt_Netcurrentassets","xbrli:monetaryItemType","xbrli:item",null,"duration"]
["in-capmkt","Miscellaneous expenditure (to the extent not written off or adjusted)","Miscellaneousexpenditure","in-capmkt_Miscellaneousexpenditure","xbrli:monetaryItemType","xbrli:item",null,"duration"]
["in-capmkt","Debit balance in profit & loss account (shareholders’ account)","Debitbalanceinprofitlossaccount","in-capmkt_Debitbalanceinprofitlossaccount","xbrli:monetaryItemType","xbrli:item",null,"duration"]
["in-capmkt","Total","Total","in-capmkt_Total","xbrli:monetaryItemType","xbrli:item",null,"duration"]
["in-capmkt","Contigent Liabilities","ContigentLiabilities","in-capmkt_ContigentLiabilities","xbrli:monetaryItemType","xbrli:item",null,"duration"]
[]
["in-capmkt","Whether accounts are audited or unaudited","Whetheraccountsareauditedorunaudited","in-capmkt_Whetheraccountsareauditedorunaudited","xbrli:stringItemType","xbrli:item",null,"duration"]
["in-capmkt","Opening Balance and Approproations from PAT (Net)","OpeningBalanceandApproproationsfromPAT","in-capmkt_OpeningBalanceandApproproationsfromPAT","xbrli:monetaryItemType","xbrli:item",null,"duration"]
["in-capmkt","Net NPAs","NetNPAs","in-capmkt_NetNPAs","xbrli:monetaryItemType","xbrli:item",null,"duration"]
["in-capmkt","Percentage of net NPAs","PercentageofnetNPAs","in-capmkt_PercentageofnetNPAs","num:percentItemType","xbrli:item",null,"duration"]
["in-capmkt","No of investor complaints pending at the beginning of the period","Noofinvestorcomplaintspendingatthebeginningoftheperiod","in-capmkt_Noofinvestorcomplaintspendingatthebeginningoftheperiod","xbrli:monetaryItemType","xbrli:item",null,"duration"]
["in-capmkt","No of investor complaints during the period","Noofinvestorcomplaintsduringtheperiod","in-capmkt_Noofinvestorcomplaintsduringtheperiod","xbrli:monetaryItemType","xbrli:item",null,"duration"]
["in-capmkt","No of investor complaints disposed off during the period","Noofinvestorcomplaintsdisposedoffduringtheperiod","in-capmkt_Noofinvestorcomplaintsdisposedoffduringtheperiod","xbrli:monetaryItemType","xbrli:item",null,"duration"]
["in-capmkt","No of investor complaints remaining unresolved at the end of the period","Noofinvestorcomplaintsremainingunresolvedattheendoftheperiod","in-capmkt_NotesFormatforfinancialresultsbygeneralinsurancecompaniesfiledwithstockexchanges","xbrli:monetaryItemType","xbrli:item",null,"duration"]
["in-capmkt","Notes Format for financial results by general insurance companies filed with stock exchanges","NotesFormatforfinancialresultsbygeneralinsurancecompaniesfiledwithstockexchanges","in-capmkt_Noofinvestorcomplaintsremainingunresolvedattheendoftheperiod","xbrli:stringItemType","xbrli:item",null,"duration"]
["in-capmkt","Notes to the Balance Sheet","NotestotheBalanceSheet","in-capmkt_NotestotheBalanceSheet","nonnum:textBlockItemType","xbrli:item",null,"duration"]
["in-capmkt","ShareApplicationMoneyReceivedPendingAllotmentOfShares","ShareApplicationMoneyReceivedPendingAllotmentOfShares","in-capmkt_ShareApplicationMoneyReceivedPendingAllotmentOfShares","xbrli:monetaryItemType","xbrli:item","credit","instant"]
["in-capmkt","SegmentTechnicalLiabilitiesUnexpiredClaimsReservesIncludingIBNRAndIBNERAxis","SegmentTechnicalLiabilitiesUnexpiredClaimsReservesIncludingIBNRAndIBNERAxis","in-capmkt_SegmentTechnicalLiabilitiesUnexpiredClaimsReservesIncludingIBNRAndIBNERAxis","xbrli:stringItemType","xbrldt:dimensionItem",null,"duration"]
["in-capmkt","DisclosuresRelatingToSegmentTechnicalUnexpiredClaimsReservesIncludingIBNRAndIBNERLineItems","DisclosuresRelatingToSegmentTechnicalUnexpiredClaimsReservesIncludingIBNRAndIBNERLineItems","in-capmkt_DisclosuresRelatingToSegmentTechnicalUnexpiredClaimsReservesIncludingIBNRAndIBNERLineItems","xbrli:stringItemType","xbrli:item",null,"duration"]
["in-capmkt","SegmentTechnicalLiabilitiesUnexpiredClaimsReservesIncludingIBNRAndIBNER","SegmentTechnicalLiabilitiesUnexpiredClaimsReservesIncludingIBNRAndIBNER","in-capmkt_SegmentTechnicalLiabilitiesUnexpiredClaimsReservesIncludingIBNRAndIBNER","xbrli:monetaryItemType","xbrli:item",null,"instant"]
["in-capmkt","DisclosureOfNotesOnSegmentTechnicalLiabilitiesUnexpiredClaimsReservesIncludingIBNRAndIBNERExplanatoryTextBlock","DisclosureOfNotesOnSegmentTechnicalLiabilitiesUnexpiredClaimsReservesIncludingIBNRAndIBNERExplanatoryTextBlock","in-capmkt_DisclosureOfNotesOnSegmentTechnicalLiabilitiesUnexpiredClaimsReservesIncludingIBNRAndIBNERExplanatoryTextBlock","nonnum:textBlockItemType","xbrli:item",null,"instant"]
["in-capmkt","DescriptionOfOtherReportableSegments","DescriptionOfOtherReportableSegments","in-capmkt_DescriptionOfOtherReportableSegments","xbrli:stringItemType","xbrli:item",null,"duration","true","true"]
["in-capmkt","Statement of cash flows [Abstract]","StatementOfCashFlowsAbstract",null,"xbrli:stringItemType",null,null,"duration"]
["in-capmkt","Cash flows from used in operating activities [Abstract]","CashFlowsFromUsedInOperatingActivitiesAbstract",null,"xbrli:stringItemType",null,null,"duration"]
["in-capmkt","Classes of cash receipts from operating activities [Abstract]","ClassesOfCashReceiptsFromOperatingActivitiesAbstract",null,"xbrli:stringItemType",null,null,"duration"]
["in-capmkt","Receipts from sales of goods and rendering of services","ReceiptsFromSalesOfGoodsAndRenderingOfServices",null,"xbrli:monetaryItemType",null,null,"duration"]
["in-capmkt","Receipts from royalties fees, commissions and other revenue","ReceiptsFromRoyaltiesFeesCommissionsAndOtherRevenue",null,"xbrli:monetaryItemType",null,null,"duration"]
["in-capmkt","Receipts from contracts held for dealing or trading purpose","ReceiptsFromContractsHeldForDealingOrTradingPurpose",null,"xbrli:monetaryItemType",null,null,"duration"]
["in-capmkt","Receipts from premiums and claims annuities and other policy benefits","ReceiptsFromPremiumsAndClaimsAnnuitiesAndOtherPolicyBenefits",null,"xbrli:monetaryItemType",null,null,"duration"]
["in-capmkt","Receipts from rents and subsequent sales of assets held for rental to others and subsequently held for sale","ReceiptsFromRentsAndSubsequentSalesOfAssetsHeldForRentalToOthersAndSubsequentlyHeldForSale",null,"xbrli:monetaryItemType",null,null,"duration"]
["in-capmkt","Other cash receipts from operating activities","OtherCashReceiptsFromOperatingActivities",null,"xbrli:monetaryItemType",null,null,"duration"]
["in-capmkt","Classes of cash payments from operating activities [Abstract]","ClassesOfCashPaymentsFromOperatingActivitiesAbstract",null,"xbrli:stringItemType",null,null,"duration"]
["in-capmkt","Payments to suppliers for goods and services","PaymentsToSuppliersForGoodsAndServices",null,"xbrli:monetaryItemType",null,null,"duration"]
["in-capmkt","Payments from contracts held for dealing or trading purpose","PaymentsFromContractsHeldForDealingOrTradingPurpose",null,"xbrli:monetaryItemType",null,null,"duration"]
["in-capmkt","Payments to and on behalf of employees","PaymentsToAndOnBehalfOfEmployees",null,"xbrli:monetaryItemType",null,null,"duration"]
["in-capmkt","Payments for premiums and claims, annuities and other policy benefits","PaymentsForPremiumsAndClaimsAnnuitiesAndOtherPolicyBenefits",null,"xbrli:monetaryItemType",null,null,"duration"]
["in-capmkt","Payments to manufacture or acquire assets held for rental to others and subsequently held for sale","PaymentsToManufactureOrAcquireAssetsHeldForRentalToOthersAndSubsequentlyHeldForSale",null,"xbrli:monetaryItemType",null,null,"duration"]
["in-capmkt","Other cash payments from operating activities","OtherCashPaymentsFromOperatingActivities",null,"xbrli:monetaryItemType",null,null,"duration"]
["in-capmkt","Net cash flows from (used in) operations operating activities","CashFlowsFromUsedInOperations",null,"xbrli:monetaryItemType",null,null,"duration"]
["in-capmkt","Dividends received operating activities","DividendsReceivedClassifiedAsOperatingActivities",null,"xbrli:monetaryItemType",null,null,"duration"]
["in-capmkt","Interest paid operating activities","InterestPaidClassifiedAsOperatingActivities",null,"xbrli:monetaryItemType",null,null,"duration"]
["in-capmkt","Interest received operating activities","InterestReceivedClassifiedAsOperatingActivities",null,"xbrli:monetaryItemType",null,null,"duration"]
["in-capmkt","Income taxes paid (refund) operating activities","IncomeTaxesPaidRefundClassifiedAsOperatingActivities",null,"xbrli:monetaryItemType",null,null,"duration"]
["in-capmkt","Other inflows (outflows) of cash operating activities","OtherInflowsOutflowsOfCashClassifiedAsOperatingActivities",null,"xbrli:monetaryItemType",null,null,"duration"]
["in-capmkt","Net cash flows from (used in) operating activities","CashFlowsFromUsedInOperatingActivities",null,"xbrli:monetaryItemType",null,null,"duration"]
["in-capmkt","Cash flows from used in investing activities [Abstract]","CashFlowsFromUsedInInvestingActivitiesAbstract",null,"xbrli:stringItemType",null,null,"duration"]
["in-capmkt","Cash flows from losing control of subsidiaries or other businesses investing activities","CashFlowsFromLosingControlOfSubsidiariesOrOtherBusinessesClassifiedAsInvestingActivities",null,"xbrli:monetaryItemType",null,null,"duration"]
["in-capmkt","Cash flows used in obtaining control of subsidiaries or other businesses investing activities","CashFlowsUsedInObtainingControlOfSubsidiariesOrOtherBusinessesClassifiedAsInvestingActivities",null,"xbrli:monetaryItemType",null,null,"duration"]
["in-capmkt","Other cash receipts from sales of equity or debt instruments of other entities investing activities","OtherCashReceiptsFromSalesOfEquityOrDebtInstrumentsOfOtherEntitiesClassifiedAsInvestingActivities",null,"xbrli:monetaryItemType",null,null,"duration"]
["in-capmkt","Other cash payments to acquire equity or debt instruments of other entities investing activities","OtherCashPaymentsToAcquireEquityOrDebtInstrumentsOfOtherEntitiesClassifiedAsInvestingActivities",null,"xbrli:monetaryItemType",null,null,"duration"]
["in-capmkt","Other cash receipts from sales of interests in joint ventures investing activities","OtherCashReceiptsFromSalesOfInterestsInJointVenturesClassifiedAsInvestingActivities",null,"xbrli:monetaryItemType",null,null,"duration"]
["in-capmkt","Other cash payments to acquire interests in joint ventures investing activities","OtherCashPaymentsToAcquireInterestsInJointVenturesClassifiedAsInvestingActivities",null,"xbrli:monetaryItemType",null,null,"duration"]
["in-capmkt","Proceeds from sales of property, plant and equipment investing activities","ProceedsFromSalesOfPropertyPlantAndEquipmentClassifiedAsInvestingActivities",null,"xbrli:monetaryItemType",null,null,"duration"]
["in-capmkt","Purchase of property, plant and equipment investing activities","PurchaseOfPropertyPlantAndEquipmentClassifiedAsInvestingActivities",null,"xbrli:monetaryItemType",null,null,"duration"]
["in-capmkt","Proceeds from sales of investment property investing activities","ProceedsFromSalesOfInvestmentPropertyClassifiedAsInvestingActivities",null,"xbrli:monetaryItemType",null,null,"duration"]
["in-capmkt","Purchase of investment property investing activities","PurchaseOfInvestmentPropertyClassifiedAsInvestingActivities",null,"xbrli:monetaryItemType",null,null,"duration"]
["in-capmkt","Proceeds from sales of goodwill investing activities","ProceedsFromSalesOfGoodwillClassifiedAsInvestingActivities",null,"xbrli:monetaryItemType",null,null,"duration"]
["in-capmkt","Purchase of goodwill investing activities","PurchaseOfGoodwillClassifiedAsInvestingActivities",null,"xbrli:monetaryItemType",null,null,"duration"]
["in-capmkt","Proceeds from sales of intangible assets investing activities","ProceedsFromSalesOfIntangibleAssetsClassifiedAsInvestingActivities",null,"xbrli:monetaryItemType",null,null,"duration"]
["in-capmkt","Purchase of intangible assets investing activities","PurchaseOfIntangibleAssetsClassifiedAsInvestingActivities",null,"xbrli:monetaryItemType",null,null,"duration"]
["in-capmkt","Proceeds from biological assets other than bearer plants investing activities","ProceedsFromBiologicalAssetsOtherThanBearerPlantsClassifiedAsInvestingActivities",null,"xbrli:monetaryItemType",null,null,"duration"]
["in-capmkt","Purchase of biological assets other than bearer plants investing activities","PurchaseOfBiologicalAssetsOtherThanBearerPlantsClassifiedAsInvestingActivities",null,"xbrli:monetaryItemType",null,null,"duration"]
["in-capmkt","Proceeds from sales of other long-term assets investing activities","ProceedsFromSalesOfOtherLongTermAssetsClassifiedAsInvestingActivities",null,"xbrli:monetaryItemType",null,null,"duration"]
["in-capmkt","Purchase of other long-term assets investing activities","PurchaseOfOtherLongTermAssetsClassifiedAsInvestingActivities",null,"xbrli:monetaryItemType",null,null,"duration"]
["in-capmkt","Cash advances and loans made to other parties investing activities","CashAdvancesAndLoansMadeToOtherPartiesClassifiedAsInvestingActivities",null,"xbrli:monetaryItemType",null,null,"duration"]
["in-capmkt","Cash receipts from repayment of advances and loans made to other parties investing activities","CashReceiptsFromRepaymentOfAdvancesAndLoansMadeToOtherPartiesClassifiedAsInvestingActivities",null,"xbrli:monetaryItemType",null,null,"duration"]
["in-capmkt","Cash payments for future contracts, forward contracts, option contracts and swap contracts investing activities","CashPaymentsForFutureContractsForwardContractsOptionContractsAndSwapContractsClassifiedAsInvestingActivities",null,"xbrli:monetaryItemType",null,null,"duration"]
["in-capmkt","Cash receipts from future contracts, forward contracts, option contracts and swap contracts investing activities","CashReceiptsFromFutureContractsForwardContractsOptionContractsAndSwapContractsClassifiedAsInvestingActivities",null,"xbrli:monetaryItemType",null,null,"duration"]
["in-capmkt","Dividends received investing activities","DividendsReceivedClassifiedAsInvestingActivities",null,"xbrli:monetaryItemType",null,null,"duration"]
["in-capmkt","Interest received investing activities","InterestReceivedClassifiedAsInvestingActivities",null,"xbrli:monetaryItemType",null,null,"duration"]
["in-capmkt","Income taxes paid (refund) investing activities","IncomeTaxesPaidRefundClassifiedAsInvestingActivities",null,"xbrli:monetaryItemType",null,null,"duration"]
["in-capmkt","Other inflows (outflows) of cash investing activities","OtherInflowsOutflowsOfCashClassifiedAsInvestingActivities",null,"xbrli:monetaryItemType",null,null,"duration"]
["in-capmkt","Proceeds from government grants investing activities","ProceedsFromGovernmentGrantsClassifiedAsInvestingActivities",null,"xbrli:monetaryItemType",null,null,"duration"]
["in-capmkt","Net cash flows from (used in) investing activities","CashFlowsFromUsedInInvestingActivities",null,"xbrli:monetaryItemType",null,null,"duration"]
["in-capmkt","Cash flows from used in financing activities [Abstract]","CashFlowsFromUsedInFinancingActivitiesAbstract",null,"xbrli:stringItemType",null,null,"duration"]
["in-capmkt","Proceeds from changes in ownership interests in subsidiaries that do not result in loss of control","ProceedsFromChangesInOwnershipInterestsInSubsidiariesThatDoNotResultInLossOfControl",null,"xbrli:monetaryItemType",null,null,"duration"]
["in-capmkt","Payments from changes in ownership interests in subsidiaries that do not result in loss of control","PaymentsFromChangesInOwnershipInterestsInSubsidiariesThatDoNotResultInLossOfControl",null,"xbrli:monetaryItemType",null,null,"duration"]
["in-capmkt","Proceeds from issuing shares financing activities","ProceedsFromIssuingSharesClassifiedAsFinancingActivities",null,"xbrli:monetaryItemType",null,null,"duration"]
["in-capmkt","Proceeds from issuing other equity instruments financing activities","ProceedsFromIssuingOtherEquityInstruments",null,"xbrli:monetaryItemType",null,null,"duration"]
["in-capmkt","Payments to acquire or redeem entity's shares financing activities","PaymentsToAcquireOrRedeemEntitysShares",null,"xbrli:monetaryItemType",null,null,"duration"]
["in-capmkt","Payments of other equity instruments financing activities","PaymentsOfOtherEquityInstruments",null,"xbrli:monetaryItemType",null,null,"duration"]
["in-capmkt","Proceeds from exercise of stock options financing activities","ProceedsFromExerciseOfStockOptions",null,"xbrli:monetaryItemType",null,null,"duration"]
["in-capmkt","Proceeds from issuing debentures notes bonds etc financing activities","ProceedsFromIssuingDebenturesNotesBondsEtc",null,"xbrli:monetaryItemType",null,null,"duration"]
["in-capmkt","Proceeds from borrowings financing activities","ProceedsFromBorrowingsClassifiedAsFinancingActivities",null,"xbrli:monetaryItemType",null,null,"duration"]
["in-capmkt","Repayments of borrowings financing activities","RepaymentsOfBorrowingsClassifiedAsFinancingActivities",null,"xbrli:monetaryItemType",null,null,"duration"]
["in-capmkt","Payments of finance lease liabilities financing activities","PaymentsOfFinanceLeaseLiabilitiesClassifiedAsFinancingActivities",null,"xbrli:monetaryItemType",null,null,"duration"]
["in-capmkt","Payments of lease liabilities financing activities","PaymentsOfLeaseLiabilitiesClassifiedAsFinancingActivities",null,"xbrli:monetaryItemType",null,null,"duration"]
["in-capmkt","Dividends paid financing activities","DividendsPaidClassifiedAsFinancingActivities",null,"xbrli:monetaryItemType",null,null,"duration"]
["in-capmkt","Interest paid financing activities","InterestPaidClassifiedAsFinancingActivities",null,"xbrli:monetaryItemType",null,null,"duration"]
["in-capmkt","Income taxes paid (refund) financing activities","IncomeTaxesPaidRefundClassifiedAsFinancingActivities",null,"xbrli:monetaryItemType",null,null,"duration"]
["in-capmkt","Other inflows (outflows) of cash financing activities","OtherInflowsOutflowsOfCashClassifiedAsFinancingActivities",null,"xbrli:monetaryItemType",null,null,"duration"]
["in-capmkt","Net cash flows from (used in) financing activities","CashFlowsFromUsedInFinancingActivities",null,"xbrli:monetaryItemType",null,null,"duration"]
["in-capmkt","Net increase (decrease) in cash and cash equivalents before effect of exchange rate changes","IncreaseDecreaseInCashAndCashEquivalentsBeforeEffectOfExchangeRateChanges",null,"xbrli:monetaryItemType",null,null,"duration"]
["in-capmkt","Effect of exchange rate changes on cash and cash equivalents [Abstract]","EffectOfExchangeRateChangesOnCashAndCashEquivalentsAbstract",null,"xbrli:stringItemType",null,null,"duration"]
["in-capmkt","Effect of exchange rate changes on cash and cash equivalents","EffectOfExchangeRateChangesOnCashAndCashEquivalents",null,"xbrli:monetaryItemType",null,null,"duration"]
["in-capmkt","Net increase (decrease) in cash and cash equivalents","IncreaseDecreaseInCashAndCashEquivalents",null,"xbrli:monetaryItemType",null,null,"duration"]
["in-capmkt","Cash and cash equivalents cash flow statement at beginning of period","CashAndCashEquivalentsCashFlowStatement",null,"xbrli:monetaryItemType",null,null,"instant"]
["in-capmkt","Cash and cash equivalents cash flow statement at end of period","CashAndCashEquivalentsCashFlowStatement",null,"xbrli:monetaryItemType",null,null,"instant"]
["in-capmkt",null,"Cash Flow Indirect"]
["in-capmkt","Profit before tax indirect","ProfitBeforeTax",null,"xbrli:monetaryItemType",null,null,"duration",null,null,"Value should be match with Profit before tax from financial results sheet"]
["in-capmkt","Adjustments for reconcile profit (loss) [Abstract]","AdjustmentsForReconcileProfitLossAbstract",null,"xbrli:stringItemType",null,null,"duration"]
["in-capmkt","Adjustments for finance costs","AdjustmentsForFinanceCosts",null,"xbrli:monetaryItemType",null,null,"duration"]
["in-capmkt","Adjustments for decrease (increase) in inventories","AdjustmentsForDecreaseIncreaseInInventories",null,"xbrli:monetaryItemType",null,null,"duration"]
["in-capmkt","Adjustments for decrease (increase) in trade receivables, current","AdjustmentsForDecreaseIncreaseInTradeReceivablesCurrent",null,"xbrli:monetaryItemType",null,null,"duration"]
["in-capmkt","Adjustments for decrease (increase) in trade receivables, non-current","AdjustmentsForDecreaseIncreaseInTradeReceivablesNoncurrent",null,"xbrli:monetaryItemType",null,null,"duration"]
["in-capmkt","Adjustments for decrease (increase) in other current assets","AdjustmentsForDecreaseIncreaseInOtherCurrentAssets",null,"xbrli:monetaryItemType",null,null,"duration"]
["in-capmkt","Adjustments for decrease (increase) in other non-current assets","AdjustmentsForDecreaseIncreaseInOtherNoncurrentAssets",null,"xbrli:monetaryItemType",null,null,"duration"]
["in-capmkt","Adjustments for other financial assets, non-current","AdjustmentsForOtherFinancialAssetsNoncurrent",null,"xbrli:monetaryItemType",null,null,"duration"]
["in-capmkt","Adjustments for other financial assets, current","AdjustmentsForOtherFinancialAssetsCurrent",null,"xbrli:monetaryItemType",null,null,"duration"]
["in-capmkt","Adjustments for other bank balances","AdjustmentsForOtherBankBalances",null,"xbrli:monetaryItemType",null,null,"duration"]
["in-capmkt","Adjustments for increase (decrease) in trade payables, current","AdjustmentsForIncreaseDecreaseInTradePayablesCurrent",null,"xbrli:monetaryItemType",null,null,"duration"]
["in-capmkt","Adjustments for increase (decrease) in trade payables, non-current","AdjustmentsForIncreaseDecreaseInTradePayablesNoncurrent",null,"xbrli:monetaryItemType",null,null,"duration"]
["in-capmkt","Adjustments for increase (decrease) in other current liabilities","AdjustmentsForIncreaseDecreaseInOtherCurrentLiabilities",null,"xbrli:monetaryItemType",null,null,"duration"]
["in-capmkt","Adjustments for increase (decrease) in other non-current liabilities","AdjustmentsForIncreaseDecreaseInOtherNoncurrentLiabilities",null,"xbrli:monetaryItemType",null,null,"duration"]
["in-capmkt","Adjustments for depreciation and amortisation expense","AdjustmentsForDepreciationAndAmortisationExpense",null,"xbrli:monetaryItemType",null,null,"duration"]
["in-capmkt","Adjustments for impairment loss reversal of impairment loss recognised in profit or loss","AdjustmentsForImpairmentLossReversalOfImpairmentLossRecognisedInProfitOrLoss",null,"xbrli:monetaryItemType",null,null,"duration"]
["in-capmkt","Adjustments for provisions, current","AdjustmentsForProvisionsCurrent",null,"xbrli:monetaryItemType",null,null,"duration"]
["in-capmkt","Adjustments for provisions, non-current","AdjustmentsForProvisionsNoncurrent",null,"xbrli:monetaryItemType",null,null,"duration"]
["in-capmkt","Adjustments for other financial liabilities, current","AdjustmentsForOtherFinancialLiabilitiesCurrent",null,"xbrli:monetaryItemType",null,null,"duration"]
["in-capmkt","Adjustments for other financial liabilities, non-current","AdjustmentsForOtherFinancialLiabilitiesNoncurrent",null,"xbrli:monetaryItemType",null,null,"duration"]
["in-capmkt","Adjustments for unrealised foreign exchange losses gains","AdjustmentsForUnrealisedForeignExchangeLossesGains",null,"xbrli:monetaryItemType",null,null,"duration"]
["in-capmkt","Adjustments for dividend income","AdjustmentsForDividendIncome",null,"xbrli:monetaryItemType",null,null,"duration"]
["in-capmkt","Adjustments for interest income","AdjustmentsForInterestIncome",null,"xbrli:monetaryItemType",null,null,"duration"]
["in-capmkt","Adjustments for share-based payments","AdjustmentsForSharebasedPayments",null,"xbrli:monetaryItemType",null,null,"duration"]
["in-capmkt","Adjustments for fair value losses (gains)","AdjustmentsForFairValueGainsLosses",null,"xbrli:monetaryItemType",null,null,"duration"]
["in-capmkt","Adjustments for undistributed profits of associates","AdjustmentsForUndistributedProfitsOfAssociates",null,"xbrli:monetaryItemType",null,null,"duration"]
["in-capmkt","Other adjustments for which cash effects are investing or financing cash flow","OtherAdjustmentsForWhichCashEffectsAreInvestingOrFinancingCashFlow",null,"xbrli:monetaryItemType",null,null,"duration"]
["in-capmkt","Other adjustments to reconcile profit (loss)","OtherAdjustmentsToReconcileProfitLoss",null,"xbrli:monetaryItemType",null,null,"duration"]
["in-capmkt","Other adjustments for non-cash items","OtherAdjustmentsForNoncashItems",null,"xbrli:monetaryItemType",null,null,"duration"]
["in-capmkt","Share of profit and loss from partnership firm or association of persons or limited liability partnerships","ShareOfProfitAndLossFromPartnershipFirmOrAssociationOfPersonsOrLimitedLiabilityPartnerships",null,"xbrli:monetaryItemType",null,null,"duration"]
["in-capmkt","Total adjustments for reconcile profit (loss)","AdjustmentsForReconcileProfitLoss",null,"xbrli:monetaryItemType",null,null,"duration"]
["in-capmkt","Proceeds from sales of intangible assets under development","ProceedsFromSalesOfIntangibleAssetsUnderDevelopment",null,"xbrli:monetaryItemType",null,null,"duration"]
["in-capmkt","Purchase of intangible assets under development","PurchaseOfIntangibleAssetsUnderDevelopment",null,"xbrli:monetaryItemType",null,null,"duration"]
["in-capmkt","Cash flows from used in financing activities [Abstract]","CashFlowsFromUsedInFinancingActivitiesAbstract",null,"xbrli:stringItemType",null,null,"duration"]
["in-capmkt","Proceeds from changes in ownership interests in subsidiaries","ProceedsFromChangesInOwnershipInterestsInSubsidiaries",null,"xbrli:monetaryItemType",null,null,"duration"]
["in-capmkt","Payments from changes in ownership interests in subsidiaries","PaymentsFromChangesInOwnershipInterestsInSubsidiaries",null,"xbrli:monetaryItemType",null,null,"duration"]
["in-capmkt","Cash receipts from share of profits of partnership firm or association of persons or limited liability partnerships","CashReceiptsFromShareOfProfitsOfPartnershipFirmOrAssociationOfPersonsOrLimitedLiabilityPartnerships",null,"xbrli:monetaryItemType",null,null,"duration"]
["in-capmkt","Cash payment for investment in partnership firm or association of persons or limited liability partnerships","CashPaymentForInvestmentInPartnershipFirmOrAssociationOfPersonsOrLimitedLiabilityPartnerships",null,"xbrli:monetaryItemType",null,null,"duration"]
["in-capmkt","WhetherCashFlowStatementIsApplicableOnCompany","WhetherCashFlowStatementIsApplicableOnCompany",null,"xbrli:booleanItemType",null,null,"duration"]
["in-capmkt","TypeOfCashFlowStatement","TypeOfCashFlowStatement",null,"xbrli:stringItemType",null,null,"duration"]

{"sheet":"TextBlock","index":14,"n_rows":0,"n_cols":0,"rows_kept":0,"cut":false,"hidden":true,"merged":[]}

{"sheet":"Balance Sheet (2)","index":15,"n_rows":46,"n_cols":9,"rows_kept":46,"cut":false,"hidden":true,"merged":[[27,5,27,6],[27,7,27,8],[7,5,7,8],[8,5,8,6],[9,5,9,6],[10,5,10,6],[11,5,11,6],[12,5,12,6],[12,7,12,8]]}
[]
[]
[]
[]
[]
[]
[]
[null,null,null,null,null,"Format for financial results by general insurance companies filed with stock exchanges"]
[null,null,null,null,null,"Partiuclars",null,"Current year ended        (dd-mm-yyyy)","Year to Date Figures"]
[null,null,null,null,null,"Date of start of reporting period"]
[null,null,null,null,null,"Date of end of reporting period"]
[null,null,null,null,null,"Whether accounts are audited or unaudited"]
[null,null,null,null,null,"Sources of Funds"]
[null,null,null,null,null,1,"SHAREHOLDERS’ FUNDS:"]
[null,null,null,null,null,2," SHARE CAPITAL                "]
[null,null,null,null,null,3," RESERVES AND SURPLUS"]
[null,null,null,null,null,4," CREDIT/[DEBIT] FAIR VALUE CHANGE ACCOUNT"]
[null,null,null,null,null,5,"Sub-Total"]
[null,null,null,null,null,null,"BORROWINGS"]
[null,null,null,null,null,7,"POLICYHOLDERS’ FUNDS:"]
[null,null,null,null,null,8,"CREDIT/[DEBIT] FAIR VALUE CHANGE ACCOUNT"]
[null,null,null,null,null,9,"POLICY LIABILITIES"]
[null,null,null,null,null,10,"INSURANCE RESERVES"]
[null,null,null,null,null,11,"PROVISION FOR LINKED LIABILITIES"]
[null,null,null,null,null,null,"Sub-Total"]
[null,null,null,null,null,null,"FUNDS FOR FUTURE APPROPRIATIONS"]
[null,null,null,null,null,null,"TOTAL"]
[null,null,null,null,null,"APPLICATION OF FUNDS"]
[null,null,null,null,null,1,"INVESTMENTS"]
[null,null,null,null,null,2,"Shareholders"]
[null,null,null,null,null,3,"Policyholders'"]
[null,null,null,null,null,4]
[null,null,null,null,null,5,"ASSETS HELD TO COVER LINKED LIABILITIES"]
[null,null,null,null,null,null,"LOANS"]
[null,null,null,null,null,7,"FIXED ASSETS"]
[null,null,null,null,null,8,"CURRENT ASSETS"]
[null,null,null,null,null,9,"Cash and Bank Balances"]
[null,null,null,null,null,10,"Advances and Other Assets"]
[null,null,null,null,null,11,"Sub-Total (A)"]
[null,null,null,null,null,null,"CURRENT LIABILITIES"]
[null,null,null,null,null,null,"PROVISIONS"]
[null,null,null,null,null,null,"Sub-Total (B)"]
[null,null,null,null,null,null,"NET CURRENT ASSETS (C) = (A – B)"]
[null,null,null,null,null,null," MISCELLANEOUS EXPENDITURE (to the extent not written off or adjusted)"]
[null,null,null,null,null,null,"DEBIT BALANCE IN PROFIT & LOSS ACCOUNT (Shareholders’ Account)"]
[null,null,null,null,null,null,"TOTAL"]